Body,Body Name,Date,Transaction Number,Invoice Number,Amount,Supplier Name,Supplier ID,Expense Area,Expense Type,Expense Code
http://statistics.data.gov.uk/id/local-authority/47UD,Redditch Borough Council,04/09/2015,236505,BE200,"1,059.85",B Evans & Son,103,Housing Repairs Account,Contractors,5158
http://statistics.data.gov.uk/id/local-authority/47UD,Redditch Borough Council,04/09/2015,236505,BE200,944.00,B Evans & Son,103,Rbc Balance Sheet,Contract Payments,8131
http://statistics.data.gov.uk/id/local-authority/47UD,Redditch Borough Council,04/09/2015,236505,BE200,"3,167.40",B Evans & Son,103,Rbc Balance Sheet,Dlo,8130
http://statistics.data.gov.uk/id/local-authority/47UD,Redditch Borough Council,18/09/2015,237101,BE201,"5,885.36",B Evans & Son,103,Rbc Balance Sheet,Contract Payments,8131
http://statistics.data.gov.uk/id/local-authority/47UD,Redditch Borough Council,04/09/2015,237461,868,"1,596.29",N Power Business And Social Housing Limited,1030,Housing Repairs Account,Contractors,5158
http://statistics.data.gov.uk/id/local-authority/47UD,Redditch Borough Council,04/09/2015,237462,867,"1,574.16",N Power Business And Social Housing Limited,1030,Housing Repairs Account,Contractors,5158
http://statistics.data.gov.uk/id/local-authority/47UD,Redditch Borough Council,04/09/2015,237463,866,"1,358.36",N Power Business And Social Housing Limited,1030,Housing Repairs Account,Contractors,5158
http://statistics.data.gov.uk/id/local-authority/47UD,Redditch Borough Council,04/09/2015,237464,870,"1,434.25",N Power Business And Social Housing Limited,1030,Housing Repairs Account,Contractors,5158
http://statistics.data.gov.uk/id/local-authority/47UD,Redditch Borough Council,04/09/2015,237465,869,"1,401.53",N Power Business And Social Housing Limited,1030,Housing Repairs Account,Contractors,5158
http://statistics.data.gov.uk/id/local-authority/47UD,Redditch Borough Council,04/09/2015,237466,874,"1,066.46",N Power Business And Social Housing Limited,1030,Housing Repairs Account,Contractors,5158
http://statistics.data.gov.uk/id/local-authority/47UD,Redditch Borough Council,04/09/2015,237467,871,"1,833.73",N Power Business And Social Housing Limited,1030,Housing Repairs Account,Contractors,5158
http://statistics.data.gov.uk/id/local-authority/47UD,Redditch Borough Council,04/09/2015,237468,873,"1,149.64",N Power Business And Social Housing Limited,1030,Housing Repairs Account,Contractors,5158
http://statistics.data.gov.uk/id/local-authority/47UD,Redditch Borough Council,04/09/2015,237469,872,"1,540.61",N Power Business And Social Housing Limited,1030,Housing Repairs Account,Contractors,5158
http://statistics.data.gov.uk/id/local-authority/47UD,Redditch Borough Council,04/09/2015,237470,876,"2,125.50",N Power Business And Social Housing Limited,1030,Housing Repairs Account,Contractors,5158
http://statistics.data.gov.uk/id/local-authority/47UD,Redditch Borough Council,11/09/2015,238001,875,"1,505.86",N Power Business And Social Housing Limited,1030,Housing Repairs Account,Contractors,5158
http://statistics.data.gov.uk/id/local-authority/47UD,Redditch Borough Council,25/09/2015,238815,P601 CERT5,"89,078.30",N Power Business And Social Housing Limited,1030,Rbc Balance Sheet,Contract Payments,8131
http://statistics.data.gov.uk/id/local-authority/47UD,Redditch Borough Council,25/09/2015,238817,P601 CERT3,"92,007.58",N Power Business And Social Housing Limited,1030,Rbc Balance Sheet,Contract Payments,8131
http://statistics.data.gov.uk/id/local-authority/47UD,Redditch Borough Council,25/09/2015,238820,P601 CERT4,"139,667.32",N Power Business And Social Housing Limited,1030,Rbc Balance Sheet,Contract Payments,8131
http://statistics.data.gov.uk/id/local-authority/47UD,Redditch Borough Council,30/09/2015,239229,P598,"90,680.22",N Power Business And Social Housing Limited,1030,Rbc Balance Sheet,Contract Payments,8131
http://statistics.data.gov.uk/id/local-authority/47UD,Redditch Borough Council,25/09/2015,236863,OP/15Q6486,519.18,Prolog Print Media,1056,Exec. Director Fin. & Resource,External Printing,4302
http://statistics.data.gov.uk/id/local-authority/47UD,Redditch Borough Council,18/09/2015,236591,SI01642254,371.76,Dulux Decorator Centres,1082,Crossgate Stocks,Received Not Invoiced,2096
http://statistics.data.gov.uk/id/local-authority/47UD,Redditch Borough Council,18/09/2015,236591,SI01642254,0.00,Dulux Decorator Centres,1082,Crossgate Stocks,Stock Account (Cedar),1201
http://statistics.data.gov.uk/id/local-authority/47UD,Redditch Borough Council,18/09/2015,236591,SI01642254,30.72,Dulux Decorator Centres,1082,Crossgate Stocks,Received Not Invoiced,2096
http://statistics.data.gov.uk/id/local-authority/47UD,Redditch Borough Council,18/09/2015,236591,SI01642254,0.00,Dulux Decorator Centres,1082,Crossgate Stocks,Stock Account (Cedar),1201
http://statistics.data.gov.uk/id/local-authority/47UD,Redditch Borough Council,18/09/2015,236591,SI01642254,52.56,Dulux Decorator Centres,1082,Crossgate Stocks,Received Not Invoiced,2096
http://statistics.data.gov.uk/id/local-authority/47UD,Redditch Borough Council,18/09/2015,236591,SI01642254,0.00,Dulux Decorator Centres,1082,Crossgate Stocks,Stock Account (Cedar),1201
http://statistics.data.gov.uk/id/local-authority/47UD,Redditch Borough Council,18/09/2015,236591,SI01642254,129.00,Dulux Decorator Centres,1082,Crossgate Stocks,Received Not Invoiced,2096
http://statistics.data.gov.uk/id/local-authority/47UD,Redditch Borough Council,18/09/2015,236591,SI01642254,0.00,Dulux Decorator Centres,1082,Crossgate Stocks,Stock Account (Cedar),1201
http://statistics.data.gov.uk/id/local-authority/47UD,Redditch Borough Council,18/09/2015,236591,SI01642254,-3.08,Dulux Decorator Centres,1082,Crossgate Stocks,Stock Variance,1203
http://statistics.data.gov.uk/id/local-authority/47UD,Redditch Borough Council,18/09/2015,236591,SI01642254,25.80,Dulux Decorator Centres,1082,Crossgate Stocks,Received Not Invoiced,2096
http://statistics.data.gov.uk/id/local-authority/47UD,Redditch Borough Council,18/09/2015,236591,SI01642254,0.00,Dulux Decorator Centres,1082,Crossgate Stocks,Stock Account (Cedar),1201
http://statistics.data.gov.uk/id/local-authority/47UD,Redditch Borough Council,04/09/2015,236857,SI01756878,73.20,Dulux Decorator Centres,1082,Crossgate Stocks,Received Not Invoiced,2096
http://statistics.data.gov.uk/id/local-authority/47UD,Redditch Borough Council,04/09/2015,236857,SI01756878,0.00,Dulux Decorator Centres,1082,Crossgate Stocks,Stock Account (Cedar),1201
http://statistics.data.gov.uk/id/local-authority/47UD,Redditch Borough Council,04/09/2015,236857,SI01756878,-0.01,Dulux Decorator Centres,1082,Crossgate Stocks,Stock Variance,1203
http://statistics.data.gov.uk/id/local-authority/47UD,Redditch Borough Council,04/09/2015,236857,SI01756878,189.90,Dulux Decorator Centres,1082,Crossgate Stocks,Received Not Invoiced,2096
http://statistics.data.gov.uk/id/local-authority/47UD,Redditch Borough Council,04/09/2015,236857,SI01756878,0.00,Dulux Decorator Centres,1082,Crossgate Stocks,Stock Account (Cedar),1201
http://statistics.data.gov.uk/id/local-authority/47UD,Redditch Borough Council,04/09/2015,236857,SI01756878,143.55,Dulux Decorator Centres,1082,Crossgate Stocks,Received Not Invoiced,2096
http://statistics.data.gov.uk/id/local-authority/47UD,Redditch Borough Council,04/09/2015,236857,SI01756878,0.00,Dulux Decorator Centres,1082,Crossgate Stocks,Stock Account (Cedar),1201
http://statistics.data.gov.uk/id/local-authority/47UD,Redditch Borough Council,04/09/2015,236857,SI01756878,76.00,Dulux Decorator Centres,1082,Crossgate Stocks,Received Not Invoiced,2096
http://statistics.data.gov.uk/id/local-authority/47UD,Redditch Borough Council,04/09/2015,236857,SI01756878,0.00,Dulux Decorator Centres,1082,Crossgate Stocks,Stock Account (Cedar),1201
http://statistics.data.gov.uk/id/local-authority/47UD,Redditch Borough Council,04/09/2015,236857,SI01756878,19.10,Dulux Decorator Centres,1082,Crossgate Stocks,Received Not Invoiced,2096
http://statistics.data.gov.uk/id/local-authority/47UD,Redditch Borough Council,04/09/2015,236857,SI01756878,0.00,Dulux Decorator Centres,1082,Crossgate Stocks,Stock Account (Cedar),1201
http://statistics.data.gov.uk/id/local-authority/47UD,Redditch Borough Council,04/09/2015,236857,SI01756878,111.80,Dulux Decorator Centres,1082,Crossgate Stocks,Received Not Invoiced,2096
http://statistics.data.gov.uk/id/local-authority/47UD,Redditch Borough Council,04/09/2015,236857,SI01756878,0.00,Dulux Decorator Centres,1082,Crossgate Stocks,Stock Account (Cedar),1201
http://statistics.data.gov.uk/id/local-authority/47UD,Redditch Borough Council,25/09/2015,231447,22957,633.00,Plato Catering Hire,1113,Executive Director Lec,Office Equipment Hire & Rental,4001
http://statistics.data.gov.uk/id/local-authority/47UD,Redditch Borough Council,11/09/2015,236830,AUG15,"48,250.00",Bromsgrove District Council,1114,Exec. Director Prrh,Wett Shared Service Cost,5013
http://statistics.data.gov.uk/id/local-authority/47UD,Redditch Borough Council,18/09/2015,238262,800044644,"8,534.45",Bromsgrove District Council,1114,Chief Executive,B'Grove Shared Services Cost,5012
http://statistics.data.gov.uk/id/local-authority/47UD,Redditch Borough Council,18/09/2015,238262,800044644,"5,657.35",Bromsgrove District Council,1114,Chief Executive,B'Grove Shared Services Cost,5012
http://statistics.data.gov.uk/id/local-authority/47UD,Redditch Borough Council,18/09/2015,238262,800044644,"105,315.18",Bromsgrove District Council,1114,Chief Executive,B'Grove Shared Services Cost,5012
http://statistics.data.gov.uk/id/local-authority/47UD,Redditch Borough Council,18/09/2015,238262,800044644,"11,525.51",Bromsgrove District Council,1114,Chief Executive,B'Grove Shared Services Cost,5012
http://statistics.data.gov.uk/id/local-authority/47UD,Redditch Borough Council,30/09/2015,238710,RED/175741,437.40,Cef - City Electrical Factors Ltd,113,Crossgate Stocks,Received Not Invoiced,2096
http://statistics.data.gov.uk/id/local-authority/47UD,Redditch Borough Council,30/09/2015,238710,RED/175741,0.00,Cef - City Electrical Factors Ltd,113,Crossgate Stocks,Stock Account (Cedar),1201
http://statistics.data.gov.uk/id/local-authority/47UD,Redditch Borough Council,30/09/2015,239261,RED/158801,"1,542.20",Cef - City Electrical Factors Ltd,113,Executive Director Lec,Operational Equip- Purchase,4150
http://statistics.data.gov.uk/id/local-authority/47UD,Redditch Borough Council,04/09/2015,234648,ARIN/99020870,"1,868.84",Advanced Business Solutions,114,Exec. Director Fin. & Resource,Consultants Fees,4351
http://statistics.data.gov.uk/id/local-authority/47UD,Redditch Borough Council,04/09/2015,235764,ARBK/99035258,900.00,Advanced Business Solutions,114,Rbc Balance Sheet,Machinery & Equip - Purchase,8152
http://statistics.data.gov.uk/id/local-authority/47UD,Redditch Borough Council,04/09/2015,236784,ARIN/99021045,672.54,Advanced Business Solutions,114,Rbc Balance Sheet,Machinery & Equip - Purchase,8152
http://statistics.data.gov.uk/id/local-authority/47UD,Redditch Borough Council,18/09/2015,237889,11024,"2,700.00",Advanced Business Solutions,114,Exec. Director Fin. & Resource,Consultants Fees,4351
http://statistics.data.gov.uk/id/local-authority/47UD,Redditch Borough Council,25/09/2015,237243,10303,"3,918.50",Cava Security Services Ltd,115,Executive Director Lec,Agency Staff,3020
http://statistics.data.gov.uk/id/local-authority/47UD,Redditch Borough Council,25/09/2015,237243,10303,168.00,Cava Security Services Ltd,115,Executive Director Lec,Operational Equip- Purchase,4150
http://statistics.data.gov.uk/id/local-authority/47UD,Redditch Borough Council,11/09/2015,236799,0190/00011870,455.40,N & C Building Products Ltd,1160,Crossgate Stocks,Received Not Invoiced,2096
http://statistics.data.gov.uk/id/local-authority/47UD,Redditch Borough Council,11/09/2015,236799,0190/00011870,0.00,N & C Building Products Ltd,1160,Crossgate Stocks,Stock Account (Cedar),1201
http://statistics.data.gov.uk/id/local-authority/47UD,Redditch Borough Council,11/09/2015,236799,0190/00011870,4.50,N & C Building Products Ltd,1160,Crossgate Stocks,Stock Variance,1203
http://statistics.data.gov.uk/id/local-authority/47UD,Redditch Borough Council,04/09/2015,236803,0190/00011871,446.62,N & C Building Products Ltd,1160,Crossgate Stocks,Received Not Invoiced,2096
http://statistics.data.gov.uk/id/local-authority/47UD,Redditch Borough Council,04/09/2015,236803,0190/00011871,0.00,N & C Building Products Ltd,1160,Crossgate Stocks,Stock Account (Cedar),1201
http://statistics.data.gov.uk/id/local-authority/47UD,Redditch Borough Council,11/09/2015,237435,0190/00012337,455.40,N & C Building Products Ltd,1160,Crossgate Stocks,Received Not Invoiced,2096
http://statistics.data.gov.uk/id/local-authority/47UD,Redditch Borough Council,11/09/2015,237435,0190/00012337,0.00,N & C Building Products Ltd,1160,Crossgate Stocks,Stock Account (Cedar),1201
http://statistics.data.gov.uk/id/local-authority/47UD,Redditch Borough Council,11/09/2015,237435,0190/00012337,4.50,N & C Building Products Ltd,1160,Crossgate Stocks,Stock Variance,1203
http://statistics.data.gov.uk/id/local-authority/47UD,Redditch Borough Council,11/09/2015,237894,0190/00012461,446.62,N & C Building Products Ltd,1160,Crossgate Stocks,Received Not Invoiced,2096
http://statistics.data.gov.uk/id/local-authority/47UD,Redditch Borough Council,11/09/2015,237894,0190/00012461,0.00,N & C Building Products Ltd,1160,Crossgate Stocks,Stock Account (Cedar),1201
http://statistics.data.gov.uk/id/local-authority/47UD,Redditch Borough Council,11/09/2015,233858,193995,27.13,Tallis Amos Group (Chris Tallis),1187,Executive Director Lec,Materials (Veh),3700
http://statistics.data.gov.uk/id/local-authority/47UD,Redditch Borough Council,11/09/2015,233858,193995,138.74,Tallis Amos Group (Chris Tallis),1187,Executive Director Lec,Materials (Veh),3700
http://statistics.data.gov.uk/id/local-authority/47UD,Redditch Borough Council,11/09/2015,233858,193995,105.31,Tallis Amos Group (Chris Tallis),1187,Executive Director Lec,Materials (Veh),3700
http://statistics.data.gov.uk/id/local-authority/47UD,Redditch Borough Council,11/09/2015,233858,193995,76.93,Tallis Amos Group (Chris Tallis),1187,Executive Director Lec,Materials (Veh),3700
http://statistics.data.gov.uk/id/local-authority/47UD,Redditch Borough Council,11/09/2015,233858,193995,0.42,Tallis Amos Group (Chris Tallis),1187,Executive Director Lec,Materials (Veh),3700
http://statistics.data.gov.uk/id/local-authority/47UD,Redditch Borough Council,11/09/2015,233858,193995,33.37,Tallis Amos Group (Chris Tallis),1187,Executive Director Lec,Materials (Veh),3700
http://statistics.data.gov.uk/id/local-authority/47UD,Redditch Borough Council,11/09/2015,233858,193995,11.76,Tallis Amos Group (Chris Tallis),1187,Executive Director Lec,Materials (Veh),3700
http://statistics.data.gov.uk/id/local-authority/47UD,Redditch Borough Council,11/09/2015,233858,193995,179.94,Tallis Amos Group (Chris Tallis),1187,Executive Director Lec,Materials (Veh),3700
http://statistics.data.gov.uk/id/local-authority/47UD,Redditch Borough Council,11/09/2015,233858,193995,39.48,Tallis Amos Group (Chris Tallis),1187,Executive Director Lec,Materials (Veh),3700
http://statistics.data.gov.uk/id/local-authority/47UD,Redditch Borough Council,11/09/2015,233858,193995,19.74,Tallis Amos Group (Chris Tallis),1187,Executive Director Lec,Materials (Veh),3700
http://statistics.data.gov.uk/id/local-authority/47UD,Redditch Borough Council,11/09/2015,233858,193995,19.74,Tallis Amos Group (Chris Tallis),1187,Executive Director Lec,Materials (Veh),3700
http://statistics.data.gov.uk/id/local-authority/47UD,Redditch Borough Council,11/09/2015,233858,193995,10.00,Tallis Amos Group (Chris Tallis),1187,Executive Director Lec,Materials (Veh),3700
http://statistics.data.gov.uk/id/local-authority/47UD,Redditch Borough Council,11/09/2015,233858,193995,81.50,Tallis Amos Group (Chris Tallis),1187,Executive Director Lec,Materials (Veh),3700
http://statistics.data.gov.uk/id/local-authority/47UD,Redditch Borough Council,11/09/2015,233858,193995,3.73,Tallis Amos Group (Chris Tallis),1187,Executive Director Lec,Materials (Veh),3700
http://statistics.data.gov.uk/id/local-authority/47UD,Redditch Borough Council,11/09/2015,233858,193995,32.80,Tallis Amos Group (Chris Tallis),1187,Executive Director Lec,Materials (Veh),3700
http://statistics.data.gov.uk/id/local-authority/47UD,Redditch Borough Council,11/09/2015,233858,193995,186.88,Tallis Amos Group (Chris Tallis),1187,Executive Director Lec,Materials (Veh),3700
http://statistics.data.gov.uk/id/local-authority/47UD,Redditch Borough Council,11/09/2015,233858,193995,28.32,Tallis Amos Group (Chris Tallis),1187,Executive Director Lec,Materials (Veh),3700
http://statistics.data.gov.uk/id/local-authority/47UD,Redditch Borough Council,11/09/2015,233858,193995,21.80,Tallis Amos Group (Chris Tallis),1187,Executive Director Lec,Materials (Veh),3700
http://statistics.data.gov.uk/id/local-authority/47UD,Redditch Borough Council,11/09/2015,233858,193995,33.60,Tallis Amos Group (Chris Tallis),1187,Executive Director Lec,Materials (Veh),3700
http://statistics.data.gov.uk/id/local-authority/47UD,Redditch Borough Council,11/09/2015,233858,193995,25.00,Tallis Amos Group (Chris Tallis),1187,Executive Director Lec,Materials (Veh),3700
http://statistics.data.gov.uk/id/local-authority/47UD,Redditch Borough Council,11/09/2015,233858,193995,198.14,Tallis Amos Group (Chris Tallis),1187,Executive Director Lec,Materials (Veh),3700
http://statistics.data.gov.uk/id/local-authority/47UD,Redditch Borough Council,11/09/2015,233858,193995,38.23,Tallis Amos Group (Chris Tallis),1187,Executive Director Lec,Materials (Veh),3700
http://statistics.data.gov.uk/id/local-authority/47UD,Redditch Borough Council,11/09/2015,233858,193995,32.99,Tallis Amos Group (Chris Tallis),1187,Executive Director Lec,Materials (Veh),3700
http://statistics.data.gov.uk/id/local-authority/47UD,Redditch Borough Council,11/09/2015,233858,193995,45.00,Tallis Amos Group (Chris Tallis),1187,Executive Director Lec,Materials (Veh),3700
http://statistics.data.gov.uk/id/local-authority/47UD,Redditch Borough Council,11/09/2015,233858,193995,92.80,Tallis Amos Group (Chris Tallis),1187,Executive Director Lec,Materials (Veh),3700
http://statistics.data.gov.uk/id/local-authority/47UD,Redditch Borough Council,11/09/2015,233858,193995,12.96,Tallis Amos Group (Chris Tallis),1187,Executive Director Lec,Materials (Veh),3700
http://statistics.data.gov.uk/id/local-authority/47UD,Redditch Borough Council,11/09/2015,233858,193995,618.14,Tallis Amos Group (Chris Tallis),1187,Executive Director Lec,Materials (Veh),3700
http://statistics.data.gov.uk/id/local-authority/47UD,Redditch Borough Council,11/09/2015,233858,193995,9.81,Tallis Amos Group (Chris Tallis),1187,Executive Director Lec,Materials (Veh),3700
http://statistics.data.gov.uk/id/local-authority/47UD,Redditch Borough Council,11/09/2015,233858,193995,112.70,Tallis Amos Group (Chris Tallis),1187,Executive Director Lec,Materials (Veh),3700
http://statistics.data.gov.uk/id/local-authority/47UD,Redditch Borough Council,11/09/2015,233858,193995,12.96,Tallis Amos Group (Chris Tallis),1187,Executive Director Lec,Materials (Veh),3700
http://statistics.data.gov.uk/id/local-authority/47UD,Redditch Borough Council,11/09/2015,233858,193995,25.56,Tallis Amos Group (Chris Tallis),1187,Executive Director Lec,Materials (Veh),3700
http://statistics.data.gov.uk/id/local-authority/47UD,Redditch Borough Council,11/09/2015,233858,193995,353.48,Tallis Amos Group (Chris Tallis),1187,Crossgate Stocks,Received Not Invoiced,2096
http://statistics.data.gov.uk/id/local-authority/47UD,Redditch Borough Council,11/09/2015,233858,193995,0.00,Tallis Amos Group (Chris Tallis),1187,Crossgate Stocks,Stock Account (Cedar),1201
http://statistics.data.gov.uk/id/local-authority/47UD,Redditch Borough Council,11/09/2015,233858,193995,-38.44,Tallis Amos Group (Chris Tallis),1187,Crossgate Stocks,Stock Variance,1203
http://statistics.data.gov.uk/id/local-authority/47UD,Redditch Borough Council,11/09/2015,233858,193995,111.24,Tallis Amos Group (Chris Tallis),1187,Crossgate Stocks,Received Not Invoiced,2096
http://statistics.data.gov.uk/id/local-authority/47UD,Redditch Borough Council,11/09/2015,233858,193995,0.00,Tallis Amos Group (Chris Tallis),1187,Crossgate Stocks,Stock Account (Cedar),1201
http://statistics.data.gov.uk/id/local-authority/47UD,Redditch Borough Council,11/09/2015,233858,193995,-11.12,Tallis Amos Group (Chris Tallis),1187,Crossgate Stocks,Stock Variance,1203
http://statistics.data.gov.uk/id/local-authority/47UD,Redditch Borough Council,11/09/2015,233858,193995,186.88,Tallis Amos Group (Chris Tallis),1187,Crossgate Stocks,Received Not Invoiced,2096
http://statistics.data.gov.uk/id/local-authority/47UD,Redditch Borough Council,11/09/2015,233858,193995,0.00,Tallis Amos Group (Chris Tallis),1187,Crossgate Stocks,Stock Account (Cedar),1201
http://statistics.data.gov.uk/id/local-authority/47UD,Redditch Borough Council,11/09/2015,233858,193995,92.80,Tallis Amos Group (Chris Tallis),1187,Crossgate Stocks,Received Not Invoiced,2096
http://statistics.data.gov.uk/id/local-authority/47UD,Redditch Borough Council,11/09/2015,233858,193995,0.00,Tallis Amos Group (Chris Tallis),1187,Crossgate Stocks,Stock Account (Cedar),1201
http://statistics.data.gov.uk/id/local-authority/47UD,Redditch Borough Council,11/09/2015,235672,195285,"2,118.43",Tallis Amos Group (Chris Tallis),1187,Executive Director Lec,Materials (Veh),3700
http://statistics.data.gov.uk/id/local-authority/47UD,Redditch Borough Council,11/09/2015,235699,195074,"2,118.43",Tallis Amos Group (Chris Tallis),1187,Executive Director Lec,Materials (Veh),3700
http://statistics.data.gov.uk/id/local-authority/47UD,Redditch Borough Council,25/09/2015,237902,196074,70.60,Tallis Amos Group (Chris Tallis),1187,Crossgate Stocks,Received Not Invoiced,2096
http://statistics.data.gov.uk/id/local-authority/47UD,Redditch Borough Council,25/09/2015,237902,196074,0.00,Tallis Amos Group (Chris Tallis),1187,Crossgate Stocks,Stock Account (Cedar),1201
http://statistics.data.gov.uk/id/local-authority/47UD,Redditch Borough Council,25/09/2015,237902,196074,96.10,Tallis Amos Group (Chris Tallis),1187,Crossgate Stocks,Received Not Invoiced,2096
http://statistics.data.gov.uk/id/local-authority/47UD,Redditch Borough Council,25/09/2015,237902,196074,0.00,Tallis Amos Group (Chris Tallis),1187,Crossgate Stocks,Stock Account (Cedar),1201
http://statistics.data.gov.uk/id/local-authority/47UD,Redditch Borough Council,25/09/2015,237902,196074,175.16,Tallis Amos Group (Chris Tallis),1187,Crossgate Stocks,Received Not Invoiced,2096
http://statistics.data.gov.uk/id/local-authority/47UD,Redditch Borough Council,25/09/2015,237902,196074,0.00,Tallis Amos Group (Chris Tallis),1187,Crossgate Stocks,Stock Account (Cedar),1201
http://statistics.data.gov.uk/id/local-authority/47UD,Redditch Borough Council,25/09/2015,237902,196074,79.36,Tallis Amos Group (Chris Tallis),1187,Crossgate Stocks,Received Not Invoiced,2096
http://statistics.data.gov.uk/id/local-authority/47UD,Redditch Borough Council,25/09/2015,237902,196074,0.00,Tallis Amos Group (Chris Tallis),1187,Crossgate Stocks,Stock Account (Cedar),1201
http://statistics.data.gov.uk/id/local-authority/47UD,Redditch Borough Council,25/09/2015,237902,196074,125.15,Tallis Amos Group (Chris Tallis),1187,Crossgate Stocks,Received Not Invoiced,2096
http://statistics.data.gov.uk/id/local-authority/47UD,Redditch Borough Council,25/09/2015,237902,196074,0.00,Tallis Amos Group (Chris Tallis),1187,Crossgate Stocks,Stock Account (Cedar),1201
http://statistics.data.gov.uk/id/local-authority/47UD,Redditch Borough Council,18/09/2015,237903,196075,439.82,Tallis Amos Group (Chris Tallis),1187,Executive Director Lec,Materials (Veh),3700
http://statistics.data.gov.uk/id/local-authority/47UD,Redditch Borough Council,18/09/2015,237903,196075,81.39,Tallis Amos Group (Chris Tallis),1187,Executive Director Lec,Materials (Veh),3700
http://statistics.data.gov.uk/id/local-authority/47UD,Redditch Borough Council,04/09/2015,236499,1540,518.95,Caring People,121,Housing Revenue Account,Agency Staff,3020
http://statistics.data.gov.uk/id/local-authority/47UD,Redditch Borough Council,11/09/2015,236872,1600,569.75,Caring People,121,Housing Revenue Account,Agency Staff,3020
http://statistics.data.gov.uk/id/local-authority/47UD,Redditch Borough Council,25/09/2015,237427,1658,419.31,Caring People,121,Housing Revenue Account,Agency Staff,3020
http://statistics.data.gov.uk/id/local-authority/47UD,Redditch Borough Council,04/09/2015,231795,M/RB029829,553.54,Civica Uk Limited,1233,Exec. Director Fin. & Resource,Software Licences,4501
http://statistics.data.gov.uk/id/local-authority/47UD,Redditch Borough Council,04/09/2015,235673,M/RB031058,510.27,Civica Uk Limited,1233,Exec. Director Fin. & Resource,Software Enhancements,4502
http://statistics.data.gov.uk/id/local-authority/47UD,Redditch Borough Council,25/09/2015,237945,36970,"8,160.00",Civica Uk Limited,1233,Exec. Director Fin. & Resource,Software Enhancements,4502
http://statistics.data.gov.uk/id/local-authority/47UD,Redditch Borough Council,25/09/2015,238760,C/RB136138,"1,250.00",Civica Uk Limited,1233,Exec. Director Fin. & Resource,Software Maintenance,4503
http://statistics.data.gov.uk/id/local-authority/47UD,Redditch Borough Council,18/09/2015,238451,4140,763.40,Sutcliffe Play South West,1234,Executive Director Lec,Operational Equip- Purchase,4150
http://statistics.data.gov.uk/id/local-authority/47UD,Redditch Borough Council,30/09/2015,232851,4854,"1,345.00",Capitol Mobility Services Ltd,125,Executive Director Lec,Operation Equip -Rep & Maint,4152
http://statistics.data.gov.uk/id/local-authority/47UD,Redditch Borough Council,30/09/2015,232852,4855,920.00,Capitol Mobility Services Ltd,125,Executive Director Lec,Operation Equip -Rep & Maint,4152
http://statistics.data.gov.uk/id/local-authority/47UD,Redditch Borough Council,30/09/2015,238745,2,800.00,Sue Johnson (Nee Babb),1287,Executive Director Lec,Project Work,4733
http://statistics.data.gov.uk/id/local-authority/47UD,Redditch Borough Council,30/09/2015,238263,4659338,24.30,C P C Plc,133,Executive Director Lec,Operation Equip -Rep & Maint,4152
http://statistics.data.gov.uk/id/local-authority/47UD,Redditch Borough Council,30/09/2015,238263,4659338,5.95,C P C Plc,133,Executive Director Lec,Operation Equip -Rep & Maint,4152
http://statistics.data.gov.uk/id/local-authority/47UD,Redditch Borough Council,30/09/2015,238263,4659338,8.95,C P C Plc,133,Executive Director Lec,Operation Equip -Rep & Maint,4152
http://statistics.data.gov.uk/id/local-authority/47UD,Redditch Borough Council,30/09/2015,238263,4659338,207.75,C P C Plc,133,Executive Director Lec,Operation Equip -Rep & Maint,4152
http://statistics.data.gov.uk/id/local-authority/47UD,Redditch Borough Council,30/09/2015,238263,4659338,17.94,C P C Plc,133,Executive Director Lec,Operation Equip -Rep & Maint,4152
http://statistics.data.gov.uk/id/local-authority/47UD,Redditch Borough Council,30/09/2015,238263,4659338,282.19,C P C Plc,133,Executive Director Lec,Operational Equip- Purchase,4150
http://statistics.data.gov.uk/id/local-authority/47UD,Redditch Borough Council,30/09/2015,234582,3H122318,781.92,Eden Brown,1413,Exec. Director Prrh,Agency Staff,3020
http://statistics.data.gov.uk/id/local-authority/47UD,Redditch Borough Council,11/09/2015,237067,3H122775,434.40,Eden Brown,1413,Exec. Director Prrh,Agency Staff,3020
http://statistics.data.gov.uk/id/local-authority/47UD,Redditch Borough Council,18/09/2015,238199,3H122822,434.40,Eden Brown,1413,Exec. Director Prrh,Agency Staff,3020
http://statistics.data.gov.uk/id/local-authority/47UD,Redditch Borough Council,18/09/2015,238200,3H122853,434.40,Eden Brown,1413,Exec. Director Prrh,Agency Staff,3020
http://statistics.data.gov.uk/id/local-authority/47UD,Redditch Borough Council,18/09/2015,238538,02H077-0021-00,710.00,Zurich Insurance Company,1490,Exec. Director Fin. & Resource,Misc. Insurance,4734
http://statistics.data.gov.uk/id/local-authority/47UD,Redditch Borough Council,11/09/2015,237775,VP63913270,"6,994.54",British Telecommunications Plc,153,Chief Executive,Telephone Rental,4451
http://statistics.data.gov.uk/id/local-authority/47UD,Redditch Borough Council,11/09/2015,237775,VP63913270,666.85,British Telecommunications Plc,153,Chief Executive,Telephone Rental,4451
http://statistics.data.gov.uk/id/local-authority/47UD,Redditch Borough Council,11/09/2015,237775,VP63913270,0.62,British Telecommunications Plc,153,Exec. Director Fin. & Resource,Telephone Rental,4451
http://statistics.data.gov.uk/id/local-authority/47UD,Redditch Borough Council,11/09/2015,237775,VP63913270,1.80,British Telecommunications Plc,153,Executive Director Lec,Telephone Rental,4451
http://statistics.data.gov.uk/id/local-authority/47UD,Redditch Borough Council,11/09/2015,237775,VP63913270,0.62,British Telecommunications Plc,153,Executive Director Lec,Telephone Rental,4451
http://statistics.data.gov.uk/id/local-authority/47UD,Redditch Borough Council,11/09/2015,237775,VP63913270,1.24,British Telecommunications Plc,153,Executive Director Lec,Telephone Rental,4451
http://statistics.data.gov.uk/id/local-authority/47UD,Redditch Borough Council,11/09/2015,237775,VP63913270,4.88,British Telecommunications Plc,153,Executive Director Lec,Telephone Rental,4451
http://statistics.data.gov.uk/id/local-authority/47UD,Redditch Borough Council,11/09/2015,237775,VP63913270,0.62,British Telecommunications Plc,153,Executive Director Lec,Telephone Rental,4451
http://statistics.data.gov.uk/id/local-authority/47UD,Redditch Borough Council,11/09/2015,237775,VP63913270,64.65,British Telecommunications Plc,153,Executive Director Lec,Telephone Rental,4451
http://statistics.data.gov.uk/id/local-authority/47UD,Redditch Borough Council,11/09/2015,237775,VP63913270,0.62,British Telecommunications Plc,153,Executive Director Lec,Telephone Rental,4451
http://statistics.data.gov.uk/id/local-authority/47UD,Redditch Borough Council,11/09/2015,237775,VP63913270,82.11,British Telecommunications Plc,153,Executive Director Lec,Telephone Rental,4451
http://statistics.data.gov.uk/id/local-authority/47UD,Redditch Borough Council,11/09/2015,237775,VP63913270,"4,008.47",British Telecommunications Plc,153,Executive Director Lec,Telephone Rental,4451
http://statistics.data.gov.uk/id/local-authority/47UD,Redditch Borough Council,11/09/2015,237775,VP63913270,2.04,British Telecommunications Plc,153,Executive Director Lec,Telephone Rental,4451
http://statistics.data.gov.uk/id/local-authority/47UD,Redditch Borough Council,11/09/2015,237775,VP63913270,196.48,British Telecommunications Plc,153,Surestart Project,Telephone Rental,4451
http://statistics.data.gov.uk/id/local-authority/47UD,Redditch Borough Council,11/09/2015,237859,IN17PR15004644,"3,105.56",Whistl South West Ltd,1546,Executive Director Lec,Postage Other,4402
http://statistics.data.gov.uk/id/local-authority/47UD,Redditch Borough Council,04/09/2015,237495,155753,303.50,Bristow  & Sutor,157,Exec. Director Fin. & Resource,Agency Fee,4362
http://statistics.data.gov.uk/id/local-authority/47UD,Redditch Borough Council,04/09/2015,237495,155753,761.72,Bristow  & Sutor,157,Vat Control Account,Vat Input Tax Adjustments,2994
http://statistics.data.gov.uk/id/local-authority/47UD,Redditch Borough Council,04/09/2015,237498,156300,716.23,Bristow  & Sutor,157,Vat Control Account,Vat Input Tax Adjustments,2994
http://statistics.data.gov.uk/id/local-authority/47UD,Redditch Borough Council,18/09/2015,238503,156808,896.54,Bristow  & Sutor,157,Vat Control Account,Vat Input Tax Adjustments,2994
http://statistics.data.gov.uk/id/local-authority/47UD,Redditch Borough Council,30/09/2015,239252,157363,97.73,Bristow  & Sutor,157,Exec. Director Fin. & Resource,Agency Fee,4362
http://statistics.data.gov.uk/id/local-authority/47UD,Redditch Borough Council,30/09/2015,239252,157363,885.38,Bristow  & Sutor,157,Vat Control Account,Vat Input Tax Adjustments,2994
http://statistics.data.gov.uk/id/local-authority/47UD,Redditch Borough Council,11/09/2015,233494,MINV187984,895.43,Bottomline Technologies Ltd,162,Exec. Director Fin. & Resource,Software Maintenance,4503
http://statistics.data.gov.uk/id/local-authority/47UD,Redditch Borough Council,18/09/2015,238202,0063069207,466.80,Cromwell Group (Holdings) Ltd,1678,Crossgate Stocks,Received Not Invoiced,2096
http://statistics.data.gov.uk/id/local-authority/47UD,Redditch Borough Council,18/09/2015,238202,0063069207,0.00,Cromwell Group (Holdings) Ltd,1678,Crossgate Stocks,Stock Account (Cedar),1201
http://statistics.data.gov.uk/id/local-authority/47UD,Redditch Borough Council,25/09/2015,237855,70091669,"1,279.00",Keltruck Ltd,1694,Executive Director Lec,Materials (Veh),3700
http://statistics.data.gov.uk/id/local-authority/47UD,Redditch Borough Council,25/09/2015,237855,70091669,15.13,Keltruck Ltd,1694,Executive Director Lec,Materials (Veh),3700
http://statistics.data.gov.uk/id/local-authority/47UD,Redditch Borough Council,25/09/2015,237855,70091669,38.75,Keltruck Ltd,1694,Executive Director Lec,Materials (Veh),3700
http://statistics.data.gov.uk/id/local-authority/47UD,Redditch Borough Council,25/09/2015,237855,70091669,31.37,Keltruck Ltd,1694,Executive Director Lec,Materials (Veh),3700
http://statistics.data.gov.uk/id/local-authority/47UD,Redditch Borough Council,04/09/2015,236495,958,"1,463.95",E A Smith Fencing Contractor,1870,Rbc Balance Sheet,Contract Payments,8131
http://statistics.data.gov.uk/id/local-authority/47UD,Redditch Borough Council,18/09/2015,237232,965,"1,503.70",E A Smith Fencing Contractor,1870,Rbc Balance Sheet,Contract Payments,8131
http://statistics.data.gov.uk/id/local-authority/47UD,Redditch Borough Council,25/09/2015,238925,REDACTED PERSONAL DATA,656.00,E A Smith Fencing Contractor,1870,Internal Ins A/C,Third Party Claims,2941
http://statistics.data.gov.uk/id/local-authority/47UD,Redditch Borough Council,18/09/2015,238480,STM002125,532.69,St Thomas More First School,1874,Surestart Project,Contract Cleaning,3600
http://statistics.data.gov.uk/id/local-authority/47UD,Redditch Borough Council,18/09/2015,238480,STM002125,38.23,St Thomas More First School,1874,Surestart Project,Gas,3301
http://statistics.data.gov.uk/id/local-authority/47UD,Redditch Borough Council,18/09/2015,238480,STM002125,115.36,St Thomas More First School,1874,Surestart Project,Electricity,3300
http://statistics.data.gov.uk/id/local-authority/47UD,Redditch Borough Council,18/09/2015,238480,STM002125,42.92,St Thomas More First School,1874,Surestart Project,Water Charges,3450
http://statistics.data.gov.uk/id/local-authority/47UD,Redditch Borough Council,11/09/2015,236862,RED/356067,"1,134.00",Grafton Merchanting Gb Ltd,188,Executive Director Lec,Operation Equip -Rep & Maint,4152
http://statistics.data.gov.uk/id/local-authority/47UD,Redditch Borough Council,11/09/2015,228563,91343,"34,038.68",Wyre Forest District Council,1922,Exec. Director Prrh,Other Local Authorities,5009
http://statistics.data.gov.uk/id/local-authority/47UD,Redditch Borough Council,11/09/2015,228563,91343,"30,598.10",Wyre Forest District Council,1922,Exec. Director Prrh,Other Local Authorities,5009
http://statistics.data.gov.uk/id/local-authority/47UD,Redditch Borough Council,11/09/2015,228563,91343,"14,377.47",Wyre Forest District Council,1922,Exec. Director Prrh,Other Local Authorities,5009
http://statistics.data.gov.uk/id/local-authority/47UD,Redditch Borough Council,11/09/2015,228563,91343,"2,461.67",Wyre Forest District Council,1922,Exec. Director Prrh,Other Local Authorities,5009
http://statistics.data.gov.uk/id/local-authority/47UD,Redditch Borough Council,11/09/2015,228563,91343,"18,716.44",Wyre Forest District Council,1922,Executive Director Lec,Other Local Authorities,5009
http://statistics.data.gov.uk/id/local-authority/47UD,Redditch Borough Council,30/09/2015,226687,2203018455,"1,205.00",Worcestershire County Council,195,Housing Repairs Account,Contractors,5158
http://statistics.data.gov.uk/id/local-authority/47UD,Redditch Borough Council,04/09/2015,231286,2202047155,"1,091.43",Worcestershire County Council,195,Rbc Balance Sheet,Contract Payments,8131
http://statistics.data.gov.uk/id/local-authority/47UD,Redditch Borough Council,18/09/2015,235218,2204089433,136.54,Worcestershire County Council,195,Surestart Project,Electricity,3300
http://statistics.data.gov.uk/id/local-authority/47UD,Redditch Borough Council,18/09/2015,235218,2204089433,55.66,Worcestershire County Council,195,Surestart Project,Gas,3301
http://statistics.data.gov.uk/id/local-authority/47UD,Redditch Borough Council,18/09/2015,235218,2204089433,51.43,Worcestershire County Council,195,Surestart Project,Routine Grounds Maintenance,3200
http://statistics.data.gov.uk/id/local-authority/47UD,Redditch Borough Council,18/09/2015,235218,2204089433,80.57,Worcestershire County Council,195,Surestart Project,Refuse Collection,3602
http://statistics.data.gov.uk/id/local-authority/47UD,Redditch Borough Council,18/09/2015,235218,2204089433,222.08,Worcestershire County Council,195,Surestart Project,Water Charges,3450
http://statistics.data.gov.uk/id/local-authority/47UD,Redditch Borough Council,18/09/2015,235744,2204089579,628.88,Worcestershire County Council,195,Surestart Project,Electricity,3300
http://statistics.data.gov.uk/id/local-authority/47UD,Redditch Borough Council,18/09/2015,235744,2204089579,131.69,Worcestershire County Council,195,Surestart Project,Gas,3301
http://statistics.data.gov.uk/id/local-authority/47UD,Redditch Borough Council,18/09/2015,235744,2204089579,330.20,Worcestershire County Council,195,Surestart Project,Refuse Collection,3602
http://statistics.data.gov.uk/id/local-authority/47UD,Redditch Borough Council,18/09/2015,235744,2204089579,611.63,Worcestershire County Council,195,Surestart Project,Caretaking,3603
http://statistics.data.gov.uk/id/local-authority/47UD,Redditch Borough Council,18/09/2015,235744,2204089579,38.15,Worcestershire County Council,195,Surestart Project,Water Charges,3450
http://statistics.data.gov.uk/id/local-authority/47UD,Redditch Borough Council,11/09/2015,237797,2205002135,"10,000.00",Worcestershire County Council,195,Exec. Director Fin. & Resource,Misc. Expenses,4730
http://statistics.data.gov.uk/id/local-authority/47UD,Redditch Borough Council,30/09/2015,238226,2206048955,"1,125.00",Worcestershire County Council,195,Executive Director Lec,Project Work,4733
http://statistics.data.gov.uk/id/local-authority/47UD,Redditch Borough Council,04/09/2015,237032,1727,"1,280.00",E & J Contractors Ltd,201,Rbc Balance Sheet,Contract Payments,8131
http://statistics.data.gov.uk/id/local-authority/47UD,Redditch Borough Council,11/09/2015,237033,1737,420.00,E & J Contractors Ltd,201,Rbc Balance Sheet,Contract Payments,8131
http://statistics.data.gov.uk/id/local-authority/47UD,Redditch Borough Council,04/09/2015,237034,1728,768.00,E & J Contractors Ltd,201,Rbc Balance Sheet,Contract Payments,8131
http://statistics.data.gov.uk/id/local-authority/47UD,Redditch Borough Council,25/09/2015,235145,67056,420.00,Durolas (Contractors) Ltd,205,Executive Director Lec,Contractors,5158
http://statistics.data.gov.uk/id/local-authority/47UD,Redditch Borough Council,11/09/2015,238009,20357,"3,217.95",Dudleys Coaches Limited,209,Executive Director Lec,Misc. Expenses,4730
http://statistics.data.gov.uk/id/local-authority/47UD,Redditch Borough Council,25/09/2015,238908,EI02H077-0097,"15,074.42",Zurich Municipal,2100,Exec. Director Fin. & Resource,Misc. Insurance,4734
http://statistics.data.gov.uk/id/local-authority/47UD,Redditch Borough Council,25/09/2015,238909,F02H077-0021,"6,952.68",Zurich Municipal,2100,Exec. Director Fin. & Resource,Misc. Insurance,4734
http://statistics.data.gov.uk/id/local-authority/47UD,Redditch Borough Council,25/09/2015,238910,TER02H077-0011-,"9,636.54",Zurich Municipal,2100,Exec. Director Fin. & Resource,Misc. Insurance,4734
http://statistics.data.gov.uk/id/local-authority/47UD,Redditch Borough Council,25/09/2015,238911,QLA-02H007-0093,"438,355.83",Zurich Municipal,2100,Exec. Director Fin. & Resource,Misc. Insurance,4734
http://statistics.data.gov.uk/id/local-authority/47UD,Redditch Borough Council,18/09/2015,237451,16A,814.00,Dr L A Smallman,216,Executive Director Lec,Medical Fees,3040
http://statistics.data.gov.uk/id/local-authority/47UD,Redditch Borough Council,30/09/2015,239233,HT1028,"1,820.00",Holly Trees Day Nursery,2187,Surestart Project,Contract Cleaning,3600
http://statistics.data.gov.uk/id/local-authority/47UD,Redditch Borough Council,25/09/2015,231312,636336,650.00,No 5 Chambers,2272,Exec. Director Prrh,Legal Fees,4350
http://statistics.data.gov.uk/id/local-authority/47UD,Redditch Borough Council,11/09/2015,236675,1128,"3,063.80",Upbeat Management,2350,Executive Director Lec,Professional Fees,4352
http://statistics.data.gov.uk/id/local-authority/47UD,Redditch Borough Council,04/09/2015,235117,00357629,594.96,First Personnel Group Limited,2364,Housing Revenue Account,Agency Staff,3020
http://statistics.data.gov.uk/id/local-authority/47UD,Redditch Borough Council,18/09/2015,237670,00359265,594.96,First Personnel Group Limited,2364,Housing Revenue Account,Agency Staff,3020
http://statistics.data.gov.uk/id/local-authority/47UD,Redditch Borough Council,18/09/2015,237726,00359621,522.60,First Personnel Group Limited,2364,Housing Revenue Account,Agency Staff,3020
http://statistics.data.gov.uk/id/local-authority/47UD,Redditch Borough Council,18/09/2015,236769,0706,345.00,Abbeyclean,2367,Surestart Project,Contract Cleaning,3600
http://statistics.data.gov.uk/id/local-authority/47UD,Redditch Borough Council,18/09/2015,236769,0706,230.00,Abbeyclean,2367,Surestart Project,Contract Cleaning,3600
http://statistics.data.gov.uk/id/local-authority/47UD,Redditch Borough Council,18/09/2015,236769,0706,230.00,Abbeyclean,2367,Surestart Project,Contract Cleaning,3600
http://statistics.data.gov.uk/id/local-authority/47UD,Redditch Borough Council,18/09/2015,236769,0706,300.00,Abbeyclean,2367,Surestart Project,Contract Cleaning,3600
http://statistics.data.gov.uk/id/local-authority/47UD,Redditch Borough Council,18/09/2015,236769,0706,230.00,Abbeyclean,2367,Surestart Project,Contract Cleaning,3600
http://statistics.data.gov.uk/id/local-authority/47UD,Redditch Borough Council,18/09/2015,238486,8604,176.00,Bourne Design,2389,Surestart Project,Publicity & Promotion,4700
http://statistics.data.gov.uk/id/local-authority/47UD,Redditch Borough Council,18/09/2015,238486,8604,264.00,Bourne Design,2389,Surestart Project,Publicity & Promotion,4700
http://statistics.data.gov.uk/id/local-authority/47UD,Redditch Borough Council,11/09/2015,236864,308703231,845.00,Eurocell Building Plastics Ltd,24,Crossgate Stocks,Received Not Invoiced,2096
http://statistics.data.gov.uk/id/local-authority/47UD,Redditch Borough Council,11/09/2015,236864,308703231,0.00,Eurocell Building Plastics Ltd,24,Crossgate Stocks,Stock Account (Cedar),1201
http://statistics.data.gov.uk/id/local-authority/47UD,Redditch Borough Council,11/09/2015,236864,308703231,869.10,Eurocell Building Plastics Ltd,24,Crossgate Stocks,Received Not Invoiced,2096
http://statistics.data.gov.uk/id/local-authority/47UD,Redditch Borough Council,11/09/2015,236864,308703231,0.00,Eurocell Building Plastics Ltd,24,Crossgate Stocks,Stock Account (Cedar),1201
http://statistics.data.gov.uk/id/local-authority/47UD,Redditch Borough Council,25/09/2015,237953,308749946,"1,448.50",Eurocell Building Plastics Ltd,24,Crossgate Stocks,Received Not Invoiced,2096
http://statistics.data.gov.uk/id/local-authority/47UD,Redditch Borough Council,25/09/2015,237953,308749946,0.00,Eurocell Building Plastics Ltd,24,Crossgate Stocks,Stock Account (Cedar),1201
http://statistics.data.gov.uk/id/local-authority/47UD,Redditch Borough Council,25/09/2015,239032,308385124,76.38,Eurocell Building Plastics Ltd,24,Crossgate Stocks,Received Not Invoiced,2096
http://statistics.data.gov.uk/id/local-authority/47UD,Redditch Borough Council,25/09/2015,239032,308385124,0.00,Eurocell Building Plastics Ltd,24,Crossgate Stocks,Stock Account (Cedar),1201
http://statistics.data.gov.uk/id/local-authority/47UD,Redditch Borough Council,25/09/2015,239032,308385124,17.76,Eurocell Building Plastics Ltd,24,Crossgate Stocks,Received Not Invoiced,2096
http://statistics.data.gov.uk/id/local-authority/47UD,Redditch Borough Council,25/09/2015,239032,308385124,0.00,Eurocell Building Plastics Ltd,24,Crossgate Stocks,Stock Account (Cedar),1201
http://statistics.data.gov.uk/id/local-authority/47UD,Redditch Borough Council,25/09/2015,239032,308385124,37.20,Eurocell Building Plastics Ltd,24,Crossgate Stocks,Received Not Invoiced,2096
http://statistics.data.gov.uk/id/local-authority/47UD,Redditch Borough Council,25/09/2015,239032,308385124,0.00,Eurocell Building Plastics Ltd,24,Crossgate Stocks,Stock Account (Cedar),1201
http://statistics.data.gov.uk/id/local-authority/47UD,Redditch Borough Council,25/09/2015,239032,308385124,869.10,Eurocell Building Plastics Ltd,24,Crossgate Stocks,Received Not Invoiced,2096
http://statistics.data.gov.uk/id/local-authority/47UD,Redditch Borough Council,25/09/2015,239032,308385124,0.00,Eurocell Building Plastics Ltd,24,Crossgate Stocks,Stock Account (Cedar),1201
http://statistics.data.gov.uk/id/local-authority/47UD,Redditch Borough Council,04/09/2015,234922,12628,520.00,Fools Paradise Ltd,2400,Executive Director Lec,Professional Fees,4352
http://statistics.data.gov.uk/id/local-authority/47UD,Redditch Borough Council,04/09/2015,234922,12628,520.00,Fools Paradise Ltd,2400,Executive Director Lec,Professional Fees,4352
http://statistics.data.gov.uk/id/local-authority/47UD,Redditch Borough Council,04/09/2015,234926,12631,680.00,Fools Paradise Ltd,2400,Executive Director Lec,Professional Fees,4352
http://statistics.data.gov.uk/id/local-authority/47UD,Redditch Borough Council,11/09/2015,237784,536 131 2228,385.91,Severn Trent Water,2411,Exec. Director Fin. & Resource,Water Charges,3450
http://statistics.data.gov.uk/id/local-authority/47UD,Redditch Borough Council,11/09/2015,237784,536 131 2228,115.83,Severn Trent Water,2411,Exec. Director Fin. & Resource,Water Charges,3450
http://statistics.data.gov.uk/id/local-authority/47UD,Redditch Borough Council,11/09/2015,237784,536 131 2228,136.89,Severn Trent Water,2411,Exec. Director Fin. & Resource,Water Charges,3450
http://statistics.data.gov.uk/id/local-authority/47UD,Redditch Borough Council,11/09/2015,237784,536 131 2228,65.82,Severn Trent Water,2411,Executive Director Lec,Water Charges,3450
http://statistics.data.gov.uk/id/local-authority/47UD,Redditch Borough Council,11/09/2015,237784,536 131 2228,164.55,Severn Trent Water,2411,Executive Director Lec,Water Charges,3450
http://statistics.data.gov.uk/id/local-authority/47UD,Redditch Borough Council,11/09/2015,237784,536 131 2228,52.64,Severn Trent Water,2411,Executive Director Lec,Water Charges,3450
http://statistics.data.gov.uk/id/local-authority/47UD,Redditch Borough Council,11/09/2015,237784,536 131 2228,111.70,Severn Trent Water,2411,Executive Director Lec,Water Charges,3450
http://statistics.data.gov.uk/id/local-authority/47UD,Redditch Borough Council,11/09/2015,237784,536 131 2228,14.80,Severn Trent Water,2411,Executive Director Lec,Water Charges,3450
http://statistics.data.gov.uk/id/local-authority/47UD,Redditch Borough Council,11/09/2015,237784,536 131 2228,809.50,Severn Trent Water,2411,Housing Revenue Account,Water Charges,3450
http://statistics.data.gov.uk/id/local-authority/47UD,Redditch Borough Council,11/09/2015,237784,536 131 2228,530.88,Severn Trent Water,2411,Housing Revenue Account,Water Charges,3450
http://statistics.data.gov.uk/id/local-authority/47UD,Redditch Borough Council,11/09/2015,237784,536 131 2228,444.27,Severn Trent Water,2411,Housing Revenue Account,Water Charges,3450
http://statistics.data.gov.uk/id/local-authority/47UD,Redditch Borough Council,11/09/2015,237784,536 131 2228,"1,067.42",Severn Trent Water,2411,Housing Revenue Account,Water Charges,3450
http://statistics.data.gov.uk/id/local-authority/47UD,Redditch Borough Council,11/09/2015,237784,536 131 2228,444.27,Severn Trent Water,2411,Housing Revenue Account,Water Charges,3450
http://statistics.data.gov.uk/id/local-authority/47UD,Redditch Borough Council,11/09/2015,237784,536 131 2228,485.70,Severn Trent Water,2411,Housing Revenue Account,Water Charges,3450
http://statistics.data.gov.uk/id/local-authority/47UD,Redditch Borough Council,11/09/2015,237784,536 131 2228,700.27,Severn Trent Water,2411,Housing Revenue Account,Water Charges,3450
http://statistics.data.gov.uk/id/local-authority/47UD,Redditch Borough Council,11/09/2015,237784,536 131 2228,380.26,Severn Trent Water,2411,Housing Revenue Account,Water Charges,3450
http://statistics.data.gov.uk/id/local-authority/47UD,Redditch Borough Council,11/09/2015,237784,536 131 2228,809.50,Severn Trent Water,2411,Housing Revenue Account,Water Charges,3450
http://statistics.data.gov.uk/id/local-authority/47UD,Redditch Borough Council,11/09/2015,237784,536 131 2228,400.96,Severn Trent Water,2411,Housing Revenue Account,Water Charges,3450
http://statistics.data.gov.uk/id/local-authority/47UD,Redditch Borough Council,11/09/2015,237784,536 131 2228,303.08,Severn Trent Water,2411,Housing Revenue Account,Water Charges,3450
http://statistics.data.gov.uk/id/local-authority/47UD,Redditch Borough Council,11/09/2015,237784,536 131 2228,"1,012.80",Severn Trent Water,2411,Housing Revenue Account,Water Charges,3450
http://statistics.data.gov.uk/id/local-authority/47UD,Redditch Borough Council,11/09/2015,237784,536 131 2228,"1,012.80",Severn Trent Water,2411,Housing Revenue Account,Water Charges,3450
http://statistics.data.gov.uk/id/local-authority/47UD,Redditch Borough Council,11/09/2015,237784,536 131 2228,"1,012.80",Severn Trent Water,2411,Housing Revenue Account,Water Charges,3450
http://statistics.data.gov.uk/id/local-authority/47UD,Redditch Borough Council,11/09/2015,237784,536 131 2228,785.02,Severn Trent Water,2411,Housing Revenue Account,Water Charges,3450
http://statistics.data.gov.uk/id/local-authority/47UD,Redditch Borough Council,11/09/2015,237784,536 131 2228,272.96,Severn Trent Water,2411,Housing Revenue Account,Water Charges,3450
http://statistics.data.gov.uk/id/local-authority/47UD,Redditch Borough Council,11/09/2015,237784,536 131 2228,367.09,Severn Trent Water,2411,Exec. Director Fin. & Resource,Water Charges,3450
http://statistics.data.gov.uk/id/local-authority/47UD,Redditch Borough Council,11/09/2015,237784,536 131 2228,11.94,Severn Trent Water,2411,Housing Revenue Account,Water Charges,3450
http://statistics.data.gov.uk/id/local-authority/47UD,Redditch Borough Council,11/09/2015,237784,536 131 2228,193.53,Severn Trent Water,2411,Exec. Director Fin. & Resource,Water Charges,3450
http://statistics.data.gov.uk/id/local-authority/47UD,Redditch Borough Council,11/09/2015,237784,536 131 2228,70.74,Severn Trent Water,2411,Exec. Director Prrh,Water Charges,3450
http://statistics.data.gov.uk/id/local-authority/47UD,Redditch Borough Council,11/09/2015,237784,536 131 2228,112.55,Severn Trent Water,2411,Exec. Director Prrh,Water Charges,3450
http://statistics.data.gov.uk/id/local-authority/47UD,Redditch Borough Council,11/09/2015,237784,536 131 2228,127.68,Severn Trent Water,2411,Exec. Director Prrh,Water Charges,3450
http://statistics.data.gov.uk/id/local-authority/47UD,Redditch Borough Council,11/09/2015,237784,536 131 2228,78.98,Severn Trent Water,2411,Exec. Director Prrh,Water Charges,3450
http://statistics.data.gov.uk/id/local-authority/47UD,Redditch Borough Council,11/09/2015,237784,536 131 2228,68.11,Severn Trent Water,2411,Exec. Director Prrh,Water Charges,3450
http://statistics.data.gov.uk/id/local-authority/47UD,Redditch Borough Council,11/09/2015,237784,536 131 2228,72.06,Severn Trent Water,2411,Exec. Director Prrh,Water Charges,3450
http://statistics.data.gov.uk/id/local-authority/47UD,Redditch Borough Council,11/09/2015,237784,536 131 2228,108.59,Severn Trent Water,2411,Exec. Director Prrh,Water Charges,3450
http://statistics.data.gov.uk/id/local-authority/47UD,Redditch Borough Council,11/09/2015,237784,536 131 2228,134.59,Severn Trent Water,2411,Exec. Director Prrh,Water Charges,3450
http://statistics.data.gov.uk/id/local-authority/47UD,Redditch Borough Council,11/09/2015,237784,536 131 2228,98.07,Severn Trent Water,2411,Exec. Director Prrh,Water Charges,3450
http://statistics.data.gov.uk/id/local-authority/47UD,Redditch Borough Council,11/09/2015,237784,536 131 2228,109.91,Severn Trent Water,2411,Exec. Director Prrh,Water Charges,3450
http://statistics.data.gov.uk/id/local-authority/47UD,Redditch Borough Council,11/09/2015,237784,536 131 2228,103.33,Severn Trent Water,2411,Exec. Director Prrh,Water Charges,3450
http://statistics.data.gov.uk/id/local-authority/47UD,Redditch Borough Council,11/09/2015,237784,536 131 2228,109.91,Severn Trent Water,2411,Exec. Director Prrh,Water Charges,3450
http://statistics.data.gov.uk/id/local-authority/47UD,Redditch Borough Council,11/09/2015,237784,536 131 2228,109.91,Severn Trent Water,2411,Exec. Director Prrh,Water Charges,3450
http://statistics.data.gov.uk/id/local-authority/47UD,Redditch Borough Council,11/09/2015,237784,536 131 2228,119.45,Severn Trent Water,2411,Exec. Director Prrh,Water Charges,3450
http://statistics.data.gov.uk/id/local-authority/47UD,Redditch Borough Council,11/09/2015,237784,536 131 2228,133.27,Severn Trent Water,2411,Exec. Director Prrh,Water Charges,3450
http://statistics.data.gov.uk/id/local-authority/47UD,Redditch Borough Council,11/09/2015,237784,536 131 2228,83.58,Severn Trent Water,2411,Exec. Director Prrh,Water Charges,3450
http://statistics.data.gov.uk/id/local-authority/47UD,Redditch Borough Council,11/09/2015,237784,536 131 2228,83.58,Severn Trent Water,2411,Exec. Director Prrh,Water Charges,3450
http://statistics.data.gov.uk/id/local-authority/47UD,Redditch Borough Council,11/09/2015,237784,536 131 2228,83.58,Severn Trent Water,2411,Exec. Director Prrh,Water Charges,3450
http://statistics.data.gov.uk/id/local-authority/47UD,Redditch Borough Council,11/09/2015,237784,536 131 2228,83.58,Severn Trent Water,2411,Exec. Director Prrh,Water Charges,3450
http://statistics.data.gov.uk/id/local-authority/47UD,Redditch Borough Council,11/09/2015,237784,536 131 2228,105.96,Severn Trent Water,2411,Exec. Director Prrh,Water Charges,3450
http://statistics.data.gov.uk/id/local-authority/47UD,Redditch Borough Council,11/09/2015,237784,536 131 2228,83.58,Severn Trent Water,2411,Exec. Director Prrh,Water Charges,3450
http://statistics.data.gov.uk/id/local-authority/47UD,Redditch Borough Council,11/09/2015,237784,536 131 2228,37.83,Severn Trent Water,2411,Exec. Director Prrh,Water Charges,3450
http://statistics.data.gov.uk/id/local-authority/47UD,Redditch Borough Council,11/09/2015,237784,536 131 2228,37.83,Severn Trent Water,2411,Exec. Director Prrh,Water Charges,3450
http://statistics.data.gov.uk/id/local-authority/47UD,Redditch Borough Council,11/09/2015,237784,536 131 2228,65.16,Severn Trent Water,2411,Exec. Director Prrh,Water Charges,3450
http://statistics.data.gov.uk/id/local-authority/47UD,Redditch Borough Council,11/09/2015,237784,536 131 2228,82.27,Severn Trent Water,2411,Exec. Director Prrh,Water Charges,3450
http://statistics.data.gov.uk/id/local-authority/47UD,Redditch Borough Council,11/09/2015,237784,536 131 2228,36.52,Severn Trent Water,2411,Exec. Director Prrh,Water Charges,3450
http://statistics.data.gov.uk/id/local-authority/47UD,Redditch Borough Council,11/09/2015,237784,536 131 2228,36.52,Severn Trent Water,2411,Exec. Director Prrh,Water Charges,3450
http://statistics.data.gov.uk/id/local-authority/47UD,Redditch Borough Council,11/09/2015,237784,536 131 2228,36.52,Severn Trent Water,2411,Exec. Director Prrh,Water Charges,3450
http://statistics.data.gov.uk/id/local-authority/47UD,Redditch Borough Council,11/09/2015,237784,536 131 2228,84.89,Severn Trent Water,2411,Exec. Director Prrh,Water Charges,3450
http://statistics.data.gov.uk/id/local-authority/47UD,Redditch Borough Council,11/09/2015,237784,536 131 2228,105.96,Severn Trent Water,2411,Exec. Director Prrh,Water Charges,3450
http://statistics.data.gov.uk/id/local-authority/47UD,Redditch Borough Council,11/09/2015,237784,536 131 2228,84.89,Severn Trent Water,2411,Exec. Director Prrh,Water Charges,3450
http://statistics.data.gov.uk/id/local-authority/47UD,Redditch Borough Council,11/09/2015,237784,536 131 2228,65.16,Severn Trent Water,2411,Exec. Director Prrh,Water Charges,3450
http://statistics.data.gov.uk/id/local-authority/47UD,Redditch Borough Council,11/09/2015,237784,536 131 2228,105.96,Severn Trent Water,2411,Exec. Director Prrh,Water Charges,3450
http://statistics.data.gov.uk/id/local-authority/47UD,Redditch Borough Council,11/09/2015,237784,536 131 2228,105.96,Severn Trent Water,2411,Exec. Director Prrh,Water Charges,3450
http://statistics.data.gov.uk/id/local-authority/47UD,Redditch Borough Council,11/09/2015,237784,536 131 2228,82.27,Severn Trent Water,2411,Exec. Director Prrh,Water Charges,3450
http://statistics.data.gov.uk/id/local-authority/47UD,Redditch Borough Council,11/09/2015,237784,536 131 2228,68.11,Severn Trent Water,2411,Exec. Director Prrh,Water Charges,3450
http://statistics.data.gov.uk/id/local-authority/47UD,Redditch Borough Council,11/09/2015,237784,536 131 2228,62.52,Severn Trent Water,2411,Exec. Director Prrh,Water Charges,3450
http://statistics.data.gov.uk/id/local-authority/47UD,Redditch Borough Council,11/09/2015,237784,536 131 2228,73.38,Severn Trent Water,2411,Exec. Director Prrh,Water Charges,3450
http://statistics.data.gov.uk/id/local-authority/47UD,Redditch Borough Council,11/09/2015,237784,536 131 2228,247.14,Severn Trent Water,2411,Executive Director Lec,Water Charges,3450
http://statistics.data.gov.uk/id/local-authority/47UD,Redditch Borough Council,25/09/2015,238751,337 005 8531,5.21,Severn Trent Water,2411,Exec. Director Fin. & Resource,Water Charges,3450
http://statistics.data.gov.uk/id/local-authority/47UD,Redditch Borough Council,25/09/2015,238751,337 005 8531,"1,188.24",Severn Trent Water,2411,Executive Director Lec,Water Charges,3450
http://statistics.data.gov.uk/id/local-authority/47UD,Redditch Borough Council,25/09/2015,238751,337 005 8531,54.63,Severn Trent Water,2411,Exec. Director Fin. & Resource,Water Charges,3450
http://statistics.data.gov.uk/id/local-authority/47UD,Redditch Borough Council,25/09/2015,238751,337 005 8531,102.55,Severn Trent Water,2411,Exec. Director Fin. & Resource,Water Charges,3450
http://statistics.data.gov.uk/id/local-authority/47UD,Redditch Borough Council,25/09/2015,238751,337 005 8531,-161.12,Severn Trent Water,2411,Exec. Director Fin. & Resource,Water Charges,3450
http://statistics.data.gov.uk/id/local-authority/47UD,Redditch Borough Council,25/09/2015,238751,337 005 8531,"1,603.13",Severn Trent Water,2411,Exec. Director Prrh,Water Charges,3450
http://statistics.data.gov.uk/id/local-authority/47UD,Redditch Borough Council,25/09/2015,238751,337 005 8531,56.31,Severn Trent Water,2411,Executive Director Lec,Water Charges,3450
http://statistics.data.gov.uk/id/local-authority/47UD,Redditch Borough Council,25/09/2015,238751,337 005 8531,250.01,Severn Trent Water,2411,Executive Director Lec,Water Charges,3450
http://statistics.data.gov.uk/id/local-authority/47UD,Redditch Borough Council,25/09/2015,238751,337 005 8531,143.91,Severn Trent Water,2411,Executive Director Lec,Water Charges,3450
http://statistics.data.gov.uk/id/local-authority/47UD,Redditch Borough Council,25/09/2015,238751,337 005 8531,79.32,Severn Trent Water,2411,Housing Revenue Account,Water Charges,3450
http://statistics.data.gov.uk/id/local-authority/47UD,Redditch Borough Council,25/09/2015,238751,337 005 8531,195.82,Severn Trent Water,2411,Exec. Director Fin. & Resource,Water Charges,3450
http://statistics.data.gov.uk/id/local-authority/47UD,Redditch Borough Council,25/09/2015,238751,337 005 8531,373.78,Severn Trent Water,2411,Executive Director Lec,Water Charges,3450
http://statistics.data.gov.uk/id/local-authority/47UD,Redditch Borough Council,25/09/2015,238751,337 005 8531,805.35,Severn Trent Water,2411,Executive Director Lec,Water Charges,3450
http://statistics.data.gov.uk/id/local-authority/47UD,Redditch Borough Council,25/09/2015,238751,337 005 8531,54.63,Severn Trent Water,2411,Exec. Director Prrh,Water Charges,3450
http://statistics.data.gov.uk/id/local-authority/47UD,Redditch Borough Council,25/09/2015,238751,337 005 8531,284.77,Severn Trent Water,2411,Executive Director Lec,Water Charges,3450
http://statistics.data.gov.uk/id/local-authority/47UD,Redditch Borough Council,25/09/2015,238751,337 005 8531,52.75,Severn Trent Water,2411,Exec. Director Fin. & Resource,Water Charges,3450
http://statistics.data.gov.uk/id/local-authority/47UD,Redditch Borough Council,25/09/2015,238751,337 005 8531,"1,643.95",Severn Trent Water,2411,Executive Director Lec,Water Charges,3450
http://statistics.data.gov.uk/id/local-authority/47UD,Redditch Borough Council,25/09/2015,238751,337 005 8531,76.50,Severn Trent Water,2411,Exec. Director Fin. & Resource,Water Charges,3450
http://statistics.data.gov.uk/id/local-authority/47UD,Redditch Borough Council,25/09/2015,238751,337 005 8531,818.12,Severn Trent Water,2411,Exec. Director Fin. & Resource,Water Charges,3450
http://statistics.data.gov.uk/id/local-authority/47UD,Redditch Borough Council,25/09/2015,238751,337 005 8531,53.07,Severn Trent Water,2411,Executive Director Lec,Water Charges,3450
http://statistics.data.gov.uk/id/local-authority/47UD,Redditch Borough Council,25/09/2015,238751,337 005 8531,121.60,Severn Trent Water,2411,Executive Director Lec,Water Charges,3450
http://statistics.data.gov.uk/id/local-authority/47UD,Redditch Borough Council,25/09/2015,238751,337 005 8531,232.33,Severn Trent Water,2411,Executive Director Lec,Water Charges,3450
http://statistics.data.gov.uk/id/local-authority/47UD,Redditch Borough Council,25/09/2015,238751,337 005 8531,757.62,Severn Trent Water,2411,Executive Director Lec,Water Charges,3450
http://statistics.data.gov.uk/id/local-authority/47UD,Redditch Borough Council,25/09/2015,238751,337 005 8531,-0.50,Severn Trent Water,2411,Exec. Director Fin. & Resource,Water Charges,3450
http://statistics.data.gov.uk/id/local-authority/47UD,Redditch Borough Council,25/09/2015,238752,292110588,691.58,Severn Trent Water,2411,Housing Revenue Account,Water Charges,3450
http://statistics.data.gov.uk/id/local-authority/47UD,Redditch Borough Council,04/09/2015,236843,KP00110733,"15,511.23",Western Power Distribution (Wpd),2438,Rbc Balance Sheet,Contract Payments,8131
http://statistics.data.gov.uk/id/local-authority/47UD,Redditch Borough Council,18/09/2015,233509,11363,"3,000.00",Cooper Mobile Services Limited,2549,Executive Director Lec,Contract Hire,3850
http://statistics.data.gov.uk/id/local-authority/47UD,Redditch Borough Council,11/09/2015,234212,11426,"2,100.00",Cooper Mobile Services Limited,2549,Executive Director Lec,Contract Hire,3850
http://statistics.data.gov.uk/id/local-authority/47UD,Redditch Borough Council,04/09/2015,236054,8296,"11,247.62",M & D Carpentry & Bldng Contractor Ltd,265,Rbc Balance Sheet,Dlo,8130
http://statistics.data.gov.uk/id/local-authority/47UD,Redditch Borough Council,11/09/2015,236701,8303,574.78,M & D Carpentry & Bldng Contractor Ltd,265,Housing Repairs Account,Contractors,5158
http://statistics.data.gov.uk/id/local-authority/47UD,Redditch Borough Council,11/09/2015,236701,8303,99.32,M & D Carpentry & Bldng Contractor Ltd,265,Rbc Balance Sheet,Contract Payments,8131
http://statistics.data.gov.uk/id/local-authority/47UD,Redditch Borough Council,11/09/2015,236702,8304,"2,670.00",M & D Carpentry & Bldng Contractor Ltd,265,Rbc Balance Sheet,Contract Payments,8131
http://statistics.data.gov.uk/id/local-authority/47UD,Redditch Borough Council,11/09/2015,236840,8309,"1,988.80",M & D Carpentry & Bldng Contractor Ltd,265,Rbc Balance Sheet,Contract Payments,8131
http://statistics.data.gov.uk/id/local-authority/47UD,Redditch Borough Council,11/09/2015,236846,8311,"15,825.97",M & D Carpentry & Bldng Contractor Ltd,265,Rbc Balance Sheet,Contract Payments,8131
http://statistics.data.gov.uk/id/local-authority/47UD,Redditch Borough Council,11/09/2015,236847,8307,"1,342.02",M & D Carpentry & Bldng Contractor Ltd,265,Housing Repairs Account,Contractors,5158
http://statistics.data.gov.uk/id/local-authority/47UD,Redditch Borough Council,11/09/2015,236847,8307,"1,518.72",M & D Carpentry & Bldng Contractor Ltd,265,Rbc Balance Sheet,Contract Payments,8131
http://statistics.data.gov.uk/id/local-authority/47UD,Redditch Borough Council,11/09/2015,236873,8306,"2,772.17",M & D Carpentry & Bldng Contractor Ltd,265,Housing Repairs Account,Contractors,5158
http://statistics.data.gov.uk/id/local-authority/47UD,Redditch Borough Council,11/09/2015,237104,8312,745.28,M & D Carpentry & Bldng Contractor Ltd,265,Housing Repairs Account,Contractors,5158
http://statistics.data.gov.uk/id/local-authority/47UD,Redditch Borough Council,11/09/2015,237188,8314,885.52,M & D Carpentry & Bldng Contractor Ltd,265,Housing Repairs Account,Contractors,5158
http://statistics.data.gov.uk/id/local-authority/47UD,Redditch Borough Council,11/09/2015,237188,8314,473.65,M & D Carpentry & Bldng Contractor Ltd,265,Rbc Balance Sheet,Contract Payments,8131
http://statistics.data.gov.uk/id/local-authority/47UD,Redditch Borough Council,18/09/2015,237707,8321,"2,205.84",M & D Carpentry & Bldng Contractor Ltd,265,Rbc Balance Sheet,Contract Payments,8131
http://statistics.data.gov.uk/id/local-authority/47UD,Redditch Borough Council,18/09/2015,237708,8320,941.92,M & D Carpentry & Bldng Contractor Ltd,265,Rbc Balance Sheet,Contract Payments,8131
http://statistics.data.gov.uk/id/local-authority/47UD,Redditch Borough Council,18/09/2015,237709,8318,"1,262.88",M & D Carpentry & Bldng Contractor Ltd,265,Rbc Balance Sheet,Contract Payments,8131
http://statistics.data.gov.uk/id/local-authority/47UD,Redditch Borough Council,18/09/2015,237710,8317,"2,205.84",M & D Carpentry & Bldng Contractor Ltd,265,Rbc Balance Sheet,Contract Payments,8131
http://statistics.data.gov.uk/id/local-authority/47UD,Redditch Borough Council,18/09/2015,237711,8322,"10,257.98",M & D Carpentry & Bldng Contractor Ltd,265,Rbc Balance Sheet,Contract Payments,8131
http://statistics.data.gov.uk/id/local-authority/47UD,Redditch Borough Council,25/09/2015,237712,8323,"5,164.06",M & D Carpentry & Bldng Contractor Ltd,265,Rbc Balance Sheet,Contract Payments,8131
http://statistics.data.gov.uk/id/local-authority/47UD,Redditch Borough Council,25/09/2015,237713,8325,"5,020.18",M & D Carpentry & Bldng Contractor Ltd,265,Rbc Balance Sheet,Dlo,8130
http://statistics.data.gov.uk/id/local-authority/47UD,Redditch Borough Council,18/09/2015,237714,8324,"7,805.38",M & D Carpentry & Bldng Contractor Ltd,265,Rbc Balance Sheet,Contract Payments,8131
http://statistics.data.gov.uk/id/local-authority/47UD,Redditch Borough Council,25/09/2015,238230,8333,"1,450.00",M & D Carpentry & Bldng Contractor Ltd,265,Housing Repairs Account,Repairs In House Team,3107
http://statistics.data.gov.uk/id/local-authority/47UD,Redditch Borough Council,25/09/2015,238236,8332,"1,480.00",M & D Carpentry & Bldng Contractor Ltd,265,Housing Repairs Account,Repairs In House Team,3107
http://statistics.data.gov.uk/id/local-authority/47UD,Redditch Borough Council,25/09/2015,238237,8331,"1,120.00",M & D Carpentry & Bldng Contractor Ltd,265,Housing Repairs Account,Repairs In House Team,3107
http://statistics.data.gov.uk/id/local-authority/47UD,Redditch Borough Council,25/09/2015,238238,8330,560.00,M & D Carpentry & Bldng Contractor Ltd,265,Housing Repairs Account,Repairs In House Team,3107
http://statistics.data.gov.uk/id/local-authority/47UD,Redditch Borough Council,25/09/2015,238239,8329,700.00,M & D Carpentry & Bldng Contractor Ltd,265,Housing Repairs Account,Repairs In House Team,3107
http://statistics.data.gov.uk/id/local-authority/47UD,Redditch Borough Council,30/09/2015,238396,8338,780.16,M & D Carpentry & Bldng Contractor Ltd,265,Housing Repairs Account,Contractors,5158
http://statistics.data.gov.uk/id/local-authority/47UD,Redditch Borough Council,30/09/2015,238399,8336,"1,067.76",M & D Carpentry & Bldng Contractor Ltd,265,Housing Repairs Account,Contractors,5158
http://statistics.data.gov.uk/id/local-authority/47UD,Redditch Borough Council,18/09/2015,238478,CA-001790,"-1,048.60",Terry Group Ltd,2659,Executive Director Lec,Administration Fee,6364
http://statistics.data.gov.uk/id/local-authority/47UD,Redditch Borough Council,18/09/2015,238478,CA-001790,"11,154.60",Terry Group Ltd,2659,Rbc Balance Sheet,Disabled Facilities Grant,8701
http://statistics.data.gov.uk/id/local-authority/47UD,Redditch Borough Council,04/09/2015,236121,11RW,"2,833.00",Liftability Limited,272,Rbc Balance Sheet,Contract Payments,8131
http://statistics.data.gov.uk/id/local-authority/47UD,Redditch Borough Council,04/09/2015,236551,86,"1,100.00",Animal Mania,2902,Executive Director Lec,Professional Fees,4352
http://statistics.data.gov.uk/id/local-authority/47UD,Redditch Borough Council,04/09/2015,236552,87,440.00,Animal Mania,2902,Executive Director Lec,Professional Fees,4352
http://statistics.data.gov.uk/id/local-authority/47UD,Redditch Borough Council,11/09/2015,235370,65990/91027595,500.00,Mps (Uk) Limited (Mitie),2948,Housing Repairs Account,Contractors,5158
http://statistics.data.gov.uk/id/local-authority/47UD,Redditch Borough Council,25/09/2015,237780,30296,"22,529.93",Robert Bruce Construction  Limited,2950,Rbc Balance Sheet,Contract Payments,8131
http://statistics.data.gov.uk/id/local-authority/47UD,Redditch Borough Council,11/09/2015,234201,20224,81.60,B&S Chains Midland Limited Playground Spares,2995,Executive Director Lec,Recreational Equip -Reps/Maint,4102
http://statistics.data.gov.uk/id/local-authority/47UD,Redditch Borough Council,11/09/2015,234201,20224,87.00,B&S Chains Midland Limited Playground Spares,2995,Executive Director Lec,Recreational Equip -Reps/Maint,4102
http://statistics.data.gov.uk/id/local-authority/47UD,Redditch Borough Council,11/09/2015,234201,20224,610.00,B&S Chains Midland Limited Playground Spares,2995,Executive Director Lec,Recreational Equip -Reps/Maint,4102
http://statistics.data.gov.uk/id/local-authority/47UD,Redditch Borough Council,11/09/2015,234201,20224,145.00,B&S Chains Midland Limited Playground Spares,2995,Executive Director Lec,Recreational Equip -Reps/Maint,4102
http://statistics.data.gov.uk/id/local-authority/47UD,Redditch Borough Council,11/09/2015,234201,20224,113.70,B&S Chains Midland Limited Playground Spares,2995,Executive Director Lec,Recreational Equip -Reps/Maint,4102
http://statistics.data.gov.uk/id/local-authority/47UD,Redditch Borough Council,11/09/2015,235675,,113.00,Jack Hobbs Plumbing & Heating Suppl,306,Crossgate Stocks,Stock Account (Cedar),1201
http://statistics.data.gov.uk/id/local-authority/47UD,Redditch Borough Council,11/09/2015,235675,,191.00,Jack Hobbs Plumbing & Heating Suppl,306,Crossgate Stocks,Stock Account (Cedar),1201
http://statistics.data.gov.uk/id/local-authority/47UD,Redditch Borough Council,11/09/2015,235675,,70.40,Jack Hobbs Plumbing & Heating Suppl,306,Crossgate Stocks,Stock Account (Cedar),1201
http://statistics.data.gov.uk/id/local-authority/47UD,Redditch Borough Council,11/09/2015,235675,,120.50,Jack Hobbs Plumbing & Heating Suppl,306,Crossgate Stocks,Stock Account (Cedar),1201
http://statistics.data.gov.uk/id/local-authority/47UD,Redditch Borough Council,04/09/2015,236689,GI756812,424.50,Jack Hobbs Plumbing & Heating Suppl,306,Crossgate Stocks,Received Not Invoiced,2096
http://statistics.data.gov.uk/id/local-authority/47UD,Redditch Borough Council,04/09/2015,236689,GI756812,0.00,Jack Hobbs Plumbing & Heating Suppl,306,Crossgate Stocks,Stock Account (Cedar),1201
http://statistics.data.gov.uk/id/local-authority/47UD,Redditch Borough Council,11/09/2015,232818,50780,"2,250.00",Spa Gas Ltd,3207,Rbc Balance Sheet,Contract Payments,8131
http://statistics.data.gov.uk/id/local-authority/47UD,Redditch Borough Council,30/09/2015,237779,A9980110223,602.91,Ats Euromaster Ltd,3306,Executive Director Lec,Tyres,3753
http://statistics.data.gov.uk/id/local-authority/47UD,Redditch Borough Council,30/09/2015,237779,A9980110223,291.14,Ats Euromaster Ltd,3306,Executive Director Lec,Tyres,3753
http://statistics.data.gov.uk/id/local-authority/47UD,Redditch Borough Council,30/09/2015,237779,A9980110223,"1,363.38",Ats Euromaster Ltd,3306,Executive Director Lec,Tyres,3753
http://statistics.data.gov.uk/id/local-authority/47UD,Redditch Borough Council,30/09/2015,237779,A9980110223,92.86,Ats Euromaster Ltd,3306,Executive Director Lec,Tyres,3753
http://statistics.data.gov.uk/id/local-authority/47UD,Redditch Borough Council,30/09/2015,237779,A9980110223,"1,858.66",Ats Euromaster Ltd,3306,Executive Director Lec,Tyres,3753
http://statistics.data.gov.uk/id/local-authority/47UD,Redditch Borough Council,30/09/2015,237779,A9980110223,138.80,Ats Euromaster Ltd,3306,Housing Repairs Account,Tyres,3753
http://statistics.data.gov.uk/id/local-authority/47UD,Redditch Borough Council,30/09/2015,237779,A9980110223,291.92,Ats Euromaster Ltd,3306,Housing Repairs Account,Tyres,3753
http://statistics.data.gov.uk/id/local-authority/47UD,Redditch Borough Council,30/09/2015,238454,BD7258,765.00,Direct Publicity Ltd,3320,Executive Director Lec,Advertising,4735
http://statistics.data.gov.uk/id/local-authority/47UD,Redditch Borough Council,18/09/2015,237992,9463,800.00,Shaw Loos Ltd,335,Executive Director Lec,Operation Equip- Hire & Rental,4151
http://statistics.data.gov.uk/id/local-authority/47UD,Redditch Borough Council,30/09/2015,235087,325195,17.00,Scarab Sweepers Limited,342,Executive Director Lec,Materials (Veh),3700
http://statistics.data.gov.uk/id/local-authority/47UD,Redditch Borough Council,30/09/2015,235087,325195,240.38,Scarab Sweepers Limited,342,Executive Director Lec,Materials (Veh),3700
http://statistics.data.gov.uk/id/local-authority/47UD,Redditch Borough Council,30/09/2015,235087,325195,3.52,Scarab Sweepers Limited,342,Executive Director Lec,Materials (Veh),3700
http://statistics.data.gov.uk/id/local-authority/47UD,Redditch Borough Council,30/09/2015,235087,325195,49.90,Scarab Sweepers Limited,342,Executive Director Lec,Materials (Veh),3700
http://statistics.data.gov.uk/id/local-authority/47UD,Redditch Borough Council,30/09/2015,235087,325195,190.70,Scarab Sweepers Limited,342,Executive Director Lec,Materials (Veh),3700
http://statistics.data.gov.uk/id/local-authority/47UD,Redditch Borough Council,30/09/2015,237253,327073,"4,146.41",Scarab Sweepers Limited,342,Executive Director Lec,Materials (Veh),3700
http://statistics.data.gov.uk/id/local-authority/47UD,Redditch Borough Council,30/09/2015,237253,327073,64.00,Scarab Sweepers Limited,342,Executive Director Lec,Materials (Veh),3700
http://statistics.data.gov.uk/id/local-authority/47UD,Redditch Borough Council,30/09/2015,238205,327387,294.20,Scarab Sweepers Limited,342,Executive Director Lec,Materials (Veh),3700
http://statistics.data.gov.uk/id/local-authority/47UD,Redditch Borough Council,30/09/2015,238205,327387,266.12,Scarab Sweepers Limited,342,Executive Director Lec,Materials (Veh),3700
http://statistics.data.gov.uk/id/local-authority/47UD,Redditch Borough Council,30/09/2015,238205,327387,34.18,Scarab Sweepers Limited,342,Executive Director Lec,Materials (Veh),3700
http://statistics.data.gov.uk/id/local-authority/47UD,Redditch Borough Council,30/09/2015,238205,327387,34.18,Scarab Sweepers Limited,342,Executive Director Lec,Materials (Veh),3700
http://statistics.data.gov.uk/id/local-authority/47UD,Redditch Borough Council,30/09/2015,238205,327387,40.72,Scarab Sweepers Limited,342,Executive Director Lec,Materials (Veh),3700
http://statistics.data.gov.uk/id/local-authority/47UD,Redditch Borough Council,30/09/2015,238205,327387,30.50,Scarab Sweepers Limited,342,Executive Director Lec,Materials (Veh),3700
http://statistics.data.gov.uk/id/local-authority/47UD,Redditch Borough Council,18/09/2015,235577,50104389,"17,882.55",Guest Trucks,35360,Rbc Balance Sheet,Vehicles - Purchase,8150
http://statistics.data.gov.uk/id/local-authority/47UD,Redditch Borough Council,18/09/2015,235577,50104389,-300.00,Guest Trucks,35360,Rbc Balance Sheet,Vehicles - Purchase,8150
http://statistics.data.gov.uk/id/local-authority/47UD,Redditch Borough Council,18/09/2015,235579,50104390,"17,882.55",Guest Trucks,35360,Rbc Balance Sheet,Vehicles - Purchase,8150
http://statistics.data.gov.uk/id/local-authority/47UD,Redditch Borough Council,18/09/2015,235579,50104390,-300.00,Guest Trucks,35360,Rbc Balance Sheet,Vehicles - Purchase,8150
http://statistics.data.gov.uk/id/local-authority/47UD,Redditch Borough Council,18/09/2015,235580,50104391,"17,882.55",Guest Trucks,35360,Rbc Balance Sheet,Vehicles - Purchase,8150
http://statistics.data.gov.uk/id/local-authority/47UD,Redditch Borough Council,18/09/2015,235580,50104391,-300.00,Guest Trucks,35360,Rbc Balance Sheet,Vehicles - Purchase,8150
http://statistics.data.gov.uk/id/local-authority/47UD,Redditch Borough Council,18/09/2015,235583,50104392,"16,820.55",Guest Trucks,35360,Rbc Balance Sheet,Vehicles - Purchase,8150
http://statistics.data.gov.uk/id/local-authority/47UD,Redditch Borough Council,18/09/2015,235583,50104392,-300.00,Guest Trucks,35360,Rbc Balance Sheet,Vehicles - Purchase,8150
http://statistics.data.gov.uk/id/local-authority/47UD,Redditch Borough Council,18/09/2015,235586,50104393,"16,820.55",Guest Trucks,35360,Rbc Balance Sheet,Vehicles - Purchase,8150
http://statistics.data.gov.uk/id/local-authority/47UD,Redditch Borough Council,18/09/2015,235586,50104393,-300.00,Guest Trucks,35360,Rbc Balance Sheet,Vehicles - Purchase,8150
http://statistics.data.gov.uk/id/local-authority/47UD,Redditch Borough Council,18/09/2015,235593,50104394,"16,820.55",Guest Trucks,35360,Rbc Balance Sheet,Vehicles - Purchase,8150
http://statistics.data.gov.uk/id/local-authority/47UD,Redditch Borough Council,18/09/2015,235593,50104394,-300.00,Guest Trucks,35360,Rbc Balance Sheet,Vehicles - Purchase,8150
http://statistics.data.gov.uk/id/local-authority/47UD,Redditch Borough Council,18/09/2015,235595,50104395,"14,779.45",Guest Trucks,35360,Rbc Balance Sheet,Vehicles - Purchase,8150
http://statistics.data.gov.uk/id/local-authority/47UD,Redditch Borough Council,18/09/2015,235595,50104395,-300.00,Guest Trucks,35360,Rbc Balance Sheet,Vehicles - Purchase,8150
http://statistics.data.gov.uk/id/local-authority/47UD,Redditch Borough Council,18/09/2015,235598,50104387,"17,882.55",Guest Trucks,35360,Rbc Balance Sheet,Vehicles - Purchase,8150
http://statistics.data.gov.uk/id/local-authority/47UD,Redditch Borough Council,18/09/2015,235598,50104387,-300.00,Guest Trucks,35360,Rbc Balance Sheet,Vehicles - Purchase,8150
http://statistics.data.gov.uk/id/local-authority/47UD,Redditch Borough Council,18/09/2015,235601,50104386,"17,882.55",Guest Trucks,35360,Rbc Balance Sheet,Vehicles - Purchase,8150
http://statistics.data.gov.uk/id/local-authority/47UD,Redditch Borough Council,18/09/2015,235601,50104386,-300.00,Guest Trucks,35360,Rbc Balance Sheet,Vehicles - Purchase,8150
http://statistics.data.gov.uk/id/local-authority/47UD,Redditch Borough Council,18/09/2015,235605,50104385,"17,882.55",Guest Trucks,35360,Rbc Balance Sheet,Vehicles - Purchase,8150
http://statistics.data.gov.uk/id/local-authority/47UD,Redditch Borough Council,18/09/2015,235605,50104385,-300.00,Guest Trucks,35360,Rbc Balance Sheet,Vehicles - Purchase,8150
http://statistics.data.gov.uk/id/local-authority/47UD,Redditch Borough Council,18/09/2015,235606,50104384,"17,882.55",Guest Trucks,35360,Rbc Balance Sheet,Vehicles - Purchase,8150
http://statistics.data.gov.uk/id/local-authority/47UD,Redditch Borough Council,18/09/2015,235606,50104384,-300.00,Guest Trucks,35360,Rbc Balance Sheet,Vehicles - Purchase,8150
http://statistics.data.gov.uk/id/local-authority/47UD,Redditch Borough Council,18/09/2015,235607,50104388,"17,882.55",Guest Trucks,35360,Rbc Balance Sheet,Vehicles - Purchase,8150
http://statistics.data.gov.uk/id/local-authority/47UD,Redditch Borough Council,18/09/2015,235607,50104388,-300.00,Guest Trucks,35360,Rbc Balance Sheet,Vehicles - Purchase,8150
http://statistics.data.gov.uk/id/local-authority/47UD,Redditch Borough Council,11/09/2015,237115,LW004,560.00,Head Gym,36053,Chief Executive,Training,3043
http://statistics.data.gov.uk/id/local-authority/47UD,Redditch Borough Council,18/09/2015,238483,EH0010,525.00,Head Gym,36053,Surestart Project,Market Place,4742
http://statistics.data.gov.uk/id/local-authority/47UD,Redditch Borough Council,18/09/2015,238483,EH0010,262.50,Head Gym,36053,Surestart Project,Market Place,4742
http://statistics.data.gov.uk/id/local-authority/47UD,Redditch Borough Council,18/09/2015,238483,EH0010,87.50,Head Gym,36053,Surestart Project,Market Place,4742
http://statistics.data.gov.uk/id/local-authority/47UD,Redditch Borough Council,11/09/2015,237805,143-1,823.00,Evolve Security Products Limited,36059,Executive Director Lec,Operation Equip -Rep & Maint,4152
http://statistics.data.gov.uk/id/local-authority/47UD,Redditch Borough Council,25/09/2015,238025,01205974120,476.29,E E Limited,3656,Chief Executive,Telephone Calls,4452
http://statistics.data.gov.uk/id/local-authority/47UD,Redditch Borough Council,25/09/2015,238439,01206840462,15.50,E E Limited,3656,Chief Executive,Mobile Phone,4455
http://statistics.data.gov.uk/id/local-authority/47UD,Redditch Borough Council,25/09/2015,238439,01206840462,3.00,E E Limited,3656,Chief Executive,Mobile Phone,4455
http://statistics.data.gov.uk/id/local-authority/47UD,Redditch Borough Council,25/09/2015,238439,01206840462,10.50,E E Limited,3656,Exec. Director Fin. & Resource,Mobile Phone,4455
http://statistics.data.gov.uk/id/local-authority/47UD,Redditch Borough Council,25/09/2015,238439,01206840462,16.00,E E Limited,3656,Exec. Director Fin. & Resource,Mobile Phone,4455
http://statistics.data.gov.uk/id/local-authority/47UD,Redditch Borough Council,25/09/2015,238439,01206840462,6.00,E E Limited,3656,Exec. Director Fin. & Resource,Mobile Phone,4455
http://statistics.data.gov.uk/id/local-authority/47UD,Redditch Borough Council,25/09/2015,238439,01206840462,28.00,E E Limited,3656,Exec. Director Fin. & Resource,Mobile Phone,4455
http://statistics.data.gov.uk/id/local-authority/47UD,Redditch Borough Council,25/09/2015,238439,01206840462,3.00,E E Limited,3656,Exec. Director Fin. & Resource,Mobile Phone,4455
http://statistics.data.gov.uk/id/local-authority/47UD,Redditch Borough Council,25/09/2015,238439,01206840462,525.61,E E Limited,3656,Exec. Director Fin. & Resource,Mobile Phone,4455
http://statistics.data.gov.uk/id/local-authority/47UD,Redditch Borough Council,25/09/2015,238439,01206840462,28.50,E E Limited,3656,Exec. Director Prrh,Mobile Phone,4455
http://statistics.data.gov.uk/id/local-authority/47UD,Redditch Borough Council,25/09/2015,238439,01206840462,16.00,E E Limited,3656,Exec. Director Prrh,Mobile Phone,4455
http://statistics.data.gov.uk/id/local-authority/47UD,Redditch Borough Council,25/09/2015,238439,01206840462,12.50,E E Limited,3656,Exec. Director Prrh,Mobile Phone,4455
http://statistics.data.gov.uk/id/local-authority/47UD,Redditch Borough Council,25/09/2015,238439,01206840462,12.50,E E Limited,3656,Exec. Director Prrh,Mobile Phone,4455
http://statistics.data.gov.uk/id/local-authority/47UD,Redditch Borough Council,25/09/2015,238439,01206840462,47.10,E E Limited,3656,Exec. Director Prrh,Mobile Phone,4455
http://statistics.data.gov.uk/id/local-authority/47UD,Redditch Borough Council,25/09/2015,238439,01206840462,9.00,E E Limited,3656,Exec. Director Prrh,Mobile Phone,4455
http://statistics.data.gov.uk/id/local-authority/47UD,Redditch Borough Council,25/09/2015,238439,01206840462,18.00,E E Limited,3656,Exec. Director Prrh,Mobile Phone,4455
http://statistics.data.gov.uk/id/local-authority/47UD,Redditch Borough Council,25/09/2015,238439,01206840462,31.00,E E Limited,3656,Exec. Director Prrh,Mobile Phone,4455
http://statistics.data.gov.uk/id/local-authority/47UD,Redditch Borough Council,25/09/2015,238439,01206840462,12.50,E E Limited,3656,Exec. Director Prrh,Mobile Phone,4455
http://statistics.data.gov.uk/id/local-authority/47UD,Redditch Borough Council,25/09/2015,238439,01206840462,16.00,E E Limited,3656,Exec. Director Prrh,Mobile Phone,4455
http://statistics.data.gov.uk/id/local-authority/47UD,Redditch Borough Council,25/09/2015,238439,01206840462,3.00,E E Limited,3656,Executive Director Lec,Mobile Phone,4455
http://statistics.data.gov.uk/id/local-authority/47UD,Redditch Borough Council,25/09/2015,238439,01206840462,3.00,E E Limited,3656,Executive Director Lec,Mobile Phone,4455
http://statistics.data.gov.uk/id/local-authority/47UD,Redditch Borough Council,25/09/2015,238439,01206840462,3.00,E E Limited,3656,Executive Director Lec,Mobile Phone,4455
http://statistics.data.gov.uk/id/local-authority/47UD,Redditch Borough Council,25/09/2015,238439,01206840462,3.00,E E Limited,3656,Executive Director Lec,Mobile Phone,4455
http://statistics.data.gov.uk/id/local-authority/47UD,Redditch Borough Council,25/09/2015,238439,01206840462,3.00,E E Limited,3656,Executive Director Lec,Mobile Phone,4455
http://statistics.data.gov.uk/id/local-authority/47UD,Redditch Borough Council,25/09/2015,238439,01206840462,6.00,E E Limited,3656,Executive Director Lec,Mobile Phone,4455
http://statistics.data.gov.uk/id/local-authority/47UD,Redditch Borough Council,25/09/2015,238439,01206840462,6.00,E E Limited,3656,Executive Director Lec,Mobile Phone,4455
http://statistics.data.gov.uk/id/local-authority/47UD,Redditch Borough Council,25/09/2015,238439,01206840462,3.00,E E Limited,3656,Executive Director Lec,Mobile Phone,4455
http://statistics.data.gov.uk/id/local-authority/47UD,Redditch Borough Council,25/09/2015,238439,01206840462,35.00,E E Limited,3656,Executive Director Lec,Mobile Phone,4455
http://statistics.data.gov.uk/id/local-authority/47UD,Redditch Borough Council,25/09/2015,238439,01206840462,3.08,E E Limited,3656,Executive Director Lec,Mobile Phone,4455
http://statistics.data.gov.uk/id/local-authority/47UD,Redditch Borough Council,25/09/2015,238439,01206840462,28.50,E E Limited,3656,Executive Director Lec,Mobile Phone,4455
http://statistics.data.gov.uk/id/local-authority/47UD,Redditch Borough Council,25/09/2015,238439,01206840462,13.00,E E Limited,3656,Executive Director Lec,Mobile Phone,4455
http://statistics.data.gov.uk/id/local-authority/47UD,Redditch Borough Council,25/09/2015,238439,01206840462,10.00,E E Limited,3656,Executive Director Lec,Mobile Phone,4455
http://statistics.data.gov.uk/id/local-authority/47UD,Redditch Borough Council,25/09/2015,238439,01206840462,28.50,E E Limited,3656,Executive Director Lec,Mobile Phone,4455
http://statistics.data.gov.uk/id/local-authority/47UD,Redditch Borough Council,25/09/2015,238439,01206840462,16.00,E E Limited,3656,Executive Director Lec,Mobile Phone,4455
http://statistics.data.gov.uk/id/local-authority/47UD,Redditch Borough Council,25/09/2015,238439,01206840462,73.50,E E Limited,3656,Executive Director Lec,Mobile Phone,4455
http://statistics.data.gov.uk/id/local-authority/47UD,Redditch Borough Council,25/09/2015,238439,01206840462,99.84,E E Limited,3656,Executive Director Lec,Mobile Phone,4455
http://statistics.data.gov.uk/id/local-authority/47UD,Redditch Borough Council,25/09/2015,238439,01206840462,3.00,E E Limited,3656,Executive Director Lec,Mobile Phone,4455
http://statistics.data.gov.uk/id/local-authority/47UD,Redditch Borough Council,25/09/2015,238439,01206840462,63.33,E E Limited,3656,Executive Director Lec,Mobile Phone,4455
http://statistics.data.gov.uk/id/local-authority/47UD,Redditch Borough Council,25/09/2015,238439,01206840462,9.00,E E Limited,3656,Executive Director Lec,Mobile Phone,4455
http://statistics.data.gov.uk/id/local-authority/47UD,Redditch Borough Council,25/09/2015,238439,01206840462,6.00,E E Limited,3656,Executive Director Lec,Mobile Phone,4455
http://statistics.data.gov.uk/id/local-authority/47UD,Redditch Borough Council,25/09/2015,238439,01206840462,3.00,E E Limited,3656,Executive Director Lec,Mobile Phone,4455
http://statistics.data.gov.uk/id/local-authority/47UD,Redditch Borough Council,25/09/2015,238439,01206840462,10.50,E E Limited,3656,Executive Director Lec,Mobile Phone,4455
http://statistics.data.gov.uk/id/local-authority/47UD,Redditch Borough Council,25/09/2015,238439,01206840462,10.50,E E Limited,3656,Executive Director Lec,Mobile Phone,4455
http://statistics.data.gov.uk/id/local-authority/47UD,Redditch Borough Council,25/09/2015,238439,01206840462,10.00,E E Limited,3656,Executive Director Lec,Mobile Phone,4455
http://statistics.data.gov.uk/id/local-authority/47UD,Redditch Borough Council,25/09/2015,238439,01206840462,10.00,E E Limited,3656,Executive Director Lec,Mobile Phone,4455
http://statistics.data.gov.uk/id/local-authority/47UD,Redditch Borough Council,25/09/2015,238439,01206840462,3.00,E E Limited,3656,Executive Director Lec,Mobile Phone,4455
http://statistics.data.gov.uk/id/local-authority/47UD,Redditch Borough Council,25/09/2015,238439,01206840462,3.21,E E Limited,3656,Executive Director Lec,Mobile Phone,4455
http://statistics.data.gov.uk/id/local-authority/47UD,Redditch Borough Council,25/09/2015,238439,01206840462,16.00,E E Limited,3656,Executive Director Lec,Mobile Phone,4455
http://statistics.data.gov.uk/id/local-authority/47UD,Redditch Borough Council,25/09/2015,238439,01206840462,30.21,E E Limited,3656,Executive Director Lec,Mobile Phone,4455
http://statistics.data.gov.uk/id/local-authority/47UD,Redditch Borough Council,25/09/2015,238439,01206840462,24.00,E E Limited,3656,Executive Director Lec,Mobile Phone,4455
http://statistics.data.gov.uk/id/local-authority/47UD,Redditch Borough Council,25/09/2015,238439,01206840462,18.50,E E Limited,3656,Executive Director Lec,Mobile Phone,4455
http://statistics.data.gov.uk/id/local-authority/47UD,Redditch Borough Council,25/09/2015,238439,01206840462,3.00,E E Limited,3656,Executive Director Lec,Mobile Phone,4455
http://statistics.data.gov.uk/id/local-authority/47UD,Redditch Borough Council,25/09/2015,238439,01206840462,3.00,E E Limited,3656,Executive Director Lec,Mobile Phone,4455
http://statistics.data.gov.uk/id/local-authority/47UD,Redditch Borough Council,25/09/2015,238439,01206840462,34.50,E E Limited,3656,Executive Director Lec,Mobile Phone,4455
http://statistics.data.gov.uk/id/local-authority/47UD,Redditch Borough Council,25/09/2015,238439,01206840462,3.00,E E Limited,3656,Executive Director Lec,Mobile Phone,4455
http://statistics.data.gov.uk/id/local-authority/47UD,Redditch Borough Council,25/09/2015,238439,01206840462,3.00,E E Limited,3656,Executive Director Lec,Mobile Phone,4455
http://statistics.data.gov.uk/id/local-authority/47UD,Redditch Borough Council,25/09/2015,238439,01206840462,45.00,E E Limited,3656,Executive Director Lec,Mobile Phone,4455
http://statistics.data.gov.uk/id/local-authority/47UD,Redditch Borough Council,25/09/2015,238439,01206840462,6.08,E E Limited,3656,Executive Director Lec,Mobile Phone,4455
http://statistics.data.gov.uk/id/local-authority/47UD,Redditch Borough Council,25/09/2015,238439,01206840462,21.50,E E Limited,3656,Executive Director Lec,Mobile Phone,4455
http://statistics.data.gov.uk/id/local-authority/47UD,Redditch Borough Council,25/09/2015,238439,01206840462,58.13,E E Limited,3656,Executive Director Lec,Mobile Phone,4455
http://statistics.data.gov.uk/id/local-authority/47UD,Redditch Borough Council,25/09/2015,238439,01206840462,16.00,E E Limited,3656,Executive Director Lec,Mobile Phone,4455
http://statistics.data.gov.uk/id/local-authority/47UD,Redditch Borough Council,25/09/2015,238439,01206840462,9.00,E E Limited,3656,Executive Director Lec,Mobile Phone,4455
http://statistics.data.gov.uk/id/local-authority/47UD,Redditch Borough Council,25/09/2015,238439,01206840462,3.00,E E Limited,3656,Executive Director Lec,Mobile Phone,4455
http://statistics.data.gov.uk/id/local-authority/47UD,Redditch Borough Council,25/09/2015,238439,01206840462,9.00,E E Limited,3656,Executive Director Lec,Mobile Phone,4455
http://statistics.data.gov.uk/id/local-authority/47UD,Redditch Borough Council,25/09/2015,238439,01206840462,21.00,E E Limited,3656,Housing Repairs Account,Mobile Phone,4455
http://statistics.data.gov.uk/id/local-authority/47UD,Redditch Borough Council,25/09/2015,238439,01206840462,81.50,E E Limited,3656,Housing Repairs Account,Mobile Phone,4455
http://statistics.data.gov.uk/id/local-authority/47UD,Redditch Borough Council,25/09/2015,238439,01206840462,78.08,E E Limited,3656,Housing Repairs Account,Mobile Phone,4455
http://statistics.data.gov.uk/id/local-authority/47UD,Redditch Borough Council,25/09/2015,238439,01206840462,3.00,E E Limited,3656,Housing Revenue Account,Mobile Phone,4455
http://statistics.data.gov.uk/id/local-authority/47UD,Redditch Borough Council,25/09/2015,238439,01206840462,97.63,E E Limited,3656,Housing Revenue Account,Mobile Phone,4455
http://statistics.data.gov.uk/id/local-authority/47UD,Redditch Borough Council,25/09/2015,238439,01206840462,22.00,E E Limited,3656,Housing Revenue Account,Mobile Phone,4455
http://statistics.data.gov.uk/id/local-authority/47UD,Redditch Borough Council,25/09/2015,238439,01206840462,85.50,E E Limited,3656,Housing Revenue Account,Mobile Phone,4455
http://statistics.data.gov.uk/id/local-authority/47UD,Redditch Borough Council,25/09/2015,238439,01206840462,3.00,E E Limited,3656,Housing Revenue Account,Mobile Phone,4455
http://statistics.data.gov.uk/id/local-authority/47UD,Redditch Borough Council,25/09/2015,238439,01206840462,3.00,E E Limited,3656,Housing Revenue Account,Mobile Phone,4455
http://statistics.data.gov.uk/id/local-authority/47UD,Redditch Borough Council,25/09/2015,238439,01206840462,97.00,E E Limited,3656,Surestart Project,Mobile Phone,4455
http://statistics.data.gov.uk/id/local-authority/47UD,Redditch Borough Council,25/09/2015,238439,01206840462,43.50,E E Limited,3656,Surestart Project,Mobile Phone,4455
http://statistics.data.gov.uk/id/local-authority/47UD,Redditch Borough Council,25/09/2015,238439,01206840462,62.50,E E Limited,3656,Surestart Project,Mobile Phone,4455
http://statistics.data.gov.uk/id/local-authority/47UD,Redditch Borough Council,25/09/2015,238439,01206840462,37.50,E E Limited,3656,Surestart Project,Mobile Phone,4455
http://statistics.data.gov.uk/id/local-authority/47UD,Redditch Borough Council,25/09/2015,238439,01206840462,46.50,E E Limited,3656,Surestart Project,Mobile Phone,4455
http://statistics.data.gov.uk/id/local-authority/47UD,Redditch Borough Council,25/09/2015,238439,01206840462,66.10,E E Limited,3656,Surestart Project,Mobile Phone,4455
http://statistics.data.gov.uk/id/local-authority/47UD,Redditch Borough Council,25/09/2015,238439,01206840462,25.00,E E Limited,3656,Surestart Project,Mobile Phone,4455
http://statistics.data.gov.uk/id/local-authority/47UD,Redditch Borough Council,25/09/2015,238439,01206840462,108.00,E E Limited,3656,Surestart Project,Mobile Phone,4455
http://statistics.data.gov.uk/id/local-authority/47UD,Redditch Borough Council,25/09/2015,238439,01206840462,19.00,E E Limited,3656,Surestart Project,Mobile Phone,4455
http://statistics.data.gov.uk/id/local-authority/47UD,Redditch Borough Council,18/09/2015,237993,J07863,"1,300.00",Acs Ltd,3659,Exec. Director Fin. & Resource,Subscriptions,4650
http://statistics.data.gov.uk/id/local-authority/47UD,Redditch Borough Council,18/09/2015,237994,A08775,"1,300.00",Acs Ltd,3659,Exec. Director Fin. & Resource,Training,3043
http://statistics.data.gov.uk/id/local-authority/47UD,Redditch Borough Council,30/09/2015,238795,1000/1012,686.00,R S T S Landscaping Limited,370,Executive Director Lec,Professional Fees,4352
http://statistics.data.gov.uk/id/local-authority/47UD,Redditch Borough Council,11/09/2015,237793,19,519.98,R D Rogers Butchers,373,Housing Revenue Account,Catering Provisions(Vat Exempt,4200
http://statistics.data.gov.uk/id/local-authority/47UD,Redditch Borough Council,11/09/2015,237793,19,43.64,R D Rogers Butchers,373,Housing Revenue Account,Catering Provisions(Vat Exempt,4200
http://statistics.data.gov.uk/id/local-authority/47UD,Redditch Borough Council,11/09/2015,237793,19,127.92,R D Rogers Butchers,373,Housing Revenue Account,Catering Provisions(Vat Exempt,4200
http://statistics.data.gov.uk/id/local-authority/47UD,Redditch Borough Council,04/09/2015,234090,15102475,"3,329.92",Facultatieve Technologies,38,Executive Director Lec,Materials,4170
http://statistics.data.gov.uk/id/local-authority/47UD,Redditch Borough Council,11/09/2015,236533,15102956,935.19,Facultatieve Technologies,38,Executive Director Lec,Materials,4170
http://statistics.data.gov.uk/id/local-authority/47UD,Redditch Borough Council,18/09/2015,237098,15103046,822.40,Facultatieve Technologies,38,Executive Director Lec,Contractors,5158
http://statistics.data.gov.uk/id/local-authority/47UD,Redditch Borough Council,18/09/2015,237099,15103069,664.49,Facultatieve Technologies,38,Executive Director Lec,Contractors,5158
http://statistics.data.gov.uk/id/local-authority/47UD,Redditch Borough Council,11/09/2015,237140,11000,206.00,Practical Care Products Ltd,391,Housing Repairs Account,Materials,4170
http://statistics.data.gov.uk/id/local-authority/47UD,Redditch Borough Council,11/09/2015,237140,11000,325.00,Practical Care Products Ltd,391,Housing Repairs Account,Materials,4170
http://statistics.data.gov.uk/id/local-authority/47UD,Redditch Borough Council,11/09/2015,237140,11000,16.80,Practical Care Products Ltd,391,Housing Repairs Account,Materials,4170
http://statistics.data.gov.uk/id/local-authority/47UD,Redditch Borough Council,11/09/2015,237140,11000,20.00,Practical Care Products Ltd,391,Housing Repairs Account,Materials,4170
http://statistics.data.gov.uk/id/local-authority/47UD,Redditch Borough Council,30/09/2015,238712,11062,248.00,Practical Care Products Ltd,391,Housing Repairs Account,Materials,4170
http://statistics.data.gov.uk/id/local-authority/47UD,Redditch Borough Council,30/09/2015,238712,11062,325.00,Practical Care Products Ltd,391,Housing Repairs Account,Materials,4170
http://statistics.data.gov.uk/id/local-authority/47UD,Redditch Borough Council,25/09/2015,238736,2194AAF429,"1,850.00",City Plumbing Supplies Ltd (Pts),395,Crossgate Stocks,Received Not Invoiced,2096
http://statistics.data.gov.uk/id/local-authority/47UD,Redditch Borough Council,25/09/2015,238736,2194AAF429,0.00,City Plumbing Supplies Ltd (Pts),395,Crossgate Stocks,Stock Account (Cedar),1201
http://statistics.data.gov.uk/id/local-authority/47UD,Redditch Borough Council,04/09/2015,232438,20247,"1,711.67",Pfb Self Drive,441,Housing Repairs Account,Contract Hire,3850
http://statistics.data.gov.uk/id/local-authority/47UD,Redditch Borough Council,04/09/2015,234562,20850,"1,711.67",Pfb Self Drive,441,Housing Repairs Account,Contract Hire,3850
http://statistics.data.gov.uk/id/local-authority/47UD,Redditch Borough Council,04/09/2015,236705,19044,"1,711.67",Pfb Self Drive,441,Housing Repairs Account,Contract Hire,3850
http://statistics.data.gov.uk/id/local-authority/47UD,Redditch Borough Council,11/09/2015,237732,21879,"1,711.67",Pfb Self Drive,441,Executive Director Lec,Contract Hire,3850
http://statistics.data.gov.uk/id/local-authority/47UD,Redditch Borough Council,04/09/2015,237276,90796044,507.37,Univar Bv,451,Executive Director Lec,Materials,4170
http://statistics.data.gov.uk/id/local-authority/47UD,Redditch Borough Council,11/09/2015,237847,90816129,777.53,Univar Bv,451,Executive Director Lec,Materials,4170
http://statistics.data.gov.uk/id/local-authority/47UD,Redditch Borough Council,30/09/2015,239232,90831574,507.37,Univar Bv,451,Executive Director Lec,Materials,4170
http://statistics.data.gov.uk/id/local-authority/47UD,Redditch Borough Council,30/09/2015,238362,EXIN910833,599.42,Lex Autolease Ltd,4578,Housing Repairs Account,Operating Leases,3851
http://statistics.data.gov.uk/id/local-authority/47UD,Redditch Borough Council,30/09/2015,238362,EXIN910833,"1,498.55",Lex Autolease Ltd,4578,Housing Repairs Account,Operating Leases,3851
http://statistics.data.gov.uk/id/local-authority/47UD,Redditch Borough Council,30/09/2015,239263,MRI3518480,211.90,Lex Autolease Ltd,4578,Executive Director Lec,Operating Leases,3851
http://statistics.data.gov.uk/id/local-authority/47UD,Redditch Borough Council,30/09/2015,239263,MRI3518480,916.38,Lex Autolease Ltd,4578,Executive Director Lec,Operating Leases,3851
http://statistics.data.gov.uk/id/local-authority/47UD,Redditch Borough Council,30/09/2015,239263,MRI3518480,"4,405.25",Lex Autolease Ltd,4578,Executive Director Lec,Operating Leases,3851
http://statistics.data.gov.uk/id/local-authority/47UD,Redditch Borough Council,30/09/2015,239263,MRI3518480,324.99,Lex Autolease Ltd,4578,Executive Director Lec,Operating Leases,3851
http://statistics.data.gov.uk/id/local-authority/47UD,Redditch Borough Council,30/09/2015,239263,MRI3518480,201.99,Lex Autolease Ltd,4578,Executive Director Lec,Operating Leases,3851
http://statistics.data.gov.uk/id/local-authority/47UD,Redditch Borough Council,30/09/2015,239263,MRI3518480,289.76,Lex Autolease Ltd,4578,Executive Director Lec,Operating Leases,3851
http://statistics.data.gov.uk/id/local-authority/47UD,Redditch Borough Council,30/09/2015,239263,MRI3518480,221.85,Lex Autolease Ltd,4578,Executive Director Lec,Operating Leases,3851
http://statistics.data.gov.uk/id/local-authority/47UD,Redditch Borough Council,30/09/2015,239263,MRI3518480,144.88,Lex Autolease Ltd,4578,Executive Director Lec,Operating Leases,3851
http://statistics.data.gov.uk/id/local-authority/47UD,Redditch Borough Council,30/09/2015,239263,MRI3518480,854.53,Lex Autolease Ltd,4578,Housing Repairs Account,Operating Leases,3851
http://statistics.data.gov.uk/id/local-authority/47UD,Redditch Borough Council,30/09/2015,239263,MRI3518480,856.61,Lex Autolease Ltd,4578,Housing Repairs Account,Operating Leases,3851
http://statistics.data.gov.uk/id/local-authority/47UD,Redditch Borough Council,30/09/2015,239263,MRI3518480,841.74,Lex Autolease Ltd,4578,Housing Repairs Account,Operating Leases,3851
http://statistics.data.gov.uk/id/local-authority/47UD,Redditch Borough Council,30/09/2015,239264,MRI3451697,211.90,Lex Autolease Ltd,4578,Executive Director Lec,Operating Leases,3851
http://statistics.data.gov.uk/id/local-authority/47UD,Redditch Borough Council,30/09/2015,239264,MRI3451697,916.38,Lex Autolease Ltd,4578,Executive Director Lec,Operating Leases,3851
http://statistics.data.gov.uk/id/local-authority/47UD,Redditch Borough Council,30/09/2015,239264,MRI3451697,"4,405.25",Lex Autolease Ltd,4578,Executive Director Lec,Operating Leases,3851
http://statistics.data.gov.uk/id/local-authority/47UD,Redditch Borough Council,30/09/2015,239264,MRI3451697,324.99,Lex Autolease Ltd,4578,Executive Director Lec,Operating Leases,3851
http://statistics.data.gov.uk/id/local-authority/47UD,Redditch Borough Council,30/09/2015,239264,MRI3451697,201.99,Lex Autolease Ltd,4578,Executive Director Lec,Operating Leases,3851
http://statistics.data.gov.uk/id/local-authority/47UD,Redditch Borough Council,30/09/2015,239264,MRI3451697,289.76,Lex Autolease Ltd,4578,Executive Director Lec,Operating Leases,3851
http://statistics.data.gov.uk/id/local-authority/47UD,Redditch Borough Council,30/09/2015,239264,MRI3451697,221.85,Lex Autolease Ltd,4578,Executive Director Lec,Operating Leases,3851
http://statistics.data.gov.uk/id/local-authority/47UD,Redditch Borough Council,30/09/2015,239264,MRI3451697,144.88,Lex Autolease Ltd,4578,Executive Director Lec,Operating Leases,3851
http://statistics.data.gov.uk/id/local-authority/47UD,Redditch Borough Council,30/09/2015,239264,MRI3451697,854.53,Lex Autolease Ltd,4578,Housing Repairs Account,Operating Leases,3851
http://statistics.data.gov.uk/id/local-authority/47UD,Redditch Borough Council,30/09/2015,239264,MRI3451697,856.61,Lex Autolease Ltd,4578,Housing Repairs Account,Operating Leases,3851
http://statistics.data.gov.uk/id/local-authority/47UD,Redditch Borough Council,30/09/2015,239264,MRI3451697,841.74,Lex Autolease Ltd,4578,Housing Repairs Account,Operating Leases,3851
http://statistics.data.gov.uk/id/local-authority/47UD,Redditch Borough Council,04/09/2015,235319,INV/50283369,659.46,Tunstall  Limited,459,Executive Director Lec,Operation Equip -Rep & Maint,4152
http://statistics.data.gov.uk/id/local-authority/47UD,Redditch Borough Council,11/09/2015,237051,150231,180.83,Tudor Environmental,461,Executive Director Lec,Materials,4170
http://statistics.data.gov.uk/id/local-authority/47UD,Redditch Borough Council,11/09/2015,237051,150231,315.00,Tudor Environmental,461,Executive Director Lec,Materials,4170
http://statistics.data.gov.uk/id/local-authority/47UD,Redditch Borough Council,11/09/2015,237051,150231,833.00,Tudor Environmental,461,Executive Director Lec,Materials,4170
http://statistics.data.gov.uk/id/local-authority/47UD,Redditch Borough Council,11/09/2015,237051,150231,605.50,Tudor Environmental,461,Executive Director Lec,Materials,4170
http://statistics.data.gov.uk/id/local-authority/47UD,Redditch Borough Council,11/09/2015,237052,150382,630.00,Tudor Environmental,461,Executive Director Lec,Materials,4170
http://statistics.data.gov.uk/id/local-authority/47UD,Redditch Borough Council,25/09/2015,235184,RCS544189,646.00,Truckstop Hawkes,463,Crossgate Stocks,Received Not Invoiced,2096
http://statistics.data.gov.uk/id/local-authority/47UD,Redditch Borough Council,25/09/2015,235184,RCS544189,0.00,Truckstop Hawkes,463,Crossgate Stocks,Stock Account (Cedar),1201
http://statistics.data.gov.uk/id/local-authority/47UD,Redditch Borough Council,11/09/2015,236841,41948486,796.00,Care Quality Commission,4659,Housing Revenue Account,Subscriptions,4650
http://statistics.data.gov.uk/id/local-authority/47UD,Redditch Borough Council,04/09/2015,237254,26210,891.07,Arcane Direct Marketing,4714,Executive Director Lec,Advertising,4735
http://statistics.data.gov.uk/id/local-authority/47UD,Redditch Borough Council,11/09/2015,238011,'NEW JERSEY BOY,"3,992.42",Artistes International Management Ltd,4770,Executive Director Lec,Other Fees & Charges(Vatable),6302
http://statistics.data.gov.uk/id/local-authority/47UD,Redditch Borough Council,04/09/2015,232882,3372,"9,805.46",Kelbec Civils Ltd,4794,Housing Revenue Account,Paved Area Maintenance,3202
http://statistics.data.gov.uk/id/local-authority/47UD,Redditch Borough Council,04/09/2015,233529,3379,"4,658.73",Kelbec Civils Ltd,4794,Housing Revenue Account,Paved Area Maintenance,3202
http://statistics.data.gov.uk/id/local-authority/47UD,Redditch Borough Council,18/09/2015,238383,3460,"3,622.11",Kelbec Civils Ltd,4794,Housing Repairs Account,Drainage,3201
http://statistics.data.gov.uk/id/local-authority/47UD,Redditch Borough Council,18/09/2015,238428,3380,"3,307.80",Kelbec Civils Ltd,4794,Housing Repairs Account,Drainage,3201
http://statistics.data.gov.uk/id/local-authority/47UD,Redditch Borough Council,30/09/2015,231986,853,438.43,The Glasshouse,495,Rbc Balance Sheet,Contract Payments,8131
http://statistics.data.gov.uk/id/local-authority/47UD,Redditch Borough Council,30/09/2015,231986,853,26.74,The Glasshouse,495,Housing Repairs Account,Materials,4170
http://statistics.data.gov.uk/id/local-authority/47UD,Redditch Borough Council,30/09/2015,231986,853,16.42,The Glasshouse,495,Housing Repairs Account,Materials,4170
http://statistics.data.gov.uk/id/local-authority/47UD,Redditch Borough Council,30/09/2015,236567,9I4,459.33,The Glasshouse,495,Rbc Balance Sheet,Contract Payments,8131
http://statistics.data.gov.uk/id/local-authority/47UD,Redditch Borough Council,30/09/2015,236567,9I4,17.58,The Glasshouse,495,Housing Repairs Account,Materials,4170
http://statistics.data.gov.uk/id/local-authority/47UD,Redditch Borough Council,30/09/2015,236567,9I4,21.21,The Glasshouse,495,Housing Repairs Account,Materials,4170
http://statistics.data.gov.uk/id/local-authority/47UD,Redditch Borough Council,30/09/2015,236567,9I4,76.68,The Glasshouse,495,Housing Repairs Account,Materials,4170
http://statistics.data.gov.uk/id/local-authority/47UD,Redditch Borough Council,30/09/2015,236567,9I4,21.85,The Glasshouse,495,Housing Repairs Account,Materials,4170
http://statistics.data.gov.uk/id/local-authority/47UD,Redditch Borough Council,30/09/2015,236567,9I4,432.25,The Glasshouse,495,Rbc Balance Sheet,Contract Payments,8131
http://statistics.data.gov.uk/id/local-authority/47UD,Redditch Borough Council,30/09/2015,236567,9I4,25.65,The Glasshouse,495,Housing Repairs Account,Materials,4170
http://statistics.data.gov.uk/id/local-authority/47UD,Redditch Borough Council,30/09/2015,239165,101904,"20,000.00",Diamond Bus Company Limited,499,Executive Director Lec,Concessionary Travel,5150
http://statistics.data.gov.uk/id/local-authority/47UD,Redditch Borough Council,11/09/2015,237789,7958,"14,868.95",Acorn Environmental Management Group Ltd,5026,Executive Director Lec,Agency Staff,3020
http://statistics.data.gov.uk/id/local-authority/47UD,Redditch Borough Council,04/09/2015,237447,50937,"1,955.00",Sos Group Services Ltd,5054,Housing Repairs Account,Drainage,3201
http://statistics.data.gov.uk/id/local-authority/47UD,Redditch Borough Council,04/09/2015,237448,51020,"2,987.83",Sos Group Services Ltd,5054,Housing Repairs Account,Drainage,3201
http://statistics.data.gov.uk/id/local-authority/47UD,Redditch Borough Council,18/09/2015,238457,84A,"1,480.00",Dr Richard Wilkinson,5065,Executive Director Lec,Medical Fees,3040
http://statistics.data.gov.uk/id/local-authority/47UD,Redditch Borough Council,30/09/2015,239338,THIRTY NINE STE,760.65,All And Sundry,5122,Executive Director Lec,Other Fees & Charges(Vatable),6302
http://statistics.data.gov.uk/id/local-authority/47UD,Redditch Borough Council,25/09/2015,238363,550231,"19,629.39",Harvest Energy Limited,5136,Crossgate Stocks,Received Not Invoiced,2096
http://statistics.data.gov.uk/id/local-authority/47UD,Redditch Borough Council,25/09/2015,238363,550231,0.00,Harvest Energy Limited,5136,Crossgate Stocks,Stock Account (Cedar),1201
http://statistics.data.gov.uk/id/local-authority/47UD,Redditch Borough Council,25/09/2015,238363,550231,-0.01,Harvest Energy Limited,5136,Crossgate Stocks,Stock Variance,1203
http://statistics.data.gov.uk/id/local-authority/47UD,Redditch Borough Council,30/09/2015,236557,ICC240154/M,597.96,Indepth Managed Services (Cleaning),5139,Executive Director Lec,Contract Cleaning,3600
http://statistics.data.gov.uk/id/local-authority/47UD,Redditch Borough Council,25/09/2015,238912,APT/30085885,"22,962.50",Amas Ltd (A/C 03457982),5149,Exec. Director Prrh,Hire Of Premises,3351
http://statistics.data.gov.uk/id/local-authority/47UD,Redditch Borough Council,25/09/2015,238912,APT/30085885,"2,645.12",Amas Ltd (A/C 03457982),5149,Exec. Director Prrh,Rents,3350
http://statistics.data.gov.uk/id/local-authority/47UD,Redditch Borough Council,30/09/2015,239239,INV02031,65.00,Limelight,5165,Executive Director Lec,Purchases For Resale,4050
http://statistics.data.gov.uk/id/local-authority/47UD,Redditch Borough Council,30/09/2015,239239,INV02031,598.50,Limelight,5165,Executive Director Lec,Purchases For Resale,4050
http://statistics.data.gov.uk/id/local-authority/47UD,Redditch Borough Council,30/09/2015,239239,INV02031,866.40,Limelight,5165,Executive Director Lec,Purchases For Resale,4050
http://statistics.data.gov.uk/id/local-authority/47UD,Redditch Borough Council,30/09/2015,239239,INV02031,752.40,Limelight,5165,Executive Director Lec,Purchases For Resale,4050
http://statistics.data.gov.uk/id/local-authority/47UD,Redditch Borough Council,30/09/2015,239339,151203-1,"1,251.00",Uk Event And Entertainment Services,5288,Executive Director Lec,Operational Equip- Purchase,4150
http://statistics.data.gov.uk/id/local-authority/47UD,Redditch Borough Council,11/09/2015,237811,AUG2015,640.00,Samantha Bayles,5301,Executive Director Lec,Casual Staff,3022
http://statistics.data.gov.uk/id/local-authority/47UD,Redditch Borough Council,04/09/2015,236717,31365,"1,227.00",Blachere Illumination Uk,5315,Executive Director Lec,Operational Equip- Purchase,4150
http://statistics.data.gov.uk/id/local-authority/47UD,Redditch Borough Council,04/09/2015,236151,IN13355,450.48,Matrix Scm Ltd,5367,Exec. Director Prrh,Agency Staff,3020
http://statistics.data.gov.uk/id/local-authority/47UD,Redditch Borough Council,04/09/2015,236151,IN13355,406.82,Matrix Scm Ltd,5367,Executive Director Lec,Agency Staff,3020
http://statistics.data.gov.uk/id/local-authority/47UD,Redditch Borough Council,04/09/2015,236151,IN13355,505.42,Matrix Scm Ltd,5367,Executive Director Lec,Agency Staff,3020
http://statistics.data.gov.uk/id/local-authority/47UD,Redditch Borough Council,04/09/2015,236151,IN13355,"1,896.42",Matrix Scm Ltd,5367,Executive Director Lec,Agency Staff,3020
http://statistics.data.gov.uk/id/local-authority/47UD,Redditch Borough Council,04/09/2015,236151,IN13355,471.44,Matrix Scm Ltd,5367,Housing Repairs Account,Agency Staff,3020
http://statistics.data.gov.uk/id/local-authority/47UD,Redditch Borough Council,04/09/2015,236151,IN13355,856.22,Matrix Scm Ltd,5367,Housing Repairs Account,Agency Staff,3020
http://statistics.data.gov.uk/id/local-authority/47UD,Redditch Borough Council,04/09/2015,236151,IN13355,"1,151.40",Matrix Scm Ltd,5367,Housing Repairs Account,Agency Staff,3020
http://statistics.data.gov.uk/id/local-authority/47UD,Redditch Borough Council,04/09/2015,236151,IN13355,231.29,Matrix Scm Ltd,5367,Housing Revenue Account,Agency Staff,3020
http://statistics.data.gov.uk/id/local-authority/47UD,Redditch Borough Council,11/09/2015,236875,IN13414,769.56,Matrix Scm Ltd,5367,Exec. Director Prrh,Agency Staff,3020
http://statistics.data.gov.uk/id/local-authority/47UD,Redditch Borough Council,11/09/2015,236875,IN13414,"1,042.90",Matrix Scm Ltd,5367,Executive Director Lec,Agency Staff,3020
http://statistics.data.gov.uk/id/local-authority/47UD,Redditch Borough Council,11/09/2015,236875,IN13414,"1,011.62",Matrix Scm Ltd,5367,Executive Director Lec,Agency Staff,3020
http://statistics.data.gov.uk/id/local-authority/47UD,Redditch Borough Council,11/09/2015,236875,IN13414,"2,196.07",Matrix Scm Ltd,5367,Executive Director Lec,Agency Staff,3020
http://statistics.data.gov.uk/id/local-authority/47UD,Redditch Borough Council,11/09/2015,236875,IN13414,482.80,Matrix Scm Ltd,5367,Housing Repairs Account,Agency Staff,3020
http://statistics.data.gov.uk/id/local-authority/47UD,Redditch Borough Council,11/09/2015,236875,IN13414,428.11,Matrix Scm Ltd,5367,Housing Repairs Account,Agency Staff,3020
http://statistics.data.gov.uk/id/local-authority/47UD,Redditch Borough Council,11/09/2015,236875,IN13414,"1,261.58",Matrix Scm Ltd,5367,Housing Repairs Account,Agency Staff,3020
http://statistics.data.gov.uk/id/local-authority/47UD,Redditch Borough Council,11/09/2015,236875,IN13414,376.41,Matrix Scm Ltd,5367,Housing Revenue Account,Agency Staff,3020
http://statistics.data.gov.uk/id/local-authority/47UD,Redditch Borough Council,18/09/2015,237238,IN13474,586.57,Matrix Scm Ltd,5367,Exec. Director Prrh,Agency Staff,3020
http://statistics.data.gov.uk/id/local-authority/47UD,Redditch Borough Council,18/09/2015,237238,IN13474,"2,266.87",Matrix Scm Ltd,5367,Executive Director Lec,Agency Staff,3020
http://statistics.data.gov.uk/id/local-authority/47UD,Redditch Borough Council,18/09/2015,237238,IN13474,428.11,Matrix Scm Ltd,5367,Housing Repairs Account,Agency Staff,3020
http://statistics.data.gov.uk/id/local-authority/47UD,Redditch Borough Council,18/09/2015,237238,IN13474,"1,049.45",Matrix Scm Ltd,5367,Housing Repairs Account,Agency Staff,3020
http://statistics.data.gov.uk/id/local-authority/47UD,Redditch Borough Council,18/09/2015,237238,IN13474,95.24,Matrix Scm Ltd,5367,Housing Revenue Account,Agency Staff,3020
http://statistics.data.gov.uk/id/local-authority/47UD,Redditch Borough Council,11/09/2015,237742,IN13534,694.50,Matrix Scm Ltd,5367,Exec. Director Prrh,Agency Staff,3020
http://statistics.data.gov.uk/id/local-authority/47UD,Redditch Borough Council,11/09/2015,237742,IN13534,991.60,Matrix Scm Ltd,5367,Executive Director Lec,Agency Staff,3020
http://statistics.data.gov.uk/id/local-authority/47UD,Redditch Borough Council,11/09/2015,237742,IN13534,637.99,Matrix Scm Ltd,5367,Housing Repairs Account,Agency Staff,3020
http://statistics.data.gov.uk/id/local-authority/47UD,Redditch Borough Council,30/09/2015,238324,IN13594,577.19,Matrix Scm Ltd,5367,Exec. Director Prrh,Agency Staff,3020
http://statistics.data.gov.uk/id/local-authority/47UD,Redditch Borough Council,30/09/2015,238324,IN13594,326.15,Matrix Scm Ltd,5367,Executive Director Lec,Agency Staff,3020
http://statistics.data.gov.uk/id/local-authority/47UD,Redditch Borough Council,30/09/2015,238324,IN13594,"1,966.94",Matrix Scm Ltd,5367,Executive Director Lec,Agency Staff,3020
http://statistics.data.gov.uk/id/local-authority/47UD,Redditch Borough Council,30/09/2015,238324,IN13594,769.44,Matrix Scm Ltd,5367,Housing Repairs Account,Agency Staff,3020
http://statistics.data.gov.uk/id/local-authority/47UD,Redditch Borough Council,30/09/2015,238324,IN13594,"1,139.70",Matrix Scm Ltd,5367,Housing Repairs Account,Agency Staff,3020
http://statistics.data.gov.uk/id/local-authority/47UD,Redditch Borough Council,30/09/2015,238324,IN13594,176.87,Matrix Scm Ltd,5367,Housing Revenue Account,Agency Staff,3020
http://statistics.data.gov.uk/id/local-authority/47UD,Redditch Borough Council,30/09/2015,238524,IN13652,694.50,Matrix Scm Ltd,5367,Exec. Director Prrh,Agency Staff,3020
http://statistics.data.gov.uk/id/local-authority/47UD,Redditch Borough Council,30/09/2015,238524,IN13652,445.13,Matrix Scm Ltd,5367,Executive Director Lec,Agency Staff,3020
http://statistics.data.gov.uk/id/local-authority/47UD,Redditch Borough Council,30/09/2015,238524,IN13652,"2,193.05",Matrix Scm Ltd,5367,Executive Director Lec,Agency Staff,3020
http://statistics.data.gov.uk/id/local-authority/47UD,Redditch Borough Council,30/09/2015,238524,IN13652,482.80,Matrix Scm Ltd,5367,Housing Repairs Account,Agency Staff,3020
http://statistics.data.gov.uk/id/local-authority/47UD,Redditch Borough Council,30/09/2015,238524,IN13652,173.56,Matrix Scm Ltd,5367,Housing Repairs Account,Agency Staff,3020
http://statistics.data.gov.uk/id/local-authority/47UD,Redditch Borough Council,30/09/2015,238524,IN13652,524.66,Matrix Scm Ltd,5367,Housing Repairs Account,Agency Staff,3020
http://statistics.data.gov.uk/id/local-authority/47UD,Redditch Borough Council,30/09/2015,238524,IN13652,"1,486.80",Matrix Scm Ltd,5367,Housing Revenue Account,Agency Staff,3020
http://statistics.data.gov.uk/id/local-authority/47UD,Redditch Borough Council,25/09/2015,232442,D071,547.00,Hodges And Lawrence Ltd,5416,Executive Director Lec,Contractors,5158
http://statistics.data.gov.uk/id/local-authority/47UD,Redditch Borough Council,04/09/2015,234717,F7029,"4,550.00",Hodges And Lawrence Ltd,5416,Rbc Balance Sheet,Direct Payments,8132
http://statistics.data.gov.uk/id/local-authority/47UD,Redditch Borough Council,30/09/2015,235733,00019028,"2,150.00",R & R Bassett Engineering Ltd,5441,Rbc Balance Sheet,Contract Payments,8131
http://statistics.data.gov.uk/id/local-authority/47UD,Redditch Borough Council,30/09/2015,235733,00019028,110.00,R & R Bassett Engineering Ltd,5441,Rbc Balance Sheet,Contract Payments,8131
http://statistics.data.gov.uk/id/local-authority/47UD,Redditch Borough Council,30/09/2015,235733,00019028,110.00,R & R Bassett Engineering Ltd,5441,Rbc Balance Sheet,Contract Payments,8131
http://statistics.data.gov.uk/id/local-authority/47UD,Redditch Borough Council,30/09/2015,235735,00018990,"1,110.00",R & R Bassett Engineering Ltd,5441,Rbc Balance Sheet,Contract Payments,8131
http://statistics.data.gov.uk/id/local-authority/47UD,Redditch Borough Council,30/09/2015,238444,INVOICE,"11,484.00",Craemer Uk Limited,5471,Crossgate Stocks,Received Not Invoiced,2096
http://statistics.data.gov.uk/id/local-authority/47UD,Redditch Borough Council,30/09/2015,238444,INVOICE,0.00,Craemer Uk Limited,5471,Crossgate Stocks,Stock Account (Cedar),1201
http://statistics.data.gov.uk/id/local-authority/47UD,Redditch Borough Council,18/09/2015,238471,02198,742.50,A P Window & Carpet Cleaning,5472,Executive Director Lec,Casual Staff,3022
http://statistics.data.gov.uk/id/local-authority/47UD,Redditch Borough Council,30/09/2015,236809,5,600.00,Pete Burton,556,Executive Director Lec,Professional Fees,4352
http://statistics.data.gov.uk/id/local-authority/47UD,Redditch Borough Council,25/09/2015,233455,15440,"1,414.47",Pauls Electrical Services Ltd,559,Housing Repairs Account,Contractors,5158
http://statistics.data.gov.uk/id/local-authority/47UD,Redditch Borough Council,18/09/2015,237696,15941,"5,686.01",Pauls Electrical Services Ltd,559,Housing Repairs Account,Contractors,5158
http://statistics.data.gov.uk/id/local-authority/47UD,Redditch Borough Council,18/09/2015,237697,15863,"2,277.88",Pauls Electrical Services Ltd,559,Housing Repairs Account,Contractors,5158
http://statistics.data.gov.uk/id/local-authority/47UD,Redditch Borough Council,18/09/2015,237698,15865,"1,663.51",Pauls Electrical Services Ltd,559,Housing Repairs Account,Contractors,5158
http://statistics.data.gov.uk/id/local-authority/47UD,Redditch Borough Council,18/09/2015,237715,15870,"1,550.25",Pauls Electrical Services Ltd,559,Housing Repairs Account,Contractors,5158
http://statistics.data.gov.uk/id/local-authority/47UD,Redditch Borough Council,18/09/2015,237716,15869,"4,291.00",Pauls Electrical Services Ltd,559,Housing Repairs Account,Contractors,5158
http://statistics.data.gov.uk/id/local-authority/47UD,Redditch Borough Council,18/09/2015,237717,15868,"3,278.92",Pauls Electrical Services Ltd,559,Housing Repairs Account,Contractors,5158
http://statistics.data.gov.uk/id/local-authority/47UD,Redditch Borough Council,25/09/2015,237718,15864,"9,637.02",Pauls Electrical Services Ltd,559,Housing Repairs Account,Contractors,5158
http://statistics.data.gov.uk/id/local-authority/47UD,Redditch Borough Council,30/09/2015,237720,15867,"1,875.22",Pauls Electrical Services Ltd,559,Housing Repairs Account,Contractors,5158
http://statistics.data.gov.uk/id/local-authority/47UD,Redditch Borough Council,18/09/2015,237743,16180,"3,007.89",Pauls Electrical Services Ltd,559,Housing Repairs Account,Contractors,5158
http://statistics.data.gov.uk/id/local-authority/47UD,Redditch Borough Council,25/09/2015,238945,13084,629.36,Pauls Electrical Services Ltd,559,Housing Repairs Account,Repairs In House Team,3107
http://statistics.data.gov.uk/id/local-authority/47UD,Redditch Borough Council,18/09/2015,237984,3417/01076588,255.75,Gibbs & Dandy Timber,5603,Crossgate Stocks,Received Not Invoiced,2096
http://statistics.data.gov.uk/id/local-authority/47UD,Redditch Borough Council,18/09/2015,237984,3417/01076588,0.00,Gibbs & Dandy Timber,5603,Crossgate Stocks,Stock Account (Cedar),1201
http://statistics.data.gov.uk/id/local-authority/47UD,Redditch Borough Council,18/09/2015,237984,3417/01076588,239.25,Gibbs & Dandy Timber,5603,Crossgate Stocks,Received Not Invoiced,2096
http://statistics.data.gov.uk/id/local-authority/47UD,Redditch Borough Council,18/09/2015,237984,3417/01076588,0.00,Gibbs & Dandy Timber,5603,Crossgate Stocks,Stock Account (Cedar),1201
http://statistics.data.gov.uk/id/local-authority/47UD,Redditch Borough Council,18/09/2015,237984,3417/01076588,79.75,Gibbs & Dandy Timber,5603,Crossgate Stocks,Received Not Invoiced,2096
http://statistics.data.gov.uk/id/local-authority/47UD,Redditch Borough Council,18/09/2015,237984,3417/01076588,0.00,Gibbs & Dandy Timber,5603,Crossgate Stocks,Stock Account (Cedar),1201
http://statistics.data.gov.uk/id/local-authority/47UD,Redditch Borough Council,18/09/2015,237984,3417/01076588,83.10,Gibbs & Dandy Timber,5603,Crossgate Stocks,Received Not Invoiced,2096
http://statistics.data.gov.uk/id/local-authority/47UD,Redditch Borough Council,18/09/2015,237984,3417/01076588,0.00,Gibbs & Dandy Timber,5603,Crossgate Stocks,Stock Account (Cedar),1201
http://statistics.data.gov.uk/id/local-authority/47UD,Redditch Borough Council,30/09/2015,238858,3417/01077242,255.75,Gibbs & Dandy Timber,5603,Crossgate Stocks,Received Not Invoiced,2096
http://statistics.data.gov.uk/id/local-authority/47UD,Redditch Borough Council,30/09/2015,238858,3417/01077242,0.00,Gibbs & Dandy Timber,5603,Crossgate Stocks,Stock Account (Cedar),1201
http://statistics.data.gov.uk/id/local-authority/47UD,Redditch Borough Council,30/09/2015,238858,3417/01077242,159.50,Gibbs & Dandy Timber,5603,Crossgate Stocks,Received Not Invoiced,2096
http://statistics.data.gov.uk/id/local-authority/47UD,Redditch Borough Council,30/09/2015,238858,3417/01077242,0.00,Gibbs & Dandy Timber,5603,Crossgate Stocks,Stock Account (Cedar),1201
http://statistics.data.gov.uk/id/local-authority/47UD,Redditch Borough Council,30/09/2015,238858,3417/01077242,55.40,Gibbs & Dandy Timber,5603,Crossgate Stocks,Received Not Invoiced,2096
http://statistics.data.gov.uk/id/local-authority/47UD,Redditch Borough Council,30/09/2015,238858,3417/01077242,0.00,Gibbs & Dandy Timber,5603,Crossgate Stocks,Stock Account (Cedar),1201
http://statistics.data.gov.uk/id/local-authority/47UD,Redditch Borough Council,30/09/2015,238858,3417/01077242,-17.05,Gibbs & Dandy Timber,5603,Crossgate Stocks,Stock Variance,1203
http://statistics.data.gov.uk/id/local-authority/47UD,Redditch Borough Council,30/09/2015,238858,3417/01077242,83.10,Gibbs & Dandy Timber,5603,Crossgate Stocks,Received Not Invoiced,2096
http://statistics.data.gov.uk/id/local-authority/47UD,Redditch Borough Council,30/09/2015,238858,3417/01077242,0.00,Gibbs & Dandy Timber,5603,Crossgate Stocks,Stock Account (Cedar),1201
http://statistics.data.gov.uk/id/local-authority/47UD,Redditch Borough Council,30/09/2015,238858,3417/01077242,170.50,Gibbs & Dandy Timber,5603,Crossgate Stocks,Received Not Invoiced,2096
http://statistics.data.gov.uk/id/local-authority/47UD,Redditch Borough Council,30/09/2015,238858,3417/01077242,0.00,Gibbs & Dandy Timber,5603,Crossgate Stocks,Stock Account (Cedar),1201
http://statistics.data.gov.uk/id/local-authority/47UD,Redditch Borough Council,25/09/2015,238702,08/2015,"20,000.00",Paul Holman Associates,561,Executive Director Lec,Professional Fees,4352
http://statistics.data.gov.uk/id/local-authority/47UD,Redditch Borough Council,11/09/2015,236696,1228,200.00,Samba Workshop,5621,Executive Director Lec,Professional Fees,4352
http://statistics.data.gov.uk/id/local-authority/47UD,Redditch Borough Council,11/09/2015,236696,1228,"1,000.00",Samba Workshop,5621,Executive Director Lec,Professional Fees,4352
http://statistics.data.gov.uk/id/local-authority/47UD,Redditch Borough Council,18/09/2015,235758,SH119055,120.00,Classic Hardware,5646,Crossgate Stocks,Received Not Invoiced,2096
http://statistics.data.gov.uk/id/local-authority/47UD,Redditch Borough Council,18/09/2015,235758,SH119055,0.00,Classic Hardware,5646,Crossgate Stocks,Stock Account (Cedar),1201
http://statistics.data.gov.uk/id/local-authority/47UD,Redditch Borough Council,18/09/2015,235758,SH119055,10.00,Classic Hardware,5646,Crossgate Stocks,Received Not Invoiced,2096
http://statistics.data.gov.uk/id/local-authority/47UD,Redditch Borough Council,18/09/2015,235758,SH119055,0.00,Classic Hardware,5646,Crossgate Stocks,Stock Account (Cedar),1201
http://statistics.data.gov.uk/id/local-authority/47UD,Redditch Borough Council,18/09/2015,235758,SH119055,50.00,Classic Hardware,5646,Crossgate Stocks,Received Not Invoiced,2096
http://statistics.data.gov.uk/id/local-authority/47UD,Redditch Borough Council,18/09/2015,235758,SH119055,0.00,Classic Hardware,5646,Crossgate Stocks,Stock Account (Cedar),1201
http://statistics.data.gov.uk/id/local-authority/47UD,Redditch Borough Council,18/09/2015,235758,SH119055,134.64,Classic Hardware,5646,Crossgate Stocks,Received Not Invoiced,2096
http://statistics.data.gov.uk/id/local-authority/47UD,Redditch Borough Council,18/09/2015,235758,SH119055,0.00,Classic Hardware,5646,Crossgate Stocks,Stock Account (Cedar),1201
http://statistics.data.gov.uk/id/local-authority/47UD,Redditch Borough Council,18/09/2015,235758,SH119055,111.30,Classic Hardware,5646,Crossgate Stocks,Received Not Invoiced,2096
http://statistics.data.gov.uk/id/local-authority/47UD,Redditch Borough Council,18/09/2015,235758,SH119055,0.00,Classic Hardware,5646,Crossgate Stocks,Stock Account (Cedar),1201
http://statistics.data.gov.uk/id/local-authority/47UD,Redditch Borough Council,18/09/2015,235758,SH119055,33.70,Classic Hardware,5646,Crossgate Stocks,Received Not Invoiced,2096
http://statistics.data.gov.uk/id/local-authority/47UD,Redditch Borough Council,18/09/2015,235758,SH119055,0.00,Classic Hardware,5646,Crossgate Stocks,Stock Account (Cedar),1201
http://statistics.data.gov.uk/id/local-authority/47UD,Redditch Borough Council,18/09/2015,235758,SH119055,79.92,Classic Hardware,5646,Crossgate Stocks,Received Not Invoiced,2096
http://statistics.data.gov.uk/id/local-authority/47UD,Redditch Borough Council,18/09/2015,235758,SH119055,0.00,Classic Hardware,5646,Crossgate Stocks,Stock Account (Cedar),1201
http://statistics.data.gov.uk/id/local-authority/47UD,Redditch Borough Council,18/09/2015,235758,SH119055,53.40,Classic Hardware,5646,Crossgate Stocks,Received Not Invoiced,2096
http://statistics.data.gov.uk/id/local-authority/47UD,Redditch Borough Council,18/09/2015,235758,SH119055,0.00,Classic Hardware,5646,Crossgate Stocks,Stock Account (Cedar),1201
http://statistics.data.gov.uk/id/local-authority/47UD,Redditch Borough Council,18/09/2015,235758,SH119055,402.00,Classic Hardware,5646,Crossgate Stocks,Received Not Invoiced,2096
http://statistics.data.gov.uk/id/local-authority/47UD,Redditch Borough Council,18/09/2015,235758,SH119055,0.00,Classic Hardware,5646,Crossgate Stocks,Stock Account (Cedar),1201
http://statistics.data.gov.uk/id/local-authority/47UD,Redditch Borough Council,11/09/2015,237962,SH119288,53.00,Classic Hardware,5646,Crossgate Stocks,Received Not Invoiced,2096
http://statistics.data.gov.uk/id/local-authority/47UD,Redditch Borough Council,11/09/2015,237962,SH119288,0.00,Classic Hardware,5646,Crossgate Stocks,Stock Account (Cedar),1201
http://statistics.data.gov.uk/id/local-authority/47UD,Redditch Borough Council,11/09/2015,237962,SH119288,12.00,Classic Hardware,5646,Crossgate Stocks,Received Not Invoiced,2096
http://statistics.data.gov.uk/id/local-authority/47UD,Redditch Borough Council,11/09/2015,237962,SH119288,0.00,Classic Hardware,5646,Crossgate Stocks,Stock Account (Cedar),1201
http://statistics.data.gov.uk/id/local-authority/47UD,Redditch Borough Council,11/09/2015,237962,SH119288,128.50,Classic Hardware,5646,Crossgate Stocks,Received Not Invoiced,2096
http://statistics.data.gov.uk/id/local-authority/47UD,Redditch Borough Council,11/09/2015,237962,SH119288,0.00,Classic Hardware,5646,Crossgate Stocks,Stock Account (Cedar),1201
http://statistics.data.gov.uk/id/local-authority/47UD,Redditch Borough Council,11/09/2015,237962,SH119288,185.50,Classic Hardware,5646,Crossgate Stocks,Received Not Invoiced,2096
http://statistics.data.gov.uk/id/local-authority/47UD,Redditch Borough Council,11/09/2015,237962,SH119288,0.00,Classic Hardware,5646,Crossgate Stocks,Stock Account (Cedar),1201
http://statistics.data.gov.uk/id/local-authority/47UD,Redditch Borough Council,11/09/2015,237962,SH119288,168.50,Classic Hardware,5646,Crossgate Stocks,Received Not Invoiced,2096
http://statistics.data.gov.uk/id/local-authority/47UD,Redditch Borough Council,11/09/2015,237962,SH119288,0.00,Classic Hardware,5646,Crossgate Stocks,Stock Account (Cedar),1201
http://statistics.data.gov.uk/id/local-authority/47UD,Redditch Borough Council,18/09/2015,237456,GA1219854,11.45,Gamma Business Communications Ltd,5650,Exec. Director Prrh,Telephone Rental,4451
http://statistics.data.gov.uk/id/local-authority/47UD,Redditch Borough Council,18/09/2015,237456,GA1219854,0.03,Gamma Business Communications Ltd,5650,Housing Revenue Account,Telephone Calls,4452
http://statistics.data.gov.uk/id/local-authority/47UD,Redditch Borough Council,18/09/2015,237456,GA1219854,21.45,Gamma Business Communications Ltd,5650,Housing Revenue Account,Telephone Rental,4451
http://statistics.data.gov.uk/id/local-authority/47UD,Redditch Borough Council,18/09/2015,237456,GA1219854,8.29,Gamma Business Communications Ltd,5650,Executive Director Lec,Telephone Calls,4452
http://statistics.data.gov.uk/id/local-authority/47UD,Redditch Borough Council,18/09/2015,237456,GA1219854,27.19,Gamma Business Communications Ltd,5650,Executive Director Lec,Telephone Rental,4451
http://statistics.data.gov.uk/id/local-authority/47UD,Redditch Borough Council,18/09/2015,237456,GA1219854,5.39,Gamma Business Communications Ltd,5650,Exec. Director Prrh,Telephone Calls,4452
http://statistics.data.gov.uk/id/local-authority/47UD,Redditch Borough Council,18/09/2015,237456,GA1219854,27.19,Gamma Business Communications Ltd,5650,Exec. Director Prrh,Telephone Rental,4451
http://statistics.data.gov.uk/id/local-authority/47UD,Redditch Borough Council,18/09/2015,237456,GA1219854,21.45,Gamma Business Communications Ltd,5650,Executive Director Lec,Telephone Rental,4451
http://statistics.data.gov.uk/id/local-authority/47UD,Redditch Borough Council,18/09/2015,237456,GA1219854,0.02,Gamma Business Communications Ltd,5650,Executive Director Lec,Telephone Calls,4452
http://statistics.data.gov.uk/id/local-authority/47UD,Redditch Borough Council,18/09/2015,237456,GA1219854,11.45,Gamma Business Communications Ltd,5650,Executive Director Lec,Telephone Rental,4451
http://statistics.data.gov.uk/id/local-authority/47UD,Redditch Borough Council,18/09/2015,237456,GA1219854,21.45,Gamma Business Communications Ltd,5650,Executive Director Lec,Telephone Rental,4451
http://statistics.data.gov.uk/id/local-authority/47UD,Redditch Borough Council,18/09/2015,237456,GA1219854,11.45,Gamma Business Communications Ltd,5650,Executive Director Lec,Telephone Rental,4451
http://statistics.data.gov.uk/id/local-authority/47UD,Redditch Borough Council,18/09/2015,237456,GA1219854,21.45,Gamma Business Communications Ltd,5650,Executive Director Lec,Telephone Rental,4451
http://statistics.data.gov.uk/id/local-authority/47UD,Redditch Borough Council,18/09/2015,237456,GA1219854,11.45,Gamma Business Communications Ltd,5650,Exec. Director Fin. & Resource,Telephone Rental,4451
http://statistics.data.gov.uk/id/local-authority/47UD,Redditch Borough Council,18/09/2015,237456,GA1219854,0.02,Gamma Business Communications Ltd,5650,Housing Revenue Account,Telephone Calls,4452
http://statistics.data.gov.uk/id/local-authority/47UD,Redditch Borough Council,18/09/2015,237456,GA1219854,11.45,Gamma Business Communications Ltd,5650,Housing Revenue Account,Telephone Rental,4451
http://statistics.data.gov.uk/id/local-authority/47UD,Redditch Borough Council,18/09/2015,237456,GA1219854,11.45,Gamma Business Communications Ltd,5650,Exec. Director Fin. & Resource,Telephone Rental,4451
http://statistics.data.gov.uk/id/local-authority/47UD,Redditch Borough Council,18/09/2015,237456,GA1219854,21.45,Gamma Business Communications Ltd,5650,Housing Revenue Account,Telephone Rental,4451
http://statistics.data.gov.uk/id/local-authority/47UD,Redditch Borough Council,18/09/2015,237456,GA1219854,11.45,Gamma Business Communications Ltd,5650,Chief Executive,Telephone Rental,4451
http://statistics.data.gov.uk/id/local-authority/47UD,Redditch Borough Council,18/09/2015,237456,GA1219854,21.45,Gamma Business Communications Ltd,5650,Executive Director Lec,Telephone Rental,4451
http://statistics.data.gov.uk/id/local-authority/47UD,Redditch Borough Council,18/09/2015,237456,GA1219854,14.50,Gamma Business Communications Ltd,5650,Exec. Director Prrh,Telephone Calls,4452
http://statistics.data.gov.uk/id/local-authority/47UD,Redditch Borough Council,18/09/2015,237456,GA1219854,41.94,Gamma Business Communications Ltd,5650,Exec. Director Prrh,Telephone Rental,4451
http://statistics.data.gov.uk/id/local-authority/47UD,Redditch Borough Council,18/09/2015,237456,GA1219854,11.74,Gamma Business Communications Ltd,5650,Surestart Project,Telephone Calls,4452
http://statistics.data.gov.uk/id/local-authority/47UD,Redditch Borough Council,18/09/2015,237456,GA1219854,11.45,Gamma Business Communications Ltd,5650,Surestart Project,Telephone Rental,4451
http://statistics.data.gov.uk/id/local-authority/47UD,Redditch Borough Council,18/09/2015,237456,GA1219854,2.07,Gamma Business Communications Ltd,5650,Exec. Director Prrh,Telephone Calls,4452
http://statistics.data.gov.uk/id/local-authority/47UD,Redditch Borough Council,18/09/2015,237456,GA1219854,11.45,Gamma Business Communications Ltd,5650,Exec. Director Prrh,Telephone Rental,4451
http://statistics.data.gov.uk/id/local-authority/47UD,Redditch Borough Council,18/09/2015,237456,GA1219854,21.45,Gamma Business Communications Ltd,5650,Executive Director Lec,Telephone Rental,4451
http://statistics.data.gov.uk/id/local-authority/47UD,Redditch Borough Council,18/09/2015,237456,GA1219854,0.62,Gamma Business Communications Ltd,5650,Surestart Project,Telephone Calls,4452
http://statistics.data.gov.uk/id/local-authority/47UD,Redditch Borough Council,18/09/2015,237456,GA1219854,22.90,Gamma Business Communications Ltd,5650,Surestart Project,Telephone Rental,4451
http://statistics.data.gov.uk/id/local-authority/47UD,Redditch Borough Council,18/09/2015,237456,GA1219854,13.11,Gamma Business Communications Ltd,5650,Surestart Project,Telephone Calls,4452
http://statistics.data.gov.uk/id/local-authority/47UD,Redditch Borough Council,18/09/2015,237456,GA1219854,11.45,Gamma Business Communications Ltd,5650,Surestart Project,Telephone Rental,4451
http://statistics.data.gov.uk/id/local-authority/47UD,Redditch Borough Council,18/09/2015,237456,GA1219854,10.70,Gamma Business Communications Ltd,5650,Executive Director Lec,Telephone Rental,4451
http://statistics.data.gov.uk/id/local-authority/47UD,Redditch Borough Council,18/09/2015,237456,GA1219854,0.36,Gamma Business Communications Ltd,5650,Surestart Project,Telephone Calls,4452
http://statistics.data.gov.uk/id/local-authority/47UD,Redditch Borough Council,18/09/2015,237456,GA1219854,11.45,Gamma Business Communications Ltd,5650,Surestart Project,Telephone Rental,4451
http://statistics.data.gov.uk/id/local-authority/47UD,Redditch Borough Council,18/09/2015,237456,GA1219854,11.45,Gamma Business Communications Ltd,5650,Exec. Director Fin. & Resource,Telephone Rental,4451
http://statistics.data.gov.uk/id/local-authority/47UD,Redditch Borough Council,18/09/2015,237456,GA1219854,11.45,Gamma Business Communications Ltd,5650,Exec. Director Prrh,Alarm Rental,3501
http://statistics.data.gov.uk/id/local-authority/47UD,Redditch Borough Council,18/09/2015,237456,GA1219854,0.45,Gamma Business Communications Ltd,5650,Housing Revenue Account,Telephone Calls,4452
http://statistics.data.gov.uk/id/local-authority/47UD,Redditch Borough Council,18/09/2015,237456,GA1219854,11.45,Gamma Business Communications Ltd,5650,Housing Revenue Account,Telephone Rental,4451
http://statistics.data.gov.uk/id/local-authority/47UD,Redditch Borough Council,18/09/2015,237456,GA1219854,4.05,Gamma Business Communications Ltd,5650,Executive Director Lec,Telephone Calls,4452
http://statistics.data.gov.uk/id/local-authority/47UD,Redditch Borough Council,18/09/2015,237456,GA1219854,11.45,Gamma Business Communications Ltd,5650,Executive Director Lec,Telephone Rental,4451
http://statistics.data.gov.uk/id/local-authority/47UD,Redditch Borough Council,18/09/2015,237456,GA1219854,0.24,Gamma Business Communications Ltd,5650,Exec. Director Prrh,Telephone Calls,4452
http://statistics.data.gov.uk/id/local-authority/47UD,Redditch Borough Council,18/09/2015,237456,GA1219854,11.45,Gamma Business Communications Ltd,5650,Exec. Director Prrh,Telephone Rental,4451
http://statistics.data.gov.uk/id/local-authority/47UD,Redditch Borough Council,18/09/2015,237456,GA1219854,21.45,Gamma Business Communications Ltd,5650,Exec. Director Fin. & Resource,Telephone Rental,4451
http://statistics.data.gov.uk/id/local-authority/47UD,Redditch Borough Council,18/09/2015,237456,GA1219854,11.45,Gamma Business Communications Ltd,5650,Exec. Director Prrh,Telephone Rental,4451
http://statistics.data.gov.uk/id/local-authority/47UD,Redditch Borough Council,18/09/2015,237456,GA1219854,21.45,Gamma Business Communications Ltd,5650,Chief Executive,Telephone Rental,4451
http://statistics.data.gov.uk/id/local-authority/47UD,Redditch Borough Council,18/09/2015,237456,GA1219854,11.45,Gamma Business Communications Ltd,5650,Exec. Director Prrh,Telephone Rental,4451
http://statistics.data.gov.uk/id/local-authority/47UD,Redditch Borough Council,18/09/2015,237456,GA1219854,9.31,Gamma Business Communications Ltd,5650,Executive Director Lec,Telephone Calls,4452
http://statistics.data.gov.uk/id/local-authority/47UD,Redditch Borough Council,18/09/2015,237456,GA1219854,23.89,Gamma Business Communications Ltd,5650,Executive Director Lec,Telephone Rental,4451
http://statistics.data.gov.uk/id/local-authority/47UD,Redditch Borough Council,18/09/2015,237456,GA1219854,0.89,Gamma Business Communications Ltd,5650,Executive Director Lec,Telephone Calls,4452
http://statistics.data.gov.uk/id/local-authority/47UD,Redditch Borough Council,18/09/2015,237456,GA1219854,11.45,Gamma Business Communications Ltd,5650,Executive Director Lec,Telephone Rental,4451
http://statistics.data.gov.uk/id/local-authority/47UD,Redditch Borough Council,18/09/2015,237456,GA1219854,1.45,Gamma Business Communications Ltd,5650,Executive Director Lec,Telephone Calls,4452
http://statistics.data.gov.uk/id/local-authority/47UD,Redditch Borough Council,18/09/2015,237456,GA1219854,11.45,Gamma Business Communications Ltd,5650,Executive Director Lec,Telephone Rental,4451
http://statistics.data.gov.uk/id/local-authority/47UD,Redditch Borough Council,18/09/2015,237456,GA1219854,11.45,Gamma Business Communications Ltd,5650,Executive Director Lec,Telephone Rental,4451
http://statistics.data.gov.uk/id/local-authority/47UD,Redditch Borough Council,18/09/2015,237456,GA1219854,11.45,Gamma Business Communications Ltd,5650,Executive Director Lec,Telephone Rental,4451
http://statistics.data.gov.uk/id/local-authority/47UD,Redditch Borough Council,18/09/2015,237456,GA1219854,1.18,Gamma Business Communications Ltd,5650,Executive Director Lec,Telephone Calls,4452
http://statistics.data.gov.uk/id/local-authority/47UD,Redditch Borough Council,18/09/2015,237456,GA1219854,11.45,Gamma Business Communications Ltd,5650,Executive Director Lec,Telephone Rental,4451
http://statistics.data.gov.uk/id/local-authority/47UD,Redditch Borough Council,18/09/2015,237456,GA1219854,11.45,Gamma Business Communications Ltd,5650,Executive Director Lec,Telephone Rental,4451
http://statistics.data.gov.uk/id/local-authority/47UD,Redditch Borough Council,18/09/2015,237456,GA1219854,30.65,Gamma Business Communications Ltd,5650,Surestart Project,Telephone Calls,4452
http://statistics.data.gov.uk/id/local-authority/47UD,Redditch Borough Council,18/09/2015,237456,GA1219854,11.45,Gamma Business Communications Ltd,5650,Surestart Project,Telephone Rental,4451
http://statistics.data.gov.uk/id/local-authority/47UD,Redditch Borough Council,18/09/2015,237456,GA1219854,9.78,Gamma Business Communications Ltd,5650,Housing Revenue Account,Telephone Calls,4452
http://statistics.data.gov.uk/id/local-authority/47UD,Redditch Borough Council,18/09/2015,237456,GA1219854,18.20,Gamma Business Communications Ltd,5650,Housing Revenue Account,Telephone Rental,4451
http://statistics.data.gov.uk/id/local-authority/47UD,Redditch Borough Council,18/09/2015,237456,GA1219854,0.03,Gamma Business Communications Ltd,5650,Executive Director Lec,Telephone Calls,4452
http://statistics.data.gov.uk/id/local-authority/47UD,Redditch Borough Council,18/09/2015,237456,GA1219854,11.45,Gamma Business Communications Ltd,5650,Executive Director Lec,Telephone Rental,4451
http://statistics.data.gov.uk/id/local-authority/47UD,Redditch Borough Council,18/09/2015,237456,GA1219854,24.30,Gamma Business Communications Ltd,5650,Exec. Director Fin. & Resource,Telephone Rental,4451
http://statistics.data.gov.uk/id/local-authority/47UD,Redditch Borough Council,18/09/2015,237456,GA1219854,0.14,Gamma Business Communications Ltd,5650,Housing Revenue Account,Telephone Calls,4452
http://statistics.data.gov.uk/id/local-authority/47UD,Redditch Borough Council,18/09/2015,237456,GA1219854,11.45,Gamma Business Communications Ltd,5650,Housing Revenue Account,Telephone Rental,4451
http://statistics.data.gov.uk/id/local-authority/47UD,Redditch Borough Council,18/09/2015,237456,GA1219854,21.45,Gamma Business Communications Ltd,5650,Housing Repairs Account,Telephone Rental,4451
http://statistics.data.gov.uk/id/local-authority/47UD,Redditch Borough Council,18/09/2015,237456,GA1219854,14.84,Gamma Business Communications Ltd,5650,Surestart Project,Telephone Calls,4452
http://statistics.data.gov.uk/id/local-authority/47UD,Redditch Borough Council,18/09/2015,237456,GA1219854,11.45,Gamma Business Communications Ltd,5650,Surestart Project,Telephone Rental,4451
http://statistics.data.gov.uk/id/local-authority/47UD,Redditch Borough Council,18/09/2015,237456,GA1219854,1.08,Gamma Business Communications Ltd,5650,Surestart Project,Telephone Calls,4452
http://statistics.data.gov.uk/id/local-authority/47UD,Redditch Borough Council,18/09/2015,237456,GA1219854,11.45,Gamma Business Communications Ltd,5650,Surestart Project,Telephone Rental,4451
http://statistics.data.gov.uk/id/local-authority/47UD,Redditch Borough Council,18/09/2015,237456,GA1219854,11.45,Gamma Business Communications Ltd,5650,Executive Director Lec,Telephone Rental,4451
http://statistics.data.gov.uk/id/local-authority/47UD,Redditch Borough Council,18/09/2015,237456,GA1219854,11.45,Gamma Business Communications Ltd,5650,Chief Executive,Telephone Rental,4451
http://statistics.data.gov.uk/id/local-authority/47UD,Redditch Borough Council,18/09/2015,237456,GA1219854,21.45,Gamma Business Communications Ltd,5650,Executive Director Lec,Telephone Rental,4451
http://statistics.data.gov.uk/id/local-authority/47UD,Redditch Borough Council,18/09/2015,237456,GA1219854,0.29,Gamma Business Communications Ltd,5650,Executive Director Lec,Telephone Calls,4452
http://statistics.data.gov.uk/id/local-authority/47UD,Redditch Borough Council,18/09/2015,237456,GA1219854,11.45,Gamma Business Communications Ltd,5650,Executive Director Lec,Telephone Rental,4451
http://statistics.data.gov.uk/id/local-authority/47UD,Redditch Borough Council,18/09/2015,237456,GA1219854,11.45,Gamma Business Communications Ltd,5650,Exec. Director Fin. & Resource,Telephone Rental,4451
http://statistics.data.gov.uk/id/local-authority/47UD,Redditch Borough Council,18/09/2015,237456,GA1219854,21.45,Gamma Business Communications Ltd,5650,Exec. Director Fin. & Resource,Telephone Rental,4451
http://statistics.data.gov.uk/id/local-authority/47UD,Redditch Borough Council,18/09/2015,237456,GA1219854,11.45,Gamma Business Communications Ltd,5650,Chief Executive,Telephone Rental,4451
http://statistics.data.gov.uk/id/local-authority/47UD,Redditch Borough Council,18/09/2015,237456,GA1219854,34.30,Gamma Business Communications Ltd,5650,Chief Executive,Telephone Rental,4451
http://statistics.data.gov.uk/id/local-authority/47UD,Redditch Borough Council,18/09/2015,237456,GA1219854,28.01,Gamma Business Communications Ltd,5650,Executive Director Lec,Telephone Calls,4452
http://statistics.data.gov.uk/id/local-authority/47UD,Redditch Borough Council,18/09/2015,237456,GA1219854,69.69,Gamma Business Communications Ltd,5650,Executive Director Lec,Telephone Rental,4451
http://statistics.data.gov.uk/id/local-authority/47UD,Redditch Borough Council,18/09/2015,237456,GA1219854,21.45,Gamma Business Communications Ltd,5650,Housing Revenue Account,Telephone Rental,4451
http://statistics.data.gov.uk/id/local-authority/47UD,Redditch Borough Council,18/09/2015,237456,GA1219854,6.35,Gamma Business Communications Ltd,5650,Executive Director Lec,Telephone Calls,4452
http://statistics.data.gov.uk/id/local-authority/47UD,Redditch Borough Council,18/09/2015,237456,GA1219854,11.45,Gamma Business Communications Ltd,5650,Executive Director Lec,Telephone Rental,4451
http://statistics.data.gov.uk/id/local-authority/47UD,Redditch Borough Council,18/09/2015,237456,GA1219854,6.76,Gamma Business Communications Ltd,5650,Surestart Project,Telephone Calls,4452
http://statistics.data.gov.uk/id/local-authority/47UD,Redditch Borough Council,18/09/2015,237456,GA1219854,22.90,Gamma Business Communications Ltd,5650,Surestart Project,Telephone Rental,4451
http://statistics.data.gov.uk/id/local-authority/47UD,Redditch Borough Council,18/09/2015,237456,GA1219854,11.45,Gamma Business Communications Ltd,5650,Executive Director Lec,Telephone Rental,4451
http://statistics.data.gov.uk/id/local-authority/47UD,Redditch Borough Council,18/09/2015,237456,GA1219854,0.10,Gamma Business Communications Ltd,5650,Executive Director Lec,Telephone Calls,4452
http://statistics.data.gov.uk/id/local-authority/47UD,Redditch Borough Council,18/09/2015,237456,GA1219854,11.45,Gamma Business Communications Ltd,5650,Executive Director Lec,Telephone Rental,4451
http://statistics.data.gov.uk/id/local-authority/47UD,Redditch Borough Council,18/09/2015,237456,GA1219854,0.04,Gamma Business Communications Ltd,5650,Executive Director Lec,Telephone Calls,4452
http://statistics.data.gov.uk/id/local-authority/47UD,Redditch Borough Council,18/09/2015,237456,GA1219854,11.45,Gamma Business Communications Ltd,5650,Executive Director Lec,Telephone Rental,4451
http://statistics.data.gov.uk/id/local-authority/47UD,Redditch Borough Council,18/09/2015,237456,GA1219854,4.18,Gamma Business Communications Ltd,5650,Executive Director Lec,Telephone Calls,4452
http://statistics.data.gov.uk/id/local-authority/47UD,Redditch Borough Council,18/09/2015,237456,GA1219854,35.34,Gamma Business Communications Ltd,5650,Executive Director Lec,Telephone Rental,4451
http://statistics.data.gov.uk/id/local-authority/47UD,Redditch Borough Council,18/09/2015,237456,GA1219854,11.45,Gamma Business Communications Ltd,5650,Chief Executive,Telephone Rental,4451
http://statistics.data.gov.uk/id/local-authority/47UD,Redditch Borough Council,18/09/2015,237456,GA1219854,3.19,Gamma Business Communications Ltd,5650,Executive Director Lec,Telephone Calls,4452
http://statistics.data.gov.uk/id/local-authority/47UD,Redditch Borough Council,18/09/2015,237456,GA1219854,11.45,Gamma Business Communications Ltd,5650,Executive Director Lec,Telephone Rental,4451
http://statistics.data.gov.uk/id/local-authority/47UD,Redditch Borough Council,18/09/2015,237456,GA1219854,11.45,Gamma Business Communications Ltd,5650,Executive Director Lec,Telephone Rental,4451
http://statistics.data.gov.uk/id/local-authority/47UD,Redditch Borough Council,18/09/2015,237456,GA1219854,11.45,Gamma Business Communications Ltd,5650,Exec. Director Fin. & Resource,Telephone Rental,4451
http://statistics.data.gov.uk/id/local-authority/47UD,Redditch Borough Council,18/09/2015,237456,GA1219854,2.12,Gamma Business Communications Ltd,5650,Surestart Project,Telephone Calls,4452
http://statistics.data.gov.uk/id/local-authority/47UD,Redditch Borough Council,18/09/2015,237456,GA1219854,11.45,Gamma Business Communications Ltd,5650,Surestart Project,Telephone Rental,4451
http://statistics.data.gov.uk/id/local-authority/47UD,Redditch Borough Council,18/09/2015,237456,GA1219854,21.45,Gamma Business Communications Ltd,5650,Executive Director Lec,Telephone Rental,4451
http://statistics.data.gov.uk/id/local-authority/47UD,Redditch Borough Council,18/09/2015,237456,GA1219854,11.45,Gamma Business Communications Ltd,5650,Executive Director Lec,Telephone Rental,4451
http://statistics.data.gov.uk/id/local-authority/47UD,Redditch Borough Council,18/09/2015,237456,GA1219854,0.20,Gamma Business Communications Ltd,5650,Housing Revenue Account,Telephone Calls,4452
http://statistics.data.gov.uk/id/local-authority/47UD,Redditch Borough Council,18/09/2015,237456,GA1219854,11.45,Gamma Business Communications Ltd,5650,Housing Revenue Account,Telephone Rental,4451
http://statistics.data.gov.uk/id/local-authority/47UD,Redditch Borough Council,18/09/2015,237456,GA1219854,4.31,Gamma Business Communications Ltd,5650,Executive Director Lec,Telephone Calls,4452
http://statistics.data.gov.uk/id/local-authority/47UD,Redditch Borough Council,18/09/2015,237456,GA1219854,22.90,Gamma Business Communications Ltd,5650,Executive Director Lec,Telephone Rental,4451
http://statistics.data.gov.uk/id/local-authority/47UD,Redditch Borough Council,18/09/2015,237456,GA1219854,11.45,Gamma Business Communications Ltd,5650,Executive Director Lec,Telephone Rental,4451
http://statistics.data.gov.uk/id/local-authority/47UD,Redditch Borough Council,18/09/2015,237456,GA1219854,19.93,Gamma Business Communications Ltd,5650,Executive Director Lec,Telephone Calls,4452
http://statistics.data.gov.uk/id/local-authority/47UD,Redditch Borough Council,18/09/2015,237456,GA1219854,89.18,Gamma Business Communications Ltd,5650,Executive Director Lec,Telephone Rental,4451
http://statistics.data.gov.uk/id/local-authority/47UD,Redditch Borough Council,18/09/2015,237456,GA1219854,21.45,Gamma Business Communications Ltd,5650,Chief Executive,Telephone Rental,4451
http://statistics.data.gov.uk/id/local-authority/47UD,Redditch Borough Council,18/09/2015,237456,GA1219854,21.45,Gamma Business Communications Ltd,5650,Chief Executive,Telephone Rental,4451
http://statistics.data.gov.uk/id/local-authority/47UD,Redditch Borough Council,18/09/2015,237456,GA1219854,21.45,Gamma Business Communications Ltd,5650,Chief Executive,Telephone Rental,4451
http://statistics.data.gov.uk/id/local-authority/47UD,Redditch Borough Council,18/09/2015,237456,GA1219854,21.45,Gamma Business Communications Ltd,5650,Chief Executive,Telephone Rental,4451
http://statistics.data.gov.uk/id/local-authority/47UD,Redditch Borough Council,18/09/2015,237456,GA1219854,21.45,Gamma Business Communications Ltd,5650,Chief Executive,Telephone Rental,4451
http://statistics.data.gov.uk/id/local-authority/47UD,Redditch Borough Council,18/09/2015,237456,GA1219854,64.40,Gamma Business Communications Ltd,5650,Chief Executive,Telephone Rental,4451
http://statistics.data.gov.uk/id/local-authority/47UD,Redditch Borough Council,18/09/2015,237456,GA1219854,1.17,Gamma Business Communications Ltd,5650,Executive Director Lec,Telephone Calls,4452
http://statistics.data.gov.uk/id/local-authority/47UD,Redditch Borough Council,18/09/2015,237456,GA1219854,11.45,Gamma Business Communications Ltd,5650,Executive Director Lec,Telephone Rental,4451
http://statistics.data.gov.uk/id/local-authority/47UD,Redditch Borough Council,18/09/2015,237456,GA1219854,1.29,Gamma Business Communications Ltd,5650,Executive Director Lec,Telephone Calls,4452
http://statistics.data.gov.uk/id/local-authority/47UD,Redditch Borough Council,18/09/2015,237456,GA1219854,25.89,Gamma Business Communications Ltd,5650,Executive Director Lec,Telephone Rental,4451
http://statistics.data.gov.uk/id/local-authority/47UD,Redditch Borough Council,04/09/2015,235790,4960,309.74,System Chassijet Ltd,5697,Executive Director Lec,Materials (Veh),3700
http://statistics.data.gov.uk/id/local-authority/47UD,Redditch Borough Council,04/09/2015,235790,4960,190.00,System Chassijet Ltd,5697,Executive Director Lec,Materials (Veh),3700
http://statistics.data.gov.uk/id/local-authority/47UD,Redditch Borough Council,04/09/2015,236513,14232,750.00,Wavelength Stageco Ltd,5746,Executive Director Lec,Operation Equip- Hire & Rental,4151
http://statistics.data.gov.uk/id/local-authority/47UD,Redditch Borough Council,04/09/2015,236513,14232,750.00,Wavelength Stageco Ltd,5746,Executive Director Lec,Operation Equip- Hire & Rental,4151
http://statistics.data.gov.uk/id/local-authority/47UD,Redditch Borough Council,04/09/2015,236513,14232,750.00,Wavelength Stageco Ltd,5746,Executive Director Lec,Operation Equip- Hire & Rental,4151
http://statistics.data.gov.uk/id/local-authority/47UD,Redditch Borough Council,04/09/2015,236513,14232,750.00,Wavelength Stageco Ltd,5746,Executive Director Lec,Operation Equip- Hire & Rental,4151
http://statistics.data.gov.uk/id/local-authority/47UD,Redditch Borough Council,04/09/2015,236513,14232,750.00,Wavelength Stageco Ltd,5746,Executive Director Lec,Operation Equip- Hire & Rental,4151
http://statistics.data.gov.uk/id/local-authority/47UD,Redditch Borough Council,04/09/2015,236513,14232,750.00,Wavelength Stageco Ltd,5746,Executive Director Lec,Operation Equip- Hire & Rental,4151
http://statistics.data.gov.uk/id/local-authority/47UD,Redditch Borough Council,04/09/2015,236514,14233,400.00,Wavelength Stageco Ltd,5746,Executive Director Lec,Operation Equip- Hire & Rental,4151
http://statistics.data.gov.uk/id/local-authority/47UD,Redditch Borough Council,04/09/2015,236514,14233,400.00,Wavelength Stageco Ltd,5746,Executive Director Lec,Operation Equip- Hire & Rental,4151
http://statistics.data.gov.uk/id/local-authority/47UD,Redditch Borough Council,04/09/2015,236514,14233,750.50,Wavelength Stageco Ltd,5746,Executive Director Lec,Operation Equip- Hire & Rental,4151
http://statistics.data.gov.uk/id/local-authority/47UD,Redditch Borough Council,18/09/2015,237246,14240,"8,419.79",Wavelength Stageco Ltd,5746,Executive Director Lec,Operation Equip- Hire & Rental,4151
http://statistics.data.gov.uk/id/local-authority/47UD,Redditch Borough Council,11/09/2015,237069,12842,"3,091.00",Trash Uk Limited,5787,Executive Director Lec,Contractors,3701
http://statistics.data.gov.uk/id/local-authority/47UD,Redditch Borough Council,11/09/2015,235603,I-0326969,48.00,Zoggs Retail,5823,Executive Director Lec,Purchases For Resale,4050
http://statistics.data.gov.uk/id/local-authority/47UD,Redditch Borough Council,11/09/2015,235603,I-0326969,18.00,Zoggs Retail,5823,Executive Director Lec,Purchases For Resale,4050
http://statistics.data.gov.uk/id/local-authority/47UD,Redditch Borough Council,11/09/2015,235603,I-0326969,54.00,Zoggs Retail,5823,Executive Director Lec,Purchases For Resale,4050
http://statistics.data.gov.uk/id/local-authority/47UD,Redditch Borough Council,11/09/2015,235603,I-0326969,60.00,Zoggs Retail,5823,Executive Director Lec,Purchases For Resale,4050
http://statistics.data.gov.uk/id/local-authority/47UD,Redditch Borough Council,11/09/2015,235603,I-0326969,54.00,Zoggs Retail,5823,Executive Director Lec,Purchases For Resale,4050
http://statistics.data.gov.uk/id/local-authority/47UD,Redditch Borough Council,11/09/2015,235603,I-0326969,72.00,Zoggs Retail,5823,Executive Director Lec,Purchases For Resale,4050
http://statistics.data.gov.uk/id/local-authority/47UD,Redditch Borough Council,11/09/2015,235603,I-0326969,60.00,Zoggs Retail,5823,Executive Director Lec,Purchases For Resale,4050
http://statistics.data.gov.uk/id/local-authority/47UD,Redditch Borough Council,11/09/2015,235603,I-0326969,60.00,Zoggs Retail,5823,Executive Director Lec,Purchases For Resale,4050
http://statistics.data.gov.uk/id/local-authority/47UD,Redditch Borough Council,11/09/2015,235603,I-0326969,54.00,Zoggs Retail,5823,Executive Director Lec,Purchases For Resale,4050
http://statistics.data.gov.uk/id/local-authority/47UD,Redditch Borough Council,25/09/2015,238540,1591,700.00,Lms Events,5828,Executive Director Lec,Operation Equip- Hire & Rental,4151
http://statistics.data.gov.uk/id/local-authority/47UD,Redditch Borough Council,04/09/2015,237458,E3713924,152.95,Laser,5837,Housing Revenue Account,Electricity,3300
http://statistics.data.gov.uk/id/local-authority/47UD,Redditch Borough Council,04/09/2015,237458,E3713924,46.49,Laser,5837,Housing Revenue Account,Electricity,3300
http://statistics.data.gov.uk/id/local-authority/47UD,Redditch Borough Council,04/09/2015,237458,E3713924,147.70,Laser,5837,Exec. Director Fin. & Resource,Electricity,3300
http://statistics.data.gov.uk/id/local-authority/47UD,Redditch Borough Council,04/09/2015,237458,E3713924,17.10,Laser,5837,Housing Revenue Account,Electricity,3300
http://statistics.data.gov.uk/id/local-authority/47UD,Redditch Borough Council,04/09/2015,237458,E3713924,51.17,Laser,5837,Housing Revenue Account,Electricity,3300
http://statistics.data.gov.uk/id/local-authority/47UD,Redditch Borough Council,04/09/2015,237458,E3713924,73.93,Laser,5837,Housing Revenue Account,Electricity,3300
http://statistics.data.gov.uk/id/local-authority/47UD,Redditch Borough Council,04/09/2015,237458,E3713924,21.03,Laser,5837,Housing Revenue Account,Electricity,3300
http://statistics.data.gov.uk/id/local-authority/47UD,Redditch Borough Council,04/09/2015,237458,E3713924,83.23,Laser,5837,Housing Revenue Account,Electricity,3300
http://statistics.data.gov.uk/id/local-authority/47UD,Redditch Borough Council,04/09/2015,237458,E3713924,28.48,Laser,5837,Housing Revenue Account,Electricity,3300
http://statistics.data.gov.uk/id/local-authority/47UD,Redditch Borough Council,04/09/2015,237458,E3713924,27.99,Laser,5837,Housing Revenue Account,Electricity,3300
http://statistics.data.gov.uk/id/local-authority/47UD,Redditch Borough Council,04/09/2015,237458,E3713924,128.74,Laser,5837,Housing Revenue Account,Electricity,3300
http://statistics.data.gov.uk/id/local-authority/47UD,Redditch Borough Council,04/09/2015,237458,E3713924,31.90,Laser,5837,Housing Revenue Account,Electricity,3300
http://statistics.data.gov.uk/id/local-authority/47UD,Redditch Borough Council,04/09/2015,237458,E3713924,36.16,Laser,5837,Housing Revenue Account,Electricity,3300
http://statistics.data.gov.uk/id/local-authority/47UD,Redditch Borough Council,04/09/2015,237458,E3713924,85.75,Laser,5837,Housing Revenue Account,Electricity,3300
http://statistics.data.gov.uk/id/local-authority/47UD,Redditch Borough Council,04/09/2015,237458,E3713924,"6,538.03",Laser,5837,Executive Director Lec,Electricity,3300
http://statistics.data.gov.uk/id/local-authority/47UD,Redditch Borough Council,04/09/2015,237458,E3713924,87.03,Laser,5837,Housing Revenue Account,Electricity,3300
http://statistics.data.gov.uk/id/local-authority/47UD,Redditch Borough Council,04/09/2015,237458,E3713924,"6,549.98",Laser,5837,Housing Revenue Account,Electricity,3300
http://statistics.data.gov.uk/id/local-authority/47UD,Redditch Borough Council,04/09/2015,237458,E3713924,136.02,Laser,5837,Executive Director Lec,Electricity,3300
http://statistics.data.gov.uk/id/local-authority/47UD,Redditch Borough Council,04/09/2015,237458,E3713924,244.91,Laser,5837,Housing Revenue Account,Electricity,3300
http://statistics.data.gov.uk/id/local-authority/47UD,Redditch Borough Council,04/09/2015,237458,E3713924,309.40,Laser,5837,Exec. Director Fin. & Resource,Electricity,3300
http://statistics.data.gov.uk/id/local-authority/47UD,Redditch Borough Council,04/09/2015,237458,E3713924,47.92,Laser,5837,Housing Revenue Account,Electricity,3300
http://statistics.data.gov.uk/id/local-authority/47UD,Redditch Borough Council,04/09/2015,237458,E3713924,211.17,Laser,5837,Executive Director Lec,Electricity,3300
http://statistics.data.gov.uk/id/local-authority/47UD,Redditch Borough Council,04/09/2015,237458,E3713924,14.42,Laser,5837,Executive Director Lec,Electricity,3300
http://statistics.data.gov.uk/id/local-authority/47UD,Redditch Borough Council,04/09/2015,237458,E3713924,152.89,Laser,5837,Housing Revenue Account,Electricity,3300
http://statistics.data.gov.uk/id/local-authority/47UD,Redditch Borough Council,04/09/2015,237458,E3713924,197.78,Laser,5837,Housing Revenue Account,Electricity,3300
http://statistics.data.gov.uk/id/local-authority/47UD,Redditch Borough Council,04/09/2015,237458,E3713924,14.16,Laser,5837,Housing Revenue Account,Electricity,3300
http://statistics.data.gov.uk/id/local-authority/47UD,Redditch Borough Council,04/09/2015,237458,E3713924,164.74,Laser,5837,Executive Director Lec,Electricity,3300
http://statistics.data.gov.uk/id/local-authority/47UD,Redditch Borough Council,04/09/2015,237458,E3713924,20.55,Laser,5837,Housing Revenue Account,Electricity,3300
http://statistics.data.gov.uk/id/local-authority/47UD,Redditch Borough Council,04/09/2015,237458,E3713924,"3,366.40",Laser,5837,Executive Director Lec,Electricity,3300
http://statistics.data.gov.uk/id/local-authority/47UD,Redditch Borough Council,04/09/2015,237458,E3713924,155.10,Laser,5837,Executive Director Lec,Electricity,3300
http://statistics.data.gov.uk/id/local-authority/47UD,Redditch Borough Council,04/09/2015,237458,E3713924,"2,428.70",Laser,5837,Exec. Director Fin. & Resource,Electricity,3300
http://statistics.data.gov.uk/id/local-authority/47UD,Redditch Borough Council,04/09/2015,237458,E3713924,125.97,Laser,5837,Housing Revenue Account,Electricity,3300
http://statistics.data.gov.uk/id/local-authority/47UD,Redditch Borough Council,04/09/2015,237458,E3713924,44.44,Laser,5837,Housing Revenue Account,Electricity,3300
http://statistics.data.gov.uk/id/local-authority/47UD,Redditch Borough Council,04/09/2015,237458,E3713924,564.82,Laser,5837,Housing Revenue Account,Electricity,3300
http://statistics.data.gov.uk/id/local-authority/47UD,Redditch Borough Council,04/09/2015,237458,E3713924,386.03,Laser,5837,Exec. Director Prrh,Electricity,3300
http://statistics.data.gov.uk/id/local-authority/47UD,Redditch Borough Council,04/09/2015,237458,E3713924,638.40,Laser,5837,Housing Revenue Account,Electricity,3300
http://statistics.data.gov.uk/id/local-authority/47UD,Redditch Borough Council,04/09/2015,237458,E3713924,120.41,Laser,5837,Housing Revenue Account,Electricity,3300
http://statistics.data.gov.uk/id/local-authority/47UD,Redditch Borough Council,04/09/2015,237458,E3713924,288.28,Laser,5837,Housing Revenue Account,Electricity,3300
http://statistics.data.gov.uk/id/local-authority/47UD,Redditch Borough Council,04/09/2015,237458,E3713924,112.89,Laser,5837,Housing Revenue Account,Electricity,3300
http://statistics.data.gov.uk/id/local-authority/47UD,Redditch Borough Council,04/09/2015,237458,E3713924,92.71,Laser,5837,Housing Revenue Account,Electricity,3300
http://statistics.data.gov.uk/id/local-authority/47UD,Redditch Borough Council,04/09/2015,237458,E3713924,18.09,Laser,5837,Housing Revenue Account,Electricity,3300
http://statistics.data.gov.uk/id/local-authority/47UD,Redditch Borough Council,04/09/2015,237458,E3713924,35.99,Laser,5837,Housing Revenue Account,Electricity,3300
http://statistics.data.gov.uk/id/local-authority/47UD,Redditch Borough Council,04/09/2015,237458,E3713924,98.60,Laser,5837,Housing Revenue Account,Electricity,3300
http://statistics.data.gov.uk/id/local-authority/47UD,Redditch Borough Council,04/09/2015,237458,E3713924,27.21,Laser,5837,Housing Revenue Account,Electricity,3300
http://statistics.data.gov.uk/id/local-authority/47UD,Redditch Borough Council,04/09/2015,237458,E3713924,28.72,Laser,5837,Housing Revenue Account,Electricity,3300
http://statistics.data.gov.uk/id/local-authority/47UD,Redditch Borough Council,04/09/2015,237458,E3713924,192.64,Laser,5837,Housing Revenue Account,Electricity,3300
http://statistics.data.gov.uk/id/local-authority/47UD,Redditch Borough Council,04/09/2015,237458,E3713924,16.86,Laser,5837,Housing Revenue Account,Electricity,3300
http://statistics.data.gov.uk/id/local-authority/47UD,Redditch Borough Council,04/09/2015,237458,E3713924,139.98,Laser,5837,Housing Revenue Account,Electricity,3300
http://statistics.data.gov.uk/id/local-authority/47UD,Redditch Borough Council,04/09/2015,237458,E3713924,67.50,Laser,5837,Housing Revenue Account,Electricity,3300
http://statistics.data.gov.uk/id/local-authority/47UD,Redditch Borough Council,04/09/2015,237458,E3713924,263.59,Laser,5837,Housing Revenue Account,Electricity,3300
http://statistics.data.gov.uk/id/local-authority/47UD,Redditch Borough Council,04/09/2015,237458,E3713924,53.43,Laser,5837,Housing Revenue Account,Electricity,3300
http://statistics.data.gov.uk/id/local-authority/47UD,Redditch Borough Council,04/09/2015,237458,E3713924,63.17,Laser,5837,Housing Revenue Account,Electricity,3300
http://statistics.data.gov.uk/id/local-authority/47UD,Redditch Borough Council,04/09/2015,237458,E3713924,149.53,Laser,5837,Housing Revenue Account,Electricity,3300
http://statistics.data.gov.uk/id/local-authority/47UD,Redditch Borough Council,04/09/2015,237458,E3713924,145.56,Laser,5837,Housing Revenue Account,Electricity,3300
http://statistics.data.gov.uk/id/local-authority/47UD,Redditch Borough Council,04/09/2015,237458,E3713924,333.95,Laser,5837,Housing Revenue Account,Electricity,3300
http://statistics.data.gov.uk/id/local-authority/47UD,Redditch Borough Council,04/09/2015,237458,E3713924,14.79,Laser,5837,Executive Director Lec,Electricity,3300
http://statistics.data.gov.uk/id/local-authority/47UD,Redditch Borough Council,04/09/2015,237458,E3713924,383.13,Laser,5837,Housing Revenue Account,Electricity,3300
http://statistics.data.gov.uk/id/local-authority/47UD,Redditch Borough Council,04/09/2015,237458,E3713924,38.81,Laser,5837,Housing Revenue Account,Electricity,3300
http://statistics.data.gov.uk/id/local-authority/47UD,Redditch Borough Council,04/09/2015,237458,E3713924,188.63,Laser,5837,Housing Revenue Account,Electricity,3300
http://statistics.data.gov.uk/id/local-authority/47UD,Redditch Borough Council,04/09/2015,237458,E3713924,347.89,Laser,5837,Housing Revenue Account,Electricity,3300
http://statistics.data.gov.uk/id/local-authority/47UD,Redditch Borough Council,04/09/2015,237458,E3713924,19.35,Laser,5837,Exec. Director Fin. & Resource,Electricity,3300
http://statistics.data.gov.uk/id/local-authority/47UD,Redditch Borough Council,04/09/2015,237458,E3713924,34.24,Laser,5837,Housing Revenue Account,Electricity,3300
http://statistics.data.gov.uk/id/local-authority/47UD,Redditch Borough Council,04/09/2015,237458,E3713924,218.76,Laser,5837,Exec. Director Fin. & Resource,Electricity,3300
http://statistics.data.gov.uk/id/local-authority/47UD,Redditch Borough Council,04/09/2015,237458,E3713924,187.06,Laser,5837,Housing Revenue Account,Electricity,3300
http://statistics.data.gov.uk/id/local-authority/47UD,Redditch Borough Council,04/09/2015,237458,E3713924,70.83,Laser,5837,Exec. Director Fin. & Resource,Electricity,3300
http://statistics.data.gov.uk/id/local-authority/47UD,Redditch Borough Council,04/09/2015,237458,E3713924,348.97,Laser,5837,Housing Revenue Account,Electricity,3300
http://statistics.data.gov.uk/id/local-authority/47UD,Redditch Borough Council,04/09/2015,237458,E3713924,238.21,Laser,5837,Housing Revenue Account,Electricity,3300
http://statistics.data.gov.uk/id/local-authority/47UD,Redditch Borough Council,04/09/2015,237458,E3713924,102.93,Laser,5837,Housing Revenue Account,Electricity,3300
http://statistics.data.gov.uk/id/local-authority/47UD,Redditch Borough Council,04/09/2015,237458,E3713924,703.89,Laser,5837,Executive Director Lec,Electricity,3300
http://statistics.data.gov.uk/id/local-authority/47UD,Redditch Borough Council,04/09/2015,237458,E3713924,70.63,Laser,5837,Housing Revenue Account,Electricity,3300
http://statistics.data.gov.uk/id/local-authority/47UD,Redditch Borough Council,04/09/2015,237458,E3713924,121.20,Laser,5837,Exec. Director Fin. & Resource,Electricity,3300
http://statistics.data.gov.uk/id/local-authority/47UD,Redditch Borough Council,04/09/2015,237458,E3713924,"1,100.99",Laser,5837,Executive Director Lec,Electricity,3300
http://statistics.data.gov.uk/id/local-authority/47UD,Redditch Borough Council,04/09/2015,237458,E3713924,38.36,Laser,5837,Housing Revenue Account,Electricity,3300
http://statistics.data.gov.uk/id/local-authority/47UD,Redditch Borough Council,04/09/2015,237458,E3713924,29.96,Laser,5837,Housing Revenue Account,Electricity,3300
http://statistics.data.gov.uk/id/local-authority/47UD,Redditch Borough Council,04/09/2015,237458,E3713924,11.14,Laser,5837,Exec. Director Fin. & Resource,Electricity,3300
http://statistics.data.gov.uk/id/local-authority/47UD,Redditch Borough Council,04/09/2015,237458,E3713924,226.18,Laser,5837,Housing Revenue Account,Electricity,3300
http://statistics.data.gov.uk/id/local-authority/47UD,Redditch Borough Council,04/09/2015,237458,E3713924,96.69,Laser,5837,Housing Revenue Account,Electricity,3300
http://statistics.data.gov.uk/id/local-authority/47UD,Redditch Borough Council,04/09/2015,237458,E3713924,111.63,Laser,5837,Housing Revenue Account,Electricity,3300
http://statistics.data.gov.uk/id/local-authority/47UD,Redditch Borough Council,04/09/2015,237458,E3713924,"4,851.33",Laser,5837,Exec. Director Prrh,Electricity,3300
http://statistics.data.gov.uk/id/local-authority/47UD,Redditch Borough Council,04/09/2015,237458,E3713924,81.56,Laser,5837,Housing Revenue Account,Electricity,3300
http://statistics.data.gov.uk/id/local-authority/47UD,Redditch Borough Council,04/09/2015,237458,E3713924,28.11,Laser,5837,Housing Revenue Account,Electricity,3300
http://statistics.data.gov.uk/id/local-authority/47UD,Redditch Borough Council,04/09/2015,237458,E3713924,0.90,Laser,5837,Housing Revenue Account,Electricity,3300
http://statistics.data.gov.uk/id/local-authority/47UD,Redditch Borough Council,04/09/2015,237458,E3713924,75.17,Laser,5837,Housing Revenue Account,Electricity,3300
http://statistics.data.gov.uk/id/local-authority/47UD,Redditch Borough Council,04/09/2015,237458,E3713924,39.70,Laser,5837,Housing Revenue Account,Electricity,3300
http://statistics.data.gov.uk/id/local-authority/47UD,Redditch Borough Council,04/09/2015,237458,E3713924,571.34,Laser,5837,Housing Revenue Account,Electricity,3300
http://statistics.data.gov.uk/id/local-authority/47UD,Redditch Borough Council,04/09/2015,237458,E3713924,759.91,Laser,5837,Housing Revenue Account,Electricity,3300
http://statistics.data.gov.uk/id/local-authority/47UD,Redditch Borough Council,04/09/2015,237458,E3713924,"7,373.41",Laser,5837,Exec. Director Fin. & Resource,Electricity,3300
http://statistics.data.gov.uk/id/local-authority/47UD,Redditch Borough Council,04/09/2015,237458,E3713924,73.64,Laser,5837,Exec. Director Prrh,Electricity,3300
http://statistics.data.gov.uk/id/local-authority/47UD,Redditch Borough Council,04/09/2015,237458,E3713924,42.13,Laser,5837,Exec. Director Prrh,Electricity,3300
http://statistics.data.gov.uk/id/local-authority/47UD,Redditch Borough Council,04/09/2015,237458,E3713924,13.64,Laser,5837,Executive Director Lec,Electricity,3300
http://statistics.data.gov.uk/id/local-authority/47UD,Redditch Borough Council,04/09/2015,237458,E3713924,49.61,Laser,5837,Housing Revenue Account,Electricity,3300
http://statistics.data.gov.uk/id/local-authority/47UD,Redditch Borough Council,04/09/2015,237458,E3713924,115.18,Laser,5837,Housing Revenue Account,Electricity,3300
http://statistics.data.gov.uk/id/local-authority/47UD,Redditch Borough Council,04/09/2015,237458,E3713924,"3,369.86",Laser,5837,Housing Revenue Account,Electricity,3300
http://statistics.data.gov.uk/id/local-authority/47UD,Redditch Borough Council,04/09/2015,237458,E3713924,240.62,Laser,5837,Executive Director Lec,Electricity,3300
http://statistics.data.gov.uk/id/local-authority/47UD,Redditch Borough Council,04/09/2015,237458,E3713924,275.42,Laser,5837,Exec. Director Fin. & Resource,Electricity,3300
http://statistics.data.gov.uk/id/local-authority/47UD,Redditch Borough Council,04/09/2015,237458,E3713924,884.66,Laser,5837,Housing Revenue Account,Electricity,3300
http://statistics.data.gov.uk/id/local-authority/47UD,Redditch Borough Council,04/09/2015,237458,E3713924,55.96,Laser,5837,Executive Director Lec,Electricity,3300
http://statistics.data.gov.uk/id/local-authority/47UD,Redditch Borough Council,04/09/2015,237458,E3713924,239.91,Laser,5837,Executive Director Lec,Electricity,3300
http://statistics.data.gov.uk/id/local-authority/47UD,Redditch Borough Council,04/09/2015,237458,E3713924,297.47,Laser,5837,Housing Revenue Account,Electricity,3300
http://statistics.data.gov.uk/id/local-authority/47UD,Redditch Borough Council,04/09/2015,237458,E3713924,197.92,Laser,5837,Housing Repairs Account,Electricity,3300
http://statistics.data.gov.uk/id/local-authority/47UD,Redditch Borough Council,04/09/2015,237458,E3713924,38.21,Laser,5837,Housing Revenue Account,Electricity,3300
http://statistics.data.gov.uk/id/local-authority/47UD,Redditch Borough Council,04/09/2015,237458,E3713924,162.84,Laser,5837,Exec. Director Fin. & Resource,Electricity,3300
http://statistics.data.gov.uk/id/local-authority/47UD,Redditch Borough Council,04/09/2015,237458,E3713924,100.71,Laser,5837,Exec. Director Fin. & Resource,Electricity,3300
http://statistics.data.gov.uk/id/local-authority/47UD,Redditch Borough Council,04/09/2015,237458,E3713924,372.00,Laser,5837,Exec. Director Fin. & Resource,Electricity,3300
http://statistics.data.gov.uk/id/local-authority/47UD,Redditch Borough Council,04/09/2015,237458,E3713924,117.43,Laser,5837,Executive Director Lec,Electricity,3300
http://statistics.data.gov.uk/id/local-authority/47UD,Redditch Borough Council,04/09/2015,237459,STLTG371926,7.00,Laser,5837,Executive Director Lec,Electricity,3300
http://statistics.data.gov.uk/id/local-authority/47UD,Redditch Borough Council,04/09/2015,237459,STLTG371926,2.34,Laser,5837,Executive Director Lec,Electricity,3300
http://statistics.data.gov.uk/id/local-authority/47UD,Redditch Borough Council,04/09/2015,237459,STLTG371926,0.16,Laser,5837,Executive Director Lec,Electricity,3300
http://statistics.data.gov.uk/id/local-authority/47UD,Redditch Borough Council,04/09/2015,237459,STLTG371926,231.87,Laser,5837,Executive Director Lec,Electricity,3300
http://statistics.data.gov.uk/id/local-authority/47UD,Redditch Borough Council,04/09/2015,237459,STLTG371926,264.19,Laser,5837,Executive Director Lec,Electricity,3300
http://statistics.data.gov.uk/id/local-authority/47UD,Redditch Borough Council,04/09/2015,237459,STLTG371926,289.05,Laser,5837,Executive Director Lec,Electricity,3300
http://statistics.data.gov.uk/id/local-authority/47UD,Redditch Borough Council,04/09/2015,237459,STLTG371926,228.51,Laser,5837,Executive Director Lec,Electricity,3300
http://statistics.data.gov.uk/id/local-authority/47UD,Redditch Borough Council,04/09/2015,237459,STLTG371926,1.58,Laser,5837,Executive Director Lec,Electricity,3300
http://statistics.data.gov.uk/id/local-authority/47UD,Redditch Borough Council,04/09/2015,237459,STLTG371926,19.48,Laser,5837,Executive Director Lec,Electricity,3300
http://statistics.data.gov.uk/id/local-authority/47UD,Redditch Borough Council,04/09/2015,237459,STLTG371926,1.02,Laser,5837,Housing Revenue Account,Electricity,3300
http://statistics.data.gov.uk/id/local-authority/47UD,Redditch Borough Council,04/09/2015,237459,STLTG371926,221.46,Laser,5837,Housing Revenue Account,Electricity,3300
http://statistics.data.gov.uk/id/local-authority/47UD,Redditch Borough Council,30/09/2015,239216,STLTG3733001,7.16,Laser,5837,Executive Director Lec,Electricity,3300
http://statistics.data.gov.uk/id/local-authority/47UD,Redditch Borough Council,30/09/2015,239216,STLTG3733001,2.26,Laser,5837,Executive Director Lec,Electricity,3300
http://statistics.data.gov.uk/id/local-authority/47UD,Redditch Borough Council,30/09/2015,239216,STLTG3733001,0.08,Laser,5837,Executive Director Lec,Electricity,3300
http://statistics.data.gov.uk/id/local-authority/47UD,Redditch Borough Council,30/09/2015,239216,STLTG3733001,231.87,Laser,5837,Executive Director Lec,Electricity,3300
http://statistics.data.gov.uk/id/local-authority/47UD,Redditch Borough Council,30/09/2015,239216,STLTG3733001,1.58,Laser,5837,Executive Director Lec,Electricity,3300
http://statistics.data.gov.uk/id/local-authority/47UD,Redditch Borough Council,30/09/2015,239216,STLTG3733001,19.48,Laser,5837,Executive Director Lec,Electricity,3300
http://statistics.data.gov.uk/id/local-authority/47UD,Redditch Borough Council,30/09/2015,239216,STLTG3733001,134.26,Laser,5837,Executive Director Lec,Electricity,3300
http://statistics.data.gov.uk/id/local-authority/47UD,Redditch Borough Council,30/09/2015,239216,STLTG3733001,289.05,Laser,5837,Executive Director Lec,Electricity,3300
http://statistics.data.gov.uk/id/local-authority/47UD,Redditch Borough Council,30/09/2015,239216,STLTG3733001,228.51,Laser,5837,Executive Director Lec,Electricity,3300
http://statistics.data.gov.uk/id/local-authority/47UD,Redditch Borough Council,30/09/2015,239216,STLTG3733001,2.03,Laser,5837,Housing Revenue Account,Electricity,3300
http://statistics.data.gov.uk/id/local-authority/47UD,Redditch Borough Council,30/09/2015,239216,STLTG3733001,221.46,Laser,5837,Housing Revenue Account,Electricity,3300
http://statistics.data.gov.uk/id/local-authority/47UD,Redditch Borough Council,30/09/2015,239221,G3733000,"3,970.78",Laser,5837,Executive Director Lec,Gas,3301
http://statistics.data.gov.uk/id/local-authority/47UD,Redditch Borough Council,30/09/2015,239221,G3733000,108.33,Laser,5837,Housing Revenue Account,Gas,3301
http://statistics.data.gov.uk/id/local-authority/47UD,Redditch Borough Council,30/09/2015,239221,G3733000,60.18,Laser,5837,Executive Director Lec,Gas,3301
http://statistics.data.gov.uk/id/local-authority/47UD,Redditch Borough Council,30/09/2015,239221,G3733000,70.65,Laser,5837,Exec. Director Fin. & Resource,Gas,3301
http://statistics.data.gov.uk/id/local-authority/47UD,Redditch Borough Council,30/09/2015,239221,G3733000,34.53,Laser,5837,Housing Revenue Account,Gas,3301
http://statistics.data.gov.uk/id/local-authority/47UD,Redditch Borough Council,30/09/2015,239221,G3733000,19.81,Laser,5837,Housing Revenue Account,Gas,3301
http://statistics.data.gov.uk/id/local-authority/47UD,Redditch Borough Council,30/09/2015,239221,G3733000,493.56,Laser,5837,Housing Revenue Account,Gas,3301
http://statistics.data.gov.uk/id/local-authority/47UD,Redditch Borough Council,30/09/2015,239221,G3733000,3.64,Laser,5837,Housing Revenue Account,Gas,3301
http://statistics.data.gov.uk/id/local-authority/47UD,Redditch Borough Council,30/09/2015,239221,G3733000,2.17,Laser,5837,Housing Revenue Account,Gas,3301
http://statistics.data.gov.uk/id/local-authority/47UD,Redditch Borough Council,30/09/2015,239221,G3733000,10.39,Laser,5837,Housing Revenue Account,Gas,3301
http://statistics.data.gov.uk/id/local-authority/47UD,Redditch Borough Council,30/09/2015,239221,G3733000,"2,611.21",Laser,5837,Executive Director Lec,Gas,3301
http://statistics.data.gov.uk/id/local-authority/47UD,Redditch Borough Council,30/09/2015,239221,G3733000,517.39,Laser,5837,Exec. Director Fin. & Resource,Gas,3301
http://statistics.data.gov.uk/id/local-authority/47UD,Redditch Borough Council,30/09/2015,239221,G3733000,348.05,Laser,5837,Exec. Director Prrh,Gas,3301
http://statistics.data.gov.uk/id/local-authority/47UD,Redditch Borough Council,30/09/2015,239221,G3733000,26.02,Laser,5837,Housing Revenue Account,Gas,3301
http://statistics.data.gov.uk/id/local-authority/47UD,Redditch Borough Council,30/09/2015,239221,G3733000,23.41,Laser,5837,Housing Revenue Account,Gas,3301
http://statistics.data.gov.uk/id/local-authority/47UD,Redditch Borough Council,30/09/2015,239221,G3733000,182.96,Laser,5837,Exec. Director Prrh,Gas,3301
http://statistics.data.gov.uk/id/local-authority/47UD,Redditch Borough Council,30/09/2015,239221,G3733000,63.10,Laser,5837,Housing Revenue Account,Gas,3301
http://statistics.data.gov.uk/id/local-authority/47UD,Redditch Borough Council,30/09/2015,239221,G3733000,98.02,Laser,5837,Housing Revenue Account,Gas,3301
http://statistics.data.gov.uk/id/local-authority/47UD,Redditch Borough Council,30/09/2015,239221,G3733000,35.27,Laser,5837,Executive Director Lec,Gas,3301
http://statistics.data.gov.uk/id/local-authority/47UD,Redditch Borough Council,30/09/2015,239221,G3733000,15.74,Laser,5837,Housing Revenue Account,Gas,3301
http://statistics.data.gov.uk/id/local-authority/47UD,Redditch Borough Council,30/09/2015,239221,G3733000,542.08,Laser,5837,Housing Revenue Account,Gas,3301
http://statistics.data.gov.uk/id/local-authority/47UD,Redditch Borough Council,30/09/2015,239221,G3733000,577.22,Laser,5837,Housing Revenue Account,Gas,3301
http://statistics.data.gov.uk/id/local-authority/47UD,Redditch Borough Council,30/09/2015,239221,G3733000,65.78,Laser,5837,Executive Director Lec,Gas,3301
http://statistics.data.gov.uk/id/local-authority/47UD,Redditch Borough Council,30/09/2015,239221,G3733000,100.09,Laser,5837,Executive Director Lec,Gas,3301
http://statistics.data.gov.uk/id/local-authority/47UD,Redditch Borough Council,30/09/2015,239221,G3733000,15.86,Laser,5837,Exec. Director Fin. & Resource,Gas,3301
http://statistics.data.gov.uk/id/local-authority/47UD,Redditch Borough Council,30/09/2015,239221,G3733000,172.45,Laser,5837,Executive Director Lec,Gas,3301
http://statistics.data.gov.uk/id/local-authority/47UD,Redditch Borough Council,30/09/2015,239221,G3733000,37.27,Laser,5837,Housing Revenue Account,Gas,3301
http://statistics.data.gov.uk/id/local-authority/47UD,Redditch Borough Council,30/09/2015,239221,G3733000,229.53,Laser,5837,Exec. Director Prrh,Gas,3301
http://statistics.data.gov.uk/id/local-authority/47UD,Redditch Borough Council,30/09/2015,239221,G3733000,969.44,Laser,5837,Housing Revenue Account,Gas,3301
http://statistics.data.gov.uk/id/local-authority/47UD,Redditch Borough Council,30/09/2015,239221,G3733000,664.36,Laser,5837,Exec. Director Fin. & Resource,Gas,3301
http://statistics.data.gov.uk/id/local-authority/47UD,Redditch Borough Council,30/09/2015,239221,G3733000,72.84,Laser,5837,Executive Director Lec,Gas,3301
http://statistics.data.gov.uk/id/local-authority/47UD,Redditch Borough Council,30/09/2015,239221,G3733000,68.79,Laser,5837,Executive Director Lec,Gas,3301
http://statistics.data.gov.uk/id/local-authority/47UD,Redditch Borough Council,30/09/2015,239221,G3733000,2.17,Laser,5837,Exec. Director Fin. & Resource,Gas,3301
http://statistics.data.gov.uk/id/local-authority/47UD,Redditch Borough Council,30/09/2015,239221,G3733000,34.84,Laser,5837,Exec. Director Fin. & Resource,Gas,3301
http://statistics.data.gov.uk/id/local-authority/47UD,Redditch Borough Council,30/09/2015,239221,G3733000,60.03,Laser,5837,Executive Director Lec,Gas,3301
http://statistics.data.gov.uk/id/local-authority/47UD,Redditch Borough Council,30/09/2015,239221,G3733000,66.09,Laser,5837,Exec. Director Fin. & Resource,Gas,3301
http://statistics.data.gov.uk/id/local-authority/47UD,Redditch Borough Council,30/09/2015,239223,E3732999,"6,215.98",Laser,5837,Executive Director Lec,Electricity,3300
http://statistics.data.gov.uk/id/local-authority/47UD,Redditch Borough Council,30/09/2015,239223,E3732999,62.09,Laser,5837,Housing Revenue Account,Electricity,3300
http://statistics.data.gov.uk/id/local-authority/47UD,Redditch Borough Council,30/09/2015,239223,E3732999,67.62,Laser,5837,Housing Revenue Account,Electricity,3300
http://statistics.data.gov.uk/id/local-authority/47UD,Redditch Borough Council,30/09/2015,239223,E3732999,43.22,Laser,5837,Housing Revenue Account,Electricity,3300
http://statistics.data.gov.uk/id/local-authority/47UD,Redditch Borough Council,30/09/2015,239223,E3732999,29.64,Laser,5837,Housing Revenue Account,Electricity,3300
http://statistics.data.gov.uk/id/local-authority/47UD,Redditch Borough Council,30/09/2015,239223,E3732999,"2,300.80",Laser,5837,Executive Director Lec,Electricity,3300
http://statistics.data.gov.uk/id/local-authority/47UD,Redditch Borough Council,30/09/2015,239223,E3732999,167.09,Laser,5837,Housing Revenue Account,Electricity,3300
http://statistics.data.gov.uk/id/local-authority/47UD,Redditch Borough Council,30/09/2015,239223,E3732999,196.63,Laser,5837,Housing Revenue Account,Electricity,3300
http://statistics.data.gov.uk/id/local-authority/47UD,Redditch Borough Council,30/09/2015,239223,E3732999,239.35,Laser,5837,Exec. Director Fin. & Resource,Electricity,3300
http://statistics.data.gov.uk/id/local-authority/47UD,Redditch Borough Council,30/09/2015,239223,E3732999,"2,428.70",Laser,5837,Exec. Director Fin. & Resource,Electricity,3300
http://statistics.data.gov.uk/id/local-authority/47UD,Redditch Borough Council,30/09/2015,239223,E3732999,381.27,Laser,5837,Exec. Director Prrh,Electricity,3300
http://statistics.data.gov.uk/id/local-authority/47UD,Redditch Borough Council,30/09/2015,239223,E3732999,639.03,Laser,5837,Housing Revenue Account,Electricity,3300
http://statistics.data.gov.uk/id/local-authority/47UD,Redditch Borough Council,30/09/2015,239223,E3732999,81.75,Laser,5837,Housing Revenue Account,Electricity,3300
http://statistics.data.gov.uk/id/local-authority/47UD,Redditch Borough Council,30/09/2015,239223,E3732999,96.88,Laser,5837,Housing Revenue Account,Electricity,3300
http://statistics.data.gov.uk/id/local-authority/47UD,Redditch Borough Council,30/09/2015,239223,E3732999,15.31,Laser,5837,Executive Director Lec,Electricity,3300
http://statistics.data.gov.uk/id/local-authority/47UD,Redditch Borough Council,30/09/2015,239223,E3732999,576.72,Laser,5837,Exec. Director Prrh,Electricity,3300
http://statistics.data.gov.uk/id/local-authority/47UD,Redditch Borough Council,30/09/2015,239223,E3732999,113.56,Laser,5837,Housing Revenue Account,Electricity,3300
http://statistics.data.gov.uk/id/local-authority/47UD,Redditch Borough Council,30/09/2015,239223,E3732999,112.80,Laser,5837,Housing Revenue Account,Electricity,3300
http://statistics.data.gov.uk/id/local-authority/47UD,Redditch Borough Council,30/09/2015,239223,E3732999,125.41,Laser,5837,Housing Revenue Account,Electricity,3300
http://statistics.data.gov.uk/id/local-authority/47UD,Redditch Borough Council,30/09/2015,239223,E3732999,48.66,Laser,5837,Housing Revenue Account,Electricity,3300
http://statistics.data.gov.uk/id/local-authority/47UD,Redditch Borough Council,30/09/2015,239223,E3732999,336.25,Laser,5837,Housing Revenue Account,Electricity,3300
http://statistics.data.gov.uk/id/local-authority/47UD,Redditch Borough Council,30/09/2015,239223,E3732999,221.23,Laser,5837,Housing Revenue Account,Electricity,3300
http://statistics.data.gov.uk/id/local-authority/47UD,Redditch Borough Council,30/09/2015,239223,E3732999,277.68,Laser,5837,Housing Revenue Account,Electricity,3300
http://statistics.data.gov.uk/id/local-authority/47UD,Redditch Borough Council,30/09/2015,239223,E3732999,236.79,Laser,5837,Housing Revenue Account,Electricity,3300
http://statistics.data.gov.uk/id/local-authority/47UD,Redditch Borough Council,30/09/2015,239223,E3732999,-2.16,Laser,5837,Housing Revenue Account,Electricity,3300
http://statistics.data.gov.uk/id/local-authority/47UD,Redditch Borough Council,30/09/2015,239223,E3732999,150.70,Laser,5837,Housing Revenue Account,Electricity,3300
http://statistics.data.gov.uk/id/local-authority/47UD,Redditch Borough Council,30/09/2015,239223,E3732999,39.87,Laser,5837,Housing Revenue Account,Electricity,3300
http://statistics.data.gov.uk/id/local-authority/47UD,Redditch Borough Council,30/09/2015,239223,E3732999,357.15,Laser,5837,Housing Revenue Account,Electricity,3300
http://statistics.data.gov.uk/id/local-authority/47UD,Redditch Borough Council,30/09/2015,239223,E3732999,661.97,Laser,5837,Exec. Director Fin. & Resource,Electricity,3300
http://statistics.data.gov.uk/id/local-authority/47UD,Redditch Borough Council,30/09/2015,239223,E3732999,406.57,Laser,5837,Exec. Director Fin. & Resource,Electricity,3300
http://statistics.data.gov.uk/id/local-authority/47UD,Redditch Borough Council,30/09/2015,239223,E3732999,361.59,Laser,5837,Housing Revenue Account,Electricity,3300
http://statistics.data.gov.uk/id/local-authority/47UD,Redditch Borough Council,30/09/2015,239223,E3732999,76.84,Laser,5837,Housing Revenue Account,Electricity,3300
http://statistics.data.gov.uk/id/local-authority/47UD,Redditch Borough Council,30/09/2015,239223,E3732999,680.60,Laser,5837,Executive Director Lec,Electricity,3300
http://statistics.data.gov.uk/id/local-authority/47UD,Redditch Borough Council,30/09/2015,239223,E3732999,35.90,Laser,5837,Housing Revenue Account,Electricity,3300
http://statistics.data.gov.uk/id/local-authority/47UD,Redditch Borough Council,30/09/2015,239223,E3732999,32.03,Laser,5837,Housing Revenue Account,Electricity,3300
http://statistics.data.gov.uk/id/local-authority/47UD,Redditch Borough Council,30/09/2015,239223,E3732999,326.10,Laser,5837,Housing Revenue Account,Electricity,3300
http://statistics.data.gov.uk/id/local-authority/47UD,Redditch Borough Council,30/09/2015,239223,E3732999,489.19,Laser,5837,Executive Director Lec,Electricity,3300
http://statistics.data.gov.uk/id/local-authority/47UD,Redditch Borough Council,30/09/2015,239223,E3732999,722.89,Laser,5837,Executive Director Lec,Electricity,3300
http://statistics.data.gov.uk/id/local-authority/47UD,Redditch Borough Council,30/09/2015,239223,E3732999,118.30,Laser,5837,Exec. Director Fin. & Resource,Electricity,3300
http://statistics.data.gov.uk/id/local-authority/47UD,Redditch Borough Council,30/09/2015,239223,E3732999,"2,591.28",Laser,5837,Exec. Director Prrh,Electricity,3300
http://statistics.data.gov.uk/id/local-authority/47UD,Redditch Borough Council,30/09/2015,239223,E3732999,27.10,Laser,5837,Housing Revenue Account,Electricity,3300
http://statistics.data.gov.uk/id/local-authority/47UD,Redditch Borough Council,30/09/2015,239223,E3732999,51.61,Laser,5837,Housing Revenue Account,Electricity,3300
http://statistics.data.gov.uk/id/local-authority/47UD,Redditch Borough Council,30/09/2015,239223,E3732999,55.87,Laser,5837,Housing Revenue Account,Electricity,3300
http://statistics.data.gov.uk/id/local-authority/47UD,Redditch Borough Council,30/09/2015,239223,E3732999,787.23,Laser,5837,Housing Revenue Account,Electricity,3300
http://statistics.data.gov.uk/id/local-authority/47UD,Redditch Borough Council,30/09/2015,239223,E3732999,"7,312.48",Laser,5837,Exec. Director Fin. & Resource,Electricity,3300
http://statistics.data.gov.uk/id/local-authority/47UD,Redditch Borough Council,30/09/2015,239223,E3732999,28.88,Laser,5837,Housing Revenue Account,Electricity,3300
http://statistics.data.gov.uk/id/local-authority/47UD,Redditch Borough Council,30/09/2015,239223,E3732999,428.64,Laser,5837,Executive Director Lec,Electricity,3300
http://statistics.data.gov.uk/id/local-authority/47UD,Redditch Borough Council,30/09/2015,239223,E3732999,245.03,Laser,5837,Housing Revenue Account,Electricity,3300
http://statistics.data.gov.uk/id/local-authority/47UD,Redditch Borough Council,30/09/2015,239223,E3732999,346.39,Laser,5837,Exec. Director Fin. & Resource,Electricity,3300
http://statistics.data.gov.uk/id/local-authority/47UD,Redditch Borough Council,11/09/2015,237064,REDACTED PERSONAL DATA,558.75,Fit It Flooring Ltd,5847,Exec. Director Prrh,Operational Equip- Purchase,4150
http://statistics.data.gov.uk/id/local-authority/47UD,Redditch Borough Council,11/09/2015,237066,INVOICE,567.50,Fit It Flooring Ltd,5847,Exec. Director Prrh,Operational Equip- Purchase,4150
http://statistics.data.gov.uk/id/local-authority/47UD,Redditch Borough Council,18/09/2015,238467,AUG15,692.28,Bromsgrove Gymnastics Club,5892,Executive Director Lec,Casual Staff,3022
http://statistics.data.gov.uk/id/local-authority/47UD,Redditch Borough Council,18/09/2015,238470,AUGUST15,"1,117.80",Bromsgrove Gymnastics Club,5892,Executive Director Lec,Casual Staff,3022
http://statistics.data.gov.uk/id/local-authority/47UD,Redditch Borough Council,30/09/2015,237725,13543,525.00,Wychavon Leisure Community Association,5911,Executive Director Lec,Hire Of Premises,3351
http://statistics.data.gov.uk/id/local-authority/47UD,Redditch Borough Council,11/09/2015,235775,DCW/ACS,"2,525.00",Derek Bruce Entertainments,5933,Executive Director Lec,Professional Fees,4352
http://statistics.data.gov.uk/id/local-authority/47UD,Redditch Borough Council,18/09/2015,237924,226343-1,86.00,Morris Mica Hardware,595,Crossgate Stocks,Received Not Invoiced,2096
http://statistics.data.gov.uk/id/local-authority/47UD,Redditch Borough Council,18/09/2015,237924,226343-1,0.00,Morris Mica Hardware,595,Crossgate Stocks,Stock Account (Cedar),1201
http://statistics.data.gov.uk/id/local-authority/47UD,Redditch Borough Council,18/09/2015,237924,226343-1,109.20,Morris Mica Hardware,595,Crossgate Stocks,Received Not Invoiced,2096
http://statistics.data.gov.uk/id/local-authority/47UD,Redditch Borough Council,18/09/2015,237924,226343-1,0.00,Morris Mica Hardware,595,Crossgate Stocks,Stock Account (Cedar),1201
http://statistics.data.gov.uk/id/local-authority/47UD,Redditch Borough Council,18/09/2015,237924,226343-1,60.50,Morris Mica Hardware,595,Crossgate Stocks,Received Not Invoiced,2096
http://statistics.data.gov.uk/id/local-authority/47UD,Redditch Borough Council,18/09/2015,237924,226343-1,0.00,Morris Mica Hardware,595,Crossgate Stocks,Stock Account (Cedar),1201
http://statistics.data.gov.uk/id/local-authority/47UD,Redditch Borough Council,18/09/2015,237924,226343-1,207.00,Morris Mica Hardware,595,Crossgate Stocks,Received Not Invoiced,2096
http://statistics.data.gov.uk/id/local-authority/47UD,Redditch Borough Council,18/09/2015,237924,226343-1,0.00,Morris Mica Hardware,595,Crossgate Stocks,Stock Account (Cedar),1201
http://statistics.data.gov.uk/id/local-authority/47UD,Redditch Borough Council,18/09/2015,237924,226343-1,207.00,Morris Mica Hardware,595,Crossgate Stocks,Received Not Invoiced,2096
http://statistics.data.gov.uk/id/local-authority/47UD,Redditch Borough Council,18/09/2015,237924,226343-1,0.00,Morris Mica Hardware,595,Crossgate Stocks,Stock Account (Cedar),1201
http://statistics.data.gov.uk/id/local-authority/47UD,Redditch Borough Council,25/09/2015,237932,226336-1,37.10,Morris Mica Hardware,595,Exec. Director Prrh,Materials,4170
http://statistics.data.gov.uk/id/local-authority/47UD,Redditch Borough Council,25/09/2015,237932,226336-1,35.76,Morris Mica Hardware,595,Exec. Director Prrh,Materials,4170
http://statistics.data.gov.uk/id/local-authority/47UD,Redditch Borough Council,25/09/2015,237932,226336-1,2.08,Morris Mica Hardware,595,Exec. Director Prrh,Materials,4170
http://statistics.data.gov.uk/id/local-authority/47UD,Redditch Borough Council,25/09/2015,237932,226336-1,108.00,Morris Mica Hardware,595,Exec. Director Prrh,Materials,4170
http://statistics.data.gov.uk/id/local-authority/47UD,Redditch Borough Council,25/09/2015,237932,226336-1,66.70,Morris Mica Hardware,595,Exec. Director Prrh,Materials,4170
http://statistics.data.gov.uk/id/local-authority/47UD,Redditch Borough Council,25/09/2015,237932,226336-1,519.84,Morris Mica Hardware,595,Exec. Director Prrh,Materials,4170
http://statistics.data.gov.uk/id/local-authority/47UD,Redditch Borough Council,04/09/2015,236816,3784,450.00,J K Autos Recovery Limited,5955,Executive Director Lec,Removal Of Abandoned Vehicles,3203
http://statistics.data.gov.uk/id/local-authority/47UD,Redditch Borough Council,11/09/2015,234590,833843,808.50,Morgan Hunt Recruitment,596,Exec. Director Fin. & Resource,Agency Staff,3020
http://statistics.data.gov.uk/id/local-authority/47UD,Redditch Borough Council,11/09/2015,234857,835326,790.69,Morgan Hunt Recruitment,596,Housing Revenue Account,Agency Staff,3020
http://statistics.data.gov.uk/id/local-authority/47UD,Redditch Borough Council,04/09/2015,236037,838786,790.69,Morgan Hunt Recruitment,596,Housing Revenue Account,Agency Staff,3020
